Workbook

Sheet Main
B10: 2024-05-16
B12: Sheet No. | C12: Template Name | D12: Summary
B13: 1 | C13: Future Intra | D13: For Intraday trading in F&O segment
B14: 2 | C14: Cash Intra | D14: For Intraday trading in cash market segment
B15: 3 | C15: Mid-cap Intra | D15: For Intraday trading in Mid-cap stocks
B16: 4 | C16: Bulk Deals | D16: Reveals Bulk Deals carried on NSE & BSE
B17: 5 | C17: Call Tracker
K27: `

Sheet Future Intra
M5: Back to Main Page
A6: FOR INTRA DAY TRADING | L6: =Main!B10 -> 2024-05-16
A9: Sr.no | B9: Sector | C9: Scrip | D9: Expiry Date | E9: CLOSE RATE | F9: Pivot Point | G9: Supports | J9: Resistances
E10: Point | F10: Point | G10: S1 | H10: S2 | I10: S3 | J10: R1 | K10: R2 | L10: R3 | M10: HIGH | N10: LOW | O10: OI | P10: % Change in OI
A11: 1 | B11: Index | C11: NIFTY | D11: 2024-05-30 | E11: 22287.05 | F11: 22291.17 | G11: 22206.88 | H11: 22126.72 | I11: 22042.43 | J11: 22371.33 | K11: 22455.62 | L11: 22535.78 | M11: 22375.45 | N11: 22211 | O11: 15013825 | P11: -1.00%
A12: 2 | B12: Index | C12: BANKNIFTY | D12: 2024-05-29 | E12: 47908.55 | F12: 47928.23 | G12: 47711.32 | H12: 47514.08 | I12: 47297.17 | J12: 48125.47 | K12: 48342.38 | L12: 48539.62 | M12: 48145.15 | N12: 47731 | O12: 2890215 | P12: 5.35%
A13: 3 | B13: Index | C13: FINNIFTY | D13: 2024-05-28 | E13: 21289.10 | F13: 21295.45 | G13: 21214.80 | H13: 21140.50 | I13: 21059.85 | J13: 21369.75 | K13: 21450.40 | L13: 21524.70 | M13: 21376.1 | N13: 21221.15 | O13: 94235 | P13: 21.55%
A14: 4 | B14: Index | C14: MIDCPNIFTY | D14: 2024-05-27 | E14: 11188.75 | F14: 11167.92 | G14: 11137.03 | H14: 11085.32 | I14: 11054.43 | J14: 11219.63 | K14: 11250.52 | L14: 11302.23 | M14: 11198.8 | N14: 11116.2 | O14: 2124825 | P14: 1.28%
A15: 5 | B15: Chemicals | C15: AARTIIND | D15: 2024-05-30 | E15: 623.60 | F15: 633.62 | G15: 610.98 | H15: 598.37 | I15: 575.73 | J15: 646.23 | K15: 668.87 | L15: 681.48 | M15: 656.25 | N15: 621 | O15: 13132000 | P15: -6.12%
A16: 6 | B16: Capital_Goods | C16: ABB | D16: 2024-05-30 | E16: 8097.65 | F16: 8078.20 | G16: 8003.95 | H16: 7910.25 | I16: 7836.00 | J16: 8171.90 | K16: 8246.15 | L16: 8339.85 | M16: 8152.45 | N16: 7984.5 | O16: 1404000 | P16: 0.34%
A17: 7 | B17: Pharma | C17: ABBOTINDIA | D17: 2024-05-30 | E17: 26516.10 | F17: 26656.95 | G17: 26323.80 | H17: 26131.50 | I17: 25798.35 | J17: 26849.25 | K17: 27182.40 | L17: 27374.70 | M17: 26990.1 | N17: 26464.65 | O17: 165200 | P17: 0.55%
A18: 8 | B18: Finance | C18: ABCAPITAL | D18: 2024-05-30 | E18: 221.40 | F18: 222.50 | G18: 219.60 | H18: 217.80 | I18: 214.90 | J18: 224.30 | K18: 227.20 | L18: 229.00 | M18: 225.4 | N18: 220.7 | O18: 70302600 | P18: -0.54%
A19: 9 | B19: Textile | C19: ABFRL | D19: 2024-05-30 | E19: 263.60 | F19: 263.68 | G19: 259.77 | H19: 255.93 | I19: 252.02 | J19: 267.52 | K19: 271.43 | L19: 275.27 | M19: 267.6 | N19: 259.85 | O19: 40250600 | P19: 1.39%
A20: 10 | B20: Cement | C20: ACC | D20: 2024-05-30 | E20: 2494.25 | F20: 2484.53 | G20: 2461.82 | H20: 2429.38 | I20: 2406.67 | J20: 2516.97 | K20: 2539.68 | L20: 2572.12 | M20: 2507.25 | N20: 2452.1 | O20: 5337900 | P20: -2.70%
A21: 11 | B21: Infrastructure | C21: ADANIENT | D21: 2024-05-30 | E21: 3059.80 | F21: 3081.23 | G21: 3029.47 | H21: 2999.13 | I21: 2947.37 | J21: 3111.57 | K21: 3163.33 | L21: 3193.67 | M21: 3133 | N21: 3050.9 | O21: 14230800 | P21: -0.64%
A22: 12 | B22: Infrastructure | C22: ADANIPORTS | D22: 2024-05-30 | E22: 1340.70 | F22: 1345.60 | G22: 1330.70 | H22: 1320.70 | I22: 1305.80 | J22: 1355.60 | K22: 1370.50 | L22: 1380.50 | M22: 1360.5 | N22: 1335.6 | O22: 36628800 | P22: -0.48%
A23: 13 | B23: Pharma | C23: ALKEM | D23: 2024-05-30 | E23: 5272.10 | F23: 5275.30 | G23: 5210.70 | H23: 5149.30 | I23: 5084.70 | J23: 5336.70 | K23: 5401.30 | L23: 5462.70 | M23: 5339.9 | N23: 5213.9 | O23: 1227000 | P23: 7.55%
A24: 14 | B24: Cement | C24: AMBUJACEM | D24: 2024-05-30 | E24: 614.90 | F24: 615.33 | G24: 610.72 | H24: 606.53 | I24: 601.92 | J24: 619.52 | K24: 624.13 | L24: 628.32 | M24: 619.95 | N24: 611.15 | O24: 40880700 | P24: -1.06%
A25: 15 | B25: Pharma | C25: APOLLOHOSP | D25: 2024-05-30 | E25: 5859.20 | F25: 5868.53 | G25: 5834.82 | H25: 5810.43 | I25: 5776.72 | J25: 5892.92 | K25: 5926.63 | L25: 5951.02 | M25: 5902.25 | N25: 5844.15 | O25: 2043750 | P25: -1.42%
A26: 16 | B26: Automobile | C26: APOLLOTYRE | D26: 2024-05-30 | E26: 476.45 | F26: 472.72 | G26: 460.88 | H26: 445.32 | I26: 433.48 | J26: 488.28 | K26: 500.12 | L26: 515.68 | M26: 484.55 | N26: 457.15 | O26: 13866900 | P26: -0.96%
A27: 17 | B27: Automobile | C27: ASHOKLEY | D27: 2024-05-30 | E27: 202.45 | F27: 203.50 | G27: 200.15 | H27: 197.85 | I27: 194.50 | J27: 205.80 | K27: 209.15 | L27: 211.45 | M27: 206.85 | N27: 201.2 | O27: 113115000 | P27: 1.48%
A28: 18 | B28: FMCG | C28: ASIANPAINT | D28: 2024-05-30 | E28: 2820.80 | F28: 2840.23 | G28: 2792.87 | H28: 2764.93 | I28: 2717.57 | J28: 2868.17 | K28: 2915.53 | L28: 2943.47 | M28: 2887.6 | N28: 2812.3 | O28: 13450800 | P28: 1.10%
A29: 19 | B29: Capital_Goods | C29: ASTRAL | D29: 2024-05-30 | E29: 2219.65 | F29: 2221.53 | G29: 2186.52 | H29: 2153.38 | I29: 2118.37 | J29: 2254.67 | K29: 2289.68 | L29: 2322.82 | M29: 2256.55 | N29: 2188.4 | O29: 2653043 | P29: -6.35%
A30: 20 | B30: Chemicals | C30: ATUL | D30: 2024-05-30 | E30: 5904.55 | F30: 5930.85 | G30: 5861.70 | H30: 5818.85 | I30: 5749.70 | J30: 5973.70 | K30: 6042.85 | L30: 6085.70 | M30: 6000 | N30: 5888 | O30: 576575 | P30: 3.44%
A31: 21 | B31: Banking | C31: AUBANK | D31: 2024-05-30 | E31: 624.55 | F31: 631.25 | G31: 611.50 | H31: 598.45 | I31: 578.70 | J31: 644.30 | K31: 664.05 | L31: 677.10 | M31: 651 | N31: 618.2 | O31: 18652000 | P31: 3.62%
A32: 22 | B32: Pharma | C32: AUROPHARMA | D32: 2024-05-30 | E32: 1164.60 | F32: 1165.28 | G32: 1155.57 | H32: 1146.53 | I32: 1136.82 | J32: 1174.32 | K32: 1184.03 | L32: 1193.07 | M32: 1175 | N32: 1156.25 | O32: 12972850 | P32: 0.20%
A33: 23 | B33: Banking | C33: AXISBANK | D33: 2024-05-30 | E33: 1132.55 | F33: 1131.25 | G33: 1125.70 | H33: 1118.85 | I33: 1113.30 | J33: 1138.10 | K33: 1143.65 | L33: 1150.50 | M33: 1136.8 | N33: 1124.4 | O33: 53730625 | P33: -0.36%
A34: 24 | B34: Automobile | C34: BAJAJ-AUTO | D34: 2024-05-30 | E34: 8947.55 | F34: 9012.85 | G34: 8859.70 | H34: 8771.85 | I34: 8618.70 | J34: 9100.70 | K34: 9253.85 | L34: 9341.70 | M34: 9166 | N34: 8925 | O34: 2421825 | P34: 5.55%
A35: 25 | B35: Finance | C35: BAJAJFINSV | D35: 2024-05-30 | E35: 1576.85 | F35: 1581.57 | G35: 1568.13 | H35: 1559.42 | I35: 1545.98 | J35: 1590.28 | K35: 1603.72 | L35: 1612.43 | M35: 1595 | N35: 1572.85 | O35: 10170500 | P35: 0.22%
A36: 26 | B36: Finance | C36: BAJFINANCE | D36: 2024-05-30 | E36: 6695.90 | F36: 6712.45 | G36: 6659.05 | H36: 6622.20 | I36: 6568.80 | J36: 6749.30 | K36: 6802.70 | L36: 6839.55 | M36: 6765.85 | N36: 6675.6 | O36: 9107375 | P36: 0.37%
A37: 27 | B37: Automobile | C37: BALKRISIND | D37: 2024-05-30 | E37: 2528.15 | F37: 2514.92 | G37: 2493.28 | H37: 2458.42 | I37: 2436.78 | J37: 2549.78 | K37: 2571.42 | L37: 2606.28 | M37: 2536.55 | N37: 2480.05 | O37: 1659000 | P37: 0.44%
A38: 28 | B38: FMCG | C38: BALRAMCHIN | D38: 2024-05-30 | E38: 377.15 | F38: 379.10 | G38: 375.20 | H38: 373.25 | I38: 369.35 | J38: 381.05 | K38: 384.95 | L38: 386.90 | M38: 383 | N38: 377.15 | O38: 12947200 | P38: -0.26%
A39: 29 | B39: Banking | C39: BANDHANBNK | D39: 2024-05-30 | E39: 190.65 | F39: 189.88 | G39: 187.32 | H39: 183.98 | I39: 181.42 | J39: 193.22 | K39: 195.78 | L39: 199.12 | M39: 192.45 | N39: 186.55 | O39: 124206400 | P39: 3.84%
A40: 30 | B40: Banking | C40: BANKBARODA | D40: 2024-05-30 | E40: 265.15 | F40: 265.18 | G40: 261.52 | H40: 257.88 | I40: 254.22 | J40: 268.82 | K40: 272.48 | L40: 276.12 | M40: 268.85 | N40: 261.55 | O40: 186065100 | P40: -1.65%
A41: 31 | B41: FMCG | C41: BATAINDIA | D41: 2024-05-30 | E41: 1333.80 | F41: 1334.25 | G41: 1326.50 | H41: 1319.20 | I41: 1311.45 | J41: 1341.55 | K41: 1349.30 | L41: 1356.60 | M41: 1342 | N41: 1326.95 | O41: 4747125 | P41: -0.24%
A42: 32 | B42: Capital_Goods | C42: BEL | D42: 2024-05-30 | E42: 234.00 | F42: 233.32 | G42: 231.18 | H42: 228.37 | I42: 226.23 | J42: 236.13 | K42: 238.27 | L42: 241.08 | M42: 235.45 | N42: 230.5 | O42: 176873850 | P42: 2.48%
A43: 33 | B43: FMCG | C43: BERGEPAINT | D43: 2024-05-30 | E43: 483.55 | F43: 481.92 | G43: 472.63 | H43: 461.72 | I43: 452.43 | J43: 492.83 | K43: 502.12 | L43: 513.03 | M43: 491.2 | N43: 471 | O43: 25028520 | P43: 11.38%
A44: 34 | B44: Automobile | C44: BHARATFORG | D44: 2024-05-30 | E44: 1464.10 | F44: 1456.27 | G44: 1443.88 | H44: 1423.67 | I44: 1411.28 | J44: 1476.48 | K44: 1488.87 | L44: 1509.08 | M44: 1468.65 | N44: 1436.05 | O44: 6125500 | P44: -2.95%
A45: 35 | B45: Telecom | C45: BHARTIARTL | D45: 2024-05-30 | E45: 1315.70 | F45: 1307.17 | G45: 1292.18 | H45: 1268.67 | I45: 1253.68 | J45: 1330.68 | K45: 1345.67 | L45: 1369.18 | M45: 1322.15 | N45: 1283.65 | O45: 35486300 | P45: 0.62%
A46: 36 | B46: Capital_Goods | C46: BHEL | D46: 2024-05-30 | E46: 292.55 | F46: 291.88 | G46: 289.57 | H46: 286.58 | I46: 284.27 | J46: 294.87 | K46: 297.18 | L46: 300.17 | M46: 294.2 | N46: 288.9 | O46: 71512875 | P46: -1.39%
A47: 37 | B47: Pharma | C47: BIOCON | D47: 2024-05-30 | E47: 312.85 | F47: 315.08 | G47: 307.37 | H47: 301.88 | I47: 294.17 | J47: 320.57 | K47: 328.28 | L47: 333.77 | M47: 322.8 | N47: 309.6 | O47: 60137500 | P47: 8.14%
A48: 38 | B48: Automobile | C48: BOSCHLTD | D48: 2024-05-30 | E48: 30890.95 | F48: 31134.80 | G48: 30312.65 | H48: 29734.35 | I48: 28912.20 | J48: 31713.10 | K48: 32535.25 | L48: 33113.55 | M48: 31956.95 | N48: 30556.5 | O48: 379150 | P48: -1.51%
A49: 39 | B49: Oil_Gas | C49: BPCL | D49: 2024-05-30 | E49: 628.35 | F49: 623.08 | G49: 615.02 | H49: 601.68 | I49: 593.62 | J49: 636.42 | K49: 644.48 | L49: 657.82 | M49: 631.15 | N49: 609.75 | O49: 28116000 | P49: 10.64%
A50: 40 | B50: FMCG | C50: BRITANNIA | D50: 2024-05-30 | E50: 5082.05 | F50: 5108.73 | G50: 5041.62 | H50: 5001.18 | I50: 4934.07 | J50: 5149.17 | K50: 5216.28 | L50: 5256.72 | M50: 5175.85 | N50: 5068.3 | O50: 2553400 | P50: -3.26%
A51: 41 | B51: Technology | C51: BSOFT | D51: 2024-05-30 | E51: 613.75 | F51: 610.23 | G51: 604.72 | H51: 595.68 | I51: 590.17 | J51: 619.27 | K51: 624.78 | L51: 633.82 | M51: 615.75 | N51: 601.2 | O51: 14374000 | P51: -8.36%
A52: 42 | B52: Banking | C52: CANBK | D52: 2024-05-30 | E52: 119.20 | F52: 118.18 | G52: 116.72 | H52: 114.23 | I52: 112.77 | J52: 120.67 | K52: 122.13 | L52: 124.62 | M52: 119.65 | N52: 115.7 | O52: 299403000 | P52: -6.47%
A53: 43 | B53: Finance | C53: CANFINHOME | D53: 2024-05-30 | E53: 756.35 | F53: 755.57 | G53: 749.58 | H53: 742.82 | I53: 736.83 | J53: 762.33 | K53: 768.32 | L53: 775.08 | M53: 761.55 | N53: 748.8 | O53: 4287075 | P53: -2.20%
A54: 44 | B54: Chemicals | C54: CHAMBLFERT | D54: 2024-05-30 | E54: 401.50 | F54: 403.42 | G54: 398.03 | H54: 394.57 | I54: 389.18 | J54: 406.88 | K54: 412.27 | L54: 415.73 | M54: 408.8 | N54: 399.95 | O54: 12123900 | P54: 0.60%
A55: 45 | B55: Finance | C55: CHOLAFIN | D55: 2024-05-30 | E55: 1237.85 | F55: 1242.57 | G55: 1223.83 | H55: 1209.82 | I55: 1191.08 | J55: 1256.58 | K55: 1275.32 | L55: 1289.33 | M55: 1261.3 | N55: 1228.55 | O55: 8806250 | P55: 0.08%
A56: 46 | B56: Pharma | C56: CIPLA | D56: 2024-05-30 | E56: 1411.45 | F56: 1411.88 | G56: 1392.77 | H56: 1374.08 | I56: 1354.97 | J56: 1430.57 | K56: 1449.68 | L56: 1468.37 | M56: 1431 | N56: 1393.2 | O56: 12155650 | P56: 0.32%
A57: 47 | B57: Metals | C57: COALINDIA | D57: 2024-05-30 | E57: 468.90 | F57: 463.83 | G57: 456.97 | H57: 445.03 | I57: 438.17 | J57: 475.77 | K57: 482.63 | L57: 494.57 | M57: 470.7 | N57: 451.9 | O57: 53823000 | P57: -4.80%
A58: 48 | B58: Technology | C58: COFORGE | D58: 2024-05-30 | E58: 4624.15 | F58: 4607.57 | G58: 4570.13 | H58: 4516.12 | I58: 4478.68 | J58: 4661.58 | K58: 4699.02 | L58: 4753.03 | M58: 4645 | N58: 4553.55 | O58: 3898650 | P58: -0.95%
A59: 49 | B59: FMCG | C59: COLPAL | D59: 2024-05-30 | E59: 2642.85 | F59: 2700.67 | G59: 2576.28 | H59: 2509.72 | I59: 2385.33 | J59: 2767.23 | K59: 2891.62 | L59: 2958.18 | M59: 2825.05 | N59: 2634.1 | O59: 3663100 | P59: 13.54%
A60: 50 | B60: Infrastructure | C60: CONCOR | D60: 2024-05-30 | E60: 1030.30 | F60: 1031.43 | G60: 1021.87 | H60: 1013.43 | I60: 1003.87 | J60: 1039.87 | K60: 1049.43 | L60: 1057.87 | M60: 1041 | N60: 1023 | O60: 13809000 | P60: -0.02%
A61: 51 | B61: Chemicals | C61: COROMANDEL | D61: 2024-05-30 | E61: 1232.15 | F61: 1233.07 | G61: 1222.88 | H61: 1213.62 | I61: 1203.43 | J61: 1242.33 | K61: 1252.52 | L61: 1261.78 | M61: 1243.25 | N61: 1223.8 | O61: 1962100 | P61: 1.23%
A62: 52 | B62: Capital_Goods | C62: CROMPTON | D62: 2024-05-30 | E62: 338.70 | F62: 337.02 | G62: 333.08 | H62: 327.47 | I62: 323.53 | J62: 342.63 | K62: 346.57 | L62: 352.18 | M62: 340.95 | N62: 331.4 | O62: 15129000 | P62: 0.97%
A63: 53 | B63: Banking | C63: CUB | D63: 2024-05-30 | E63: 153.40 | F63: 154.02 | G63: 152.13 | H63: 150.87 | I63: 148.98 | J63: 155.28 | K63: 157.17 | L63: 158.43 | M63: 155.9 | N63: 152.75 | O63: 31305000 | P63: -0.13%
A64: 54 | B64: Capital_Goods | C64: CUMMINSIND | D64: 2024-05-30 | E64: 3670.15 | F64: 3640.87 | G64: 3591.13 | H64: 3512.12 | I64: 3462.38 | J64: 3719.88 | K64: 3769.62 | L64: 3848.63 | M64: 3690.6 | N64: 3561.85 | O64: 4176900 | P64: 6.53%
A65: 55 | B65: FMCG | C65: DABUR | D65: 2024-05-30 | E65: 546.95 | F65: 550.00 | G65: 540.95 | H65: 534.95 | I65: 525.90 | J65: 556.00 | K65: 565.05 | L65: 571.05 | M65: 559.05 | N65: 544 | O65: 21881250 | P65: -1.12%
A66: 56 | B66: Cement | C66: DALBHARAT | D66: 2024-05-30 | E66: 1764.80 | F66: 1758.28 | G66: 1746.57 | H66: 1728.33 | I66: 1716.62 | J66: 1776.52 | K66: 1788.23 | L66: 1806.47 | M66: 1770 | N66: 1740.05 | O66: 3161850 | P66: -0.02%
A67: 57 | B67: Chemicals | C67: DEEPAKNTR | D67: 2024-05-30 | E67: 2433.40 | F67: 2452.80 | G67: 2409.60 | H67: 2385.80 | I67: 2342.60 | J67: 2476.60 | K67: 2519.80 | L67: 2543.60 | M67: 2496 | N67: 2429 | O67: 1768200 | P67: 3.28%
A68: 58 | B68: Pharma | C68: DIVISLAB | D68: 2024-05-30 | E68: 3909.65 | F68: 3914.23 | G68: 3878.47 | H68: 3847.28 | I68: 3811.52 | J68: 3945.42 | K68: 3981.18 | L68: 4012.37 | M68: 3950 | N68: 3883.05 | O68: 2987000 | P68: 1.83%
A69: 59 | B69: Capital_Goods | C69: DIXON | D69: 2024-05-30 | E69: 8138.10 | F69: 8096.90 | G69: 8003.30 | H69: 7868.50 | I69: 7774.90 | J69: 8231.70 | K69: 8325.30 | L69: 8460.10 | M69: 8190.5 | N69: 7962.1 | O69: 1244200 | P69: 7.11%
A70: 60 | B70: Realty | C70: DLF | D70: 2024-05-30 | E70: 829.30 | F70: 832.08 | G70: 813.42 | H70: 797.53 | I70: 778.87 | J70: 847.97 | K70: 866.63 | L70: 882.52 | M70: 850.75 | N70: 816.2 | O70: 45824625 | P70: 3.83%
A71: 61 | B71: Pharma | C71: DRREDDY | D71: 2024-05-30 | E71: 5877.25 | F71: 5906.87 | G71: 5838.98 | H71: 5800.72 | I71: 5732.83 | J71: 5945.13 | K71: 6013.02 | L71: 6051.28 | M71: 5974.75 | N71: 5868.6 | O71: 2752750 | P71: 2.93%
A72: 62 | B72: Automobile | C72: EICHERMOT | D72: 2024-05-30 | E72: 4665.25 | F72: 4682.82 | G72: 4603.78 | H72: 4542.32 | I72: 4463.28 | J72: 4744.28 | K72: 4823.32 | L72: 4884.78 | M72: 4761.85 | N72: 4621.35 | O72: 3496325 | P72: -0.06%
A73: 63 | B73: Automobile | C73: ESCORTS | D73: 2024-05-30 | E73: 3663.05 | F73: 3649.03 | G73: 3618.07 | H73: 3573.08 | I73: 3542.12 | J73: 3694.02 | K73: 3724.98 | L73: 3769.97 | M73: 3680 | N73: 3604.05 | O73: 1336225 | P73: -4.99%
A74: 64 | B74: Automobile | C74: EXIDEIND | D74: 2024-05-30 | E74: 465.10 | F74: 463.48 | G74: 457.27 | H74: 449.43 | I74: 443.22 | J74: 471.32 | K74: 477.53 | L74: 485.37 | M74: 469.7 | N74: 455.65 | O74: 14504400 | P74: -0.27%
A75: 65 | B75: Banking | C75: FEDERALBNK | D75: 2024-05-30 | E75: 163.15 | F75: 163.55 | G75: 162.00 | H75: 160.85 | I75: 159.30 | J75: 164.70 | K75: 166.25 | L75: 167.40 | M75: 165.1 | N75: 162.4 | O75: 105480000 | P75: -1.54%
A76: 66 | B76: Oil_Gas | C76: GAIL | D76: 2024-05-30 | E76: 201.10 | F76: 201.10 | G76: 198.90 | H76: 196.70 | I76: 194.50 | J76: 203.30 | K76: 205.50 | L76: 207.70 | M76: 203.3 | N76: 198.9 | O76: 137716650 | P76: -0.82%
A77: 67 | B77: Pharma | C77: GLENMARK | D77: 2024-05-30 | E77: 1007.65 | F77: 1006.27 | G77: 989.63 | H77: 971.62 | I77: 954.98 | J77: 1024.28 | K77: 1040.92 | L77: 1058.93 | M77: 1022.9 | N77: 988.25 | O77: 11604350 | P77: -2.41%
A78: 68 | B78: Infrastructure | C78: GMRINFRA | D78: 2024-05-30 | E78: 84.00 | F78: 83.88 | G78: 83.27 | H78: 82.53 | I78: 81.92 | J78: 84.62 | K78: 85.23 | L78: 85.97 | M78: 84.5 | N78: 83.15 | O78: 233460000 | P78: -0.46%
A79: 69 | B79: Chemicals | C79: GNFC | D79: 2024-05-30 | E79: 662.30 | F79: 665.28 | G79: 655.67 | H79: 649.03 | I79: 639.42 | J79: 671.92 | K79: 681.53 | L79: 688.17 | M79: 674.9 | N79: 658.65 | O79: 6961500 | P79: -0.20%
A80: 70 | B80: FMCG | C80: GODREJCP | D80: 2024-05-30 | E80: 1297.30 | F80: 1303.83 | G80: 1286.47 | H80: 1275.63 | I80: 1258.27 | J80: 1314.67 | K80: 1332.03 | L80: 1342.87 | M80: 1321.2 | N80: 1293 | O80: 6156000 | P80: -4.60%
A81: 71 | B81: Realty | C81: GODREJPROP | D81: 2024-05-30 | E81: 2826.30 | F81: 2830.10 | G81: 2782.55 | H81: 2738.80 | I81: 2691.25 | J81: 2873.85 | K81: 2921.40 | L81: 2965.15 | M81: 2877.65 | N81: 2786.35 | O81: 3256300 | P81: -0.24%
A82: 72 | B82: Pharma | C82: GRANULES | D82: 2024-05-30 | E82: 398.80 | F82: 400.10 | G82: 388.85 | H82: 378.90 | I82: 367.65 | J82: 410.05 | K82: 421.30 | L82: 431.25 | M82: 411.35 | N82: 390.15 | O82: 14460000 | P82: 32.98%
A83: 73 | B83: Cement | C83: GRASIM | D83: 2024-05-30 | E83: 2381.70 | F83: 2388.97 | G83: 2368.03 | H83: 2354.37 | I83: 2333.43 | J83: 2402.63 | K83: 2423.57 | L83: 2437.23 | M83: 2409.9 | N83: 2375.3 | O83: 7401882 | P83: 0.04%
A84: 74 | B84: Oil_Gas | C84: GUJGASLTD | D84: 2024-05-30 | E84: 542.45 | F84: 544.93 | G84: 538.17 | H84: 533.88 | I84: 527.12 | J84: 549.22 | K84: 555.98 | L84: 560.27 | M84: 551.7 | N84: 540.65 | O84: 6431250 | P84: -0.12%
A85: 75 | B85: Capital_Goods | C85: HAL | D85: 2024-05-30 | E85: 4198.75 | F85: 4156.45 | G85: 4106.35 | H85: 4013.95 | I85: 3963.85 | J85: 4248.85 | K85: 4298.95 | L85: 4391.35 | M85: 4206.55 | N85: 4064.05 | O85: 8785800 | P85: 0.63%
A86: 76 | B86: Capital_Goods | C86: HAVELLS | D86: 2024-05-30 | E86: 1756.60 | F86: 1750.20 | G86: 1740.40 | H86: 1724.20 | I86: 1714.40 | J86: 1766.40 | K86: 1776.20 | L86: 1792.40 | M86: 1760 | N86: 1734 | O86: 5274000 | P86: -3.21%
A87: 77 | B87: Technology | C87: HCLTECH | D87: 2024-05-30 | E87: 1337.50 | F87: 1334.65 | G87: 1326.30 | H87: 1315.10 | I87: 1306.75 | J87: 1345.85 | K87: 1354.20 | L87: 1365.40 | M87: 1343 | N87: 1323.45 | O87: 24763900 | P87: -2.74%
A88: 78 | B88: Finance | C88: HDFCAMC | D88: 2024-05-30 | E88: 3766.15 | F88: 3735.53 | G88: 3696.07 | H88: 3625.98 | I88: 3586.52 | J88: 3805.62 | K88: 3845.08 | L88: 3915.17 | M88: 3775 | N88: 3665.45 | O88: 2898900 | P88: -2.53%
A89: 79 | B89: Banking | C89: HDFCBANK | D89: 2024-05-30 | E89: 1448.10 | F89: 1453.72 | G89: 1438.38 | H89: 1428.67 | I89: 1413.33 | J89: 1463.43 | K89: 1478.77 | L89: 1488.48 | M89: 1469.05 | N89: 1444 | O89: 207046400 | P89: 4.77%
A90: 80 | B90: Finance | C90: HDFCLIFE | D90: 2024-05-30 | E90: 558.05 | F90: 559.53 | G90: 554.77 | H90: 551.48 | I90: 546.72 | J90: 562.82 | K90: 567.58 | L90: 570.87 | M90: 564.3 | N90: 556.25 | O90: 44929500 | P90: 0.27%
A91: 81 | B91: Automobile | C91: HEROMOTOCO | D91: 2024-05-30 | E91: 5067.20 | F91: 5071.20 | G91: 5028.40 | H91: 4989.60 | I91: 4946.80 | J91: 5110.00 | K91: 5152.80 | L91: 5191.60 | M91: 5114 | N91: 5032.4 | O91: 4412550 | P91: -4.67%
A92: 82 | B92: Metals | C92: HINDALCO | D92: 2024-05-30 | E92: 657.15 | F92: 656.42 | G92: 652.23 | H92: 647.32 | I92: 643.13 | J92: 661.33 | K92: 665.52 | L92: 670.43 | M92: 660.6 | N92: 651.5 | O92: 52374000 | P92: -1.44%
A93: 83 | B93: Metals | C93: HINDCOPPER | D93: 2024-05-30 | E93: 383.60 | F93: 384.53 | G93: 379.07 | H93: 374.53 | I93: 369.07 | J93: 389.07 | K93: 394.53 | L93: 399.07 | M93: 390 | N93: 380 | O93: 32886500 | P93: -3.00%
A94: 84 | B94: Oil_Gas | C94: HINDPETRO | D94: 2024-05-30 | E94: 509.35 | F94: 506.02 | G94: 501.03 | H94: 492.72 | I94: 487.73 | J94: 514.33 | K94: 519.32 | L94: 527.63 | M94: 511 | N94: 497.7 | O94: 28718550 | P94: 1.63%
A95: 85 | B95: FMCG | C95: HINDUNILVR | D95: 2024-05-30 | E95: 2333.00 | F95: 2340.90 | G95: 2321.10 | H95: 2309.20 | I95: 2289.40 | J95: 2352.80 | K95: 2372.60 | L95: 2384.50 | M95: 2360.7 | N95: 2329 | O95: 17709000 | P95: -1.20%
A96: 86 | B96: Banking | C96: ICICIBANK | D96: 2024-05-30 | E96: 1129.05 | F96: 1126.28 | G96: 1121.57 | H96: 1114.08 | I96: 1109.37 | J96: 1133.77 | K96: 1138.48 | L96: 1145.97 | M96: 1131 | N96: 1118.8 | O96: 82103700 | P96: -1.75%
A97: 87 | B97: Finance | C97: ICICIGI | D97: 2024-05-30 | E97: 1660.60 | F97: 1669.83 | G97: 1647.62 | H97: 1634.63 | I97: 1612.42 | J97: 1682.82 | K97: 1705.03 | L97: 1718.02 | M97: 1692.05 | N97: 1656.85 | O97: 3555500 | P97: 0.68%
A98: 88 | B98: Finance | C98: ICICIPRULI | D98: 2024-05-30 | E98: 579.95 | F98: 584.63 | G98: 572.22 | H98: 564.48 | I98: 552.07 | J98: 592.37 | K98: 604.78 | L98: 612.52 | M98: 597.05 | N98: 576.9 | O98: 15436500 | P98: -0.19%
A99: 89 | B99: Telecom | C99: IDEA | D99: 2024-05-30 | E99: 13.25 | F99: 13.27 | G99: 13.13 | H99: 13.02 | I99: 12.88 | J99: 13.38 | K99: 13.52 | L99: 13.63 | M99: 13.4 | N99: 13.15 | O99: 3396080000 | P99: -0.31%
A100: 90 | B100: Finance | C100: IDFC | D100: 2024-05-30 | E100: 113.80 | F100: 114.15 | G100: 113.00 | H100: 112.20 | I100: 111.05 | J100: 114.95 | K100: 116.10 | L100: 116.90 | M100: 115.3 | N100: 113.35 | O100: 93425000 | P100: 0.01%
A101: 91 | B101: Banking | C101: IDFCFIRSTB | D101: 2024-05-30 | E101: 77.15 | F101: 77.33 | G101: 76.57 | H101: 75.98 | I101: 75.22 | J101: 77.92 | K101: 78.68 | L101: 79.27 | M101: 78.1 | N101: 76.75 | O101: 401122500 | P101: 1.49%
A102: 92 | B102: Power | C102: IEX | D102: 2024-05-30 | E102: 146.05 | F102: 146.37 | G102: 144.53 | H102: 143.02 | I102: 141.18 | J102: 147.88 | K102: 149.72 | L102: 151.23 | M102: 148.2 | N102: 144.85 | O102: 70871250 | P102: 0.69%
A103: 93 | B103: Oil_Gas | C103: IGL | D103: 2024-05-30 | E103: 440.50 | F103: 440.92 | G103: 433.73 | H103: 426.97 | I103: 419.78 | J103: 447.68 | K103: 454.87 | L103: 461.63 | M103: 448.1 | N103: 434.15 | O103: 24908125 | P103: -0.01%
A104: 94 | B104: Infrastructure | C104: INDHOTEL | D104: 2024-05-30 | E104: 563.65 | F104: 565.57 | G104: 559.63 | H104: 555.62 | I104: 549.68 | J104: 569.58 | K104: 575.52 | L104: 579.53 | M104: 571.5 | N104: 561.55 | O104: 21165000 | P104: 0.22%
A105: 95 | B105: Cement | C105: INDIACEM | D105: 2024-05-30 | E105: 209.05 | F105: 210.43 | G105: 207.07 | H105: 205.08 | I105: 201.72 | J105: 212.42 | K105: 215.78 | L105: 217.77 | M105: 213.8 | N105: 208.45 | O105: 26819200 | P105: 6.79%
A106: 96 | B106: FMCG | C106: INDIAMART | D106: 2024-05-30 | E106: 2630.80 | F106: 2638.97 | G106: 2617.63 | H106: 2604.47 | I106: 2583.13 | J106: 2652.13 | K106: 2673.47 | L106: 2686.63 | M106: 2660.3 | N106: 2625.8 | O106: 1644000 | P106: -0.45%
A107: 97 | B107: Infrastructure | C107: INDIGO | D107: 2024-05-30 | E107: 4301.40 | F107: 4255.95 | G107: 4186.90 | H107: 4072.40 | I107: 4003.35 | J107: 4370.45 | K107: 4439.50 | L107: 4554.00 | M107: 4325 | N107: 4141.45 | O107: 4714800 | P107: 5.86%
A108: 98 | B108: Banking | C108: INDUSINDBK | D108: 2024-05-30 | E108: 1422.80 | F108: 1424.20 | G108: 1412.60 | H108: 1402.40 | I108: 1390.80 | J108: 1434.40 | K108: 1446.00 | L108: 1456.20 | M108: 1435.8 | N108: 1414 | O108: 27625000 | P108: 0.35%
A109: 99 | B109: Telecom | C109: INDUSTOWER | D109: 2024-05-30 | E109: 342.05 | F109: 343.52 | G109: 338.68 | H109: 335.32 | I109: 330.48 | J109: 346.88 | K109: 351.72 | L109: 355.08 | M109: 348.35 | N109: 340.15 | O109: 74232200 | P109: 2.18%
A110: 100 | B110: Technology | C110: INFY | D110: 2024-05-30 | E110: 1426.60 | F110: 1429.95 | G110: 1422.05 | H110: 1417.50 | I110: 1409.60 | J110: 1434.50 | K110: 1442.40 | L110: 1446.95 | M110: 1437.85 | N110: 1425.4 | O110: 51610400 | P110: 1.32%
A111: 101 | B111: Oil_Gas | C111: IOC | D111: 2024-05-30 | E111: 162.45 | F111: 161.97 | G111: 160.83 | H111: 159.22 | I111: 158.08 | J111: 163.58 | K111: 164.72 | L111: 166.33 | M111: 163.1 | N111: 160.35 | O111: 194156625 | P111: 0.98%
A112: 102 | B112: Pharma | C112: IPCALAB | D112: 2024-05-30 | E112: 1283.00 | F112: 1284.53 | G112: 1269.27 | H112: 1255.53 | I112: 1240.27 | J112: 1298.27 | K112: 1313.53 | L112: 1327.27 | M112: 1299.8 | N112: 1270.8 | O112: 1613300 | P112: -3.57%
A113: 103 | B113: Infrastructure | C113: IRCTC | D113: 2024-05-30 | E113: 1033.25 | F113: 1033.43 | G113: 1023.87 | H113: 1014.48 | I113: 1004.92 | J113: 1042.82 | K113: 1052.38 | L113: 1061.77 | M113: 1043 | N113: 1024.05 | O113: 15920625 | P113: -0.08%
A114: 104 | B114: FMCG | C114: ITC | D114: 2024-05-30 | E114: 429.50 | F114: 430.88 | G114: 427.02 | H114: 424.53 | I114: 420.67 | J114: 433.37 | K114: 437.23 | L114: 439.72 | M114: 434.75 | N114: 428.4 | O114: 131294400 | P114: 1.84%
A115: 105 | B115: Metals | C115: JINDALSTEL | D115: 2024-05-30 | E115: 998.00 | F115: 992.93 | G115: 983.77 | H115: 969.53 | I115: 960.37 | J115: 1007.17 | K115: 1016.33 | L115: 1030.57 | M115: 1002.1 | N115: 978.7 | O115: 12515000 | P115: 0.52%
A116: 106 | B116: Cement | C116: JKCEMENT | D116: 2024-05-30 | E116: 3890.00 | F116: 3865.18 | G116: 3824.87 | H116: 3759.73 | I116: 3719.42 | J116: 3930.32 | K116: 3970.63 | L116: 4035.77 | M116: 3905.5 | N116: 3800.05 | O116: 587375 | P116: -9.11%
A117: 107 | B117: Metals | C117: JSWSTEEL | D117: 2024-05-30 | E117: 874.75 | F117: 878.55 | G117: 863.65 | H117: 852.55 | I117: 837.65 | J117: 889.65 | K117: 904.55 | L117: 915.65 | M117: 893.45 | N117: 867.45 | O117: 17080875 | P117: 2.81%
A118: 108 | B118: FMCG | C118: JUBLFOOD | D118: 2024-05-30 | E118: 468.75 | F118: 470.77 | G118: 464.18 | H118: 459.62 | I118: 453.03 | J118: 475.33 | K118: 481.92 | L118: 486.48 | M118: 477.35 | N118: 466.2 | O118: 22173750 | P118: -0.73%
A119: 109 | B119: Banking | C119: KOTAKBANK | D119: 2024-05-30 | E119: 1654.50 | F119: 1651.55 | G119: 1644.40 | H119: 1634.30 | I119: 1627.15 | J119: 1661.65 | K119: 1668.80 | L119: 1678.90 | M119: 1658.7 | N119: 1641.45 | O119: 52407200 | P119: -1.93%
A120: 110 | B120: Finance | C120: LTF | D120: 2024-05-30 | E120: 158.80 | F120: 159.95 | G120: 156.40 | H120: 154.00 | I120: 150.45 | J120: 162.35 | K120: 165.90 | L120: 168.30 | M120: 163.5 | N120: 157.55 | O120: 45646260 | P120: 3.49%
A121: 111 | B121: Pharma | C121: LALPATHLAB | D121: 2024-05-30 | E121: 2484.95 | F121: 2503.45 | G121: 2462.50 | H121: 2440.05 | I121: 2399.10 | J121: 2525.90 | K121: 2566.85 | L121: 2589.30 | M121: 2544.4 | N121: 2481 | O121: 1746000 | P121: -0.85%
A122: 112 | B122: Pharma | C122: LAURUSLABS | D122: 2024-05-30 | E122: 438.35 | F122: 437.53 | G122: 433.27 | H122: 428.18 | I122: 423.92 | J122: 442.62 | K122: 446.88 | L122: 451.97 | M122: 441.8 | N122: 432.45 | O122: 13856700 | P122: -0.85%
A123: 113 | B123: Finance | C123: LICHSGFIN | D123: 2024-05-30 | E123: 632.00 | F123: 633.17 | G123: 623.83 | H123: 615.67 | I123: 606.33 | J123: 641.33 | K123: 650.67 | L123: 658.83 | M123: 642.5 | N123: 625 | O123: 35900000 | P123: 3.47%
A124: 114 | B124: Capital_Goods | C124: LT | D124: 2024-05-30 | E124: 3421.25 | F124: 3402.32 | G124: 3378.98 | H124: 3336.72 | I124: 3313.38 | J124: 3444.58 | K124: 3467.92 | L124: 3510.18 | M124: 3425.65 | N124: 3360.05 | O124: 17136750 | P124: -4.83%
A125: 115 | B125: Technology | C125: LTIM | D125: 2024-05-30 | E125: 4661.30 | F125: 4666.35 | G125: 4639.20 | H125: 4617.10 | I125: 4589.95 | J125: 4688.45 | K125: 4715.60 | L125: 4737.70 | M125: 4693.5 | N125: 4644.25 | O125: 3854700 | P125: 1.90%
A126: 116 | B126: Technology | C126: LTTS | D126: 2024-05-30 | E126: 4432.80 | F126: 4458.83 | G126: 4392.67 | H126: 4352.53 | I126: 4286.37 | J126: 4498.97 | K126: 4565.13 | L126: 4605.27 | M126: 4525 | N126: 4418.7 | O126: 1795600 | P126: 2.82%
A127: 117 | B127: Pharma | C127: LUPIN | D127: 2024-05-30 | E127: 1642.35 | F127: 1637.95 | G127: 1631.25 | H127: 1620.15 | I127: 1613.45 | J127: 1649.05 | K127: 1655.75 | L127: 1666.85 | M127: 1644.65 | N127: 1626.85 | O127: 7007825 | P127: 0.74%
A128: 118 | B128: Automobile | C128: M&M | D128: 2024-05-30 | E128: 2307.65 | F128: 2298.45 | G128: 2275.20 | H128: 2242.75 | I128: 2219.50 | J128: 2330.90 | K128: 2354.15 | L128: 2386.60 | M128: 2321.7 | N128: 2266 | O128: 13516650 | P128: -2.03%
A129: 119 | B129: Finance | C129: M&MFIN | D129: 2024-05-30 | E129: 262.95 | F129: 262.88 | G129: 260.32 | H129: 257.68 | I129: 255.12 | J129: 265.52 | K129: 268.08 | L129: 270.72 | M129: 265.45 | N129: 260.25 | O129: 38006000 | P129: 1.04%
A130: 120 | B130: Finance | C130: MANAPPURAM | D130: 2024-05-30 | E130: 180.30 | F130: 179.77 | G130: 177.33 | H130: 174.37 | I130: 171.93 | J130: 182.73 | K130: 185.17 | L130: 188.13 | M130: 182.2 | N130: 176.8 | O130: 52224000 | P130: -3.36%
A131: 121 | B131: FMCG | C131: MARICO | D131: 2024-05-30 | E131: 592.85 | F131: 595.35 | G131: 585.70 | H131: 578.55 | I131: 568.90 | J131: 602.50 | K131: 612.15 | L131: 619.30 | M131: 605 | N131: 588.2 | O131: 15181200 | P131: -3.45%
A132: 122 | B132: Automobile | C132: MARUTI | D132: 2024-05-30 | E132: 12827.50 | F132: 12830.65 | G132: 12741.85 | H132: 12656.20 | I132: 12567.40 | J132: 12916.30 | K132: 13005.10 | L132: 13090.75 | M132: 12919.45 | N132: 12745 | O132: 2453050 | P132: -1.92%
A133: 123 | B133: FMCG | C133: MCDOWELL-N | D133: 2024-05-30 | E133: 1178.85 | F133: 1179.92 | G133: 1169.88 | H133: 1160.92 | I133: 1150.88 | J133: 1188.88 | K133: 1198.92 | L133: 1207.88 | M133: 1189.95 | N133: 1170.95 | O133: 10782800 | P133: 1.30%
A134: 124 | B134: Technology | C134: MCX | D134: 2024-05-30 | E134: 3907.20 | F134: 3923.87 | G134: 3875.73 | H134: 3844.27 | I134: 3796.13 | J134: 3955.33 | K134: 4003.47 | L134: 4034.93 | M134: 3972 | N134: 3892.4 | O134: 2387000 | P134: 0.67%
A135: 125 | B135: Pharma | C135: METROPOLIS | D135: 2024-05-30 | E135: 1851.60 | F135: 1838.62 | G135: 1816.33 | H135: 1781.07 | I135: 1758.78 | J135: 1873.88 | K135: 1896.17 | L135: 1931.43 | M135: 1860.9 | N135: 1803.35 | O135: 1670400 | P135: 11.54%
A136: 126 | B136: Finance | C136: MFSL | D136: 2024-05-30 | E136: 1002.65 | F136: 996.13 | G136: 987.67 | H136: 972.68 | I136: 964.22 | J136: 1011.12 | K136: 1019.58 | L136: 1034.57 | M136: 1004.6 | N136: 981.15 | O136: 6528000 | P136: -4.23%
A137: 127 | B137: Oil_Gas | C137: MGL | D137: 2024-05-30 | E137: 1289.65 | F137: 1301.72 | G137: 1270.18 | H137: 1250.72 | I137: 1219.18 | J137: 1321.18 | K137: 1352.72 | L137: 1372.18 | M137: 1333.25 | N137: 1282.25 | O137: 2422400 | P137: 5.89%
A138: 128 | B138: Automobile | C138: MOTHERSON | D138: 2024-05-30 | E138: 126.85 | F138: 127.05 | G138: 125.55 | H138: 124.25 | I138: 122.75 | J138: 128.35 | K138: 129.85 | L138: 131.15 | M138: 128.55 | N138: 125.75 | O138: 135688100 | P138: -0.35%
A139: 129 | B139: Technology | C139: MPHASIS | D139: 2024-05-30 | E139: 2285.70 | F139: 2300.03 | G139: 2267.07 | H139: 2248.43 | I139: 2215.47 | J139: 2318.67 | K139: 2351.63 | L139: 2370.27 | M139: 2333 | N139: 2281.4 | O139: 3293125 | P139: 4.16%
A140: 130 | B140: Automobile | C140: MRF | D140: 2024-05-30 | E140: 127897.90 | F140: 128100.28 | G140: 127217.02 | H140: 126536.13 | I140: 125652.87 | J140: 128781.17 | K140: 129664.43 | L140: 130345.32 | M140: 128983.55 | N140: 127419.4 | O140: 65100 | P140: 0.72%
A141: 131 | B141: Finance | C141: MUTHOOTFIN | D141: 2024-05-30 | E141: 1674.55 | F141: 1675.95 | G141: 1663.10 | H141: 1651.65 | I141: 1638.80 | J141: 1687.40 | K141: 1700.25 | L141: 1711.70 | M141: 1688.8 | N141: 1664.5 | O141: 5815150 | P141: -4.02%
A142: 132 | B142: Metals | C142: NATIONALUM | D142: 2024-05-30 | E142: 190.45 | F142: 191.10 | G142: 187.95 | H142: 185.45 | I142: 182.30 | J142: 193.60 | K142: 196.75 | L142: 199.25 | M142: 194.25 | N142: 188.6 | O142: 98246250 | P142: -0.24%
A143: 133 | B143: Technology | C143: NAUKRI | D143: 2024-05-30 | E143: 5960.75 | F143: 5965.63 | G143: 5875.12 | H143: 5789.48 | I143: 5698.97 | J143: 6051.27 | K143: 6141.78 | L143: 6227.42 | M143: 6056.15 | N143: 5880 | O143: 1584000 | P143: 0.72%
A144: 134 | B144: Chemicals | C144: NAVINFLUOR | D144: 2024-05-30 | E144: 3331.30 | F144: 3362.92 | G144: 3276.03 | H144: 3220.77 | I144: 3133.88 | J144: 3418.18 | K144: 3505.07 | L144: 3560.33 | M144: 3449.8 | N144: 3307.65 | O144: 2128475 | P144: -1.59%
A145: 135 | B145: FMCG | C145: NESTLEIND | D145: 2024-05-30 | E145: 2474.50 | F145: 2484.15 | G145: 2459.45 | H145: 2444.40 | I145: 2419.70 | J145: 2499.20 | K145: 2523.90 | L145: 2538.95 | M145: 2508.85 | N145: 2469.1 | O145: 5761000 | P145: 2.90%
A146: 136 | B146: Metals | C146: NMDC | D146: 2024-05-30 | E146: 267.90 | F146: 268.10 | G146: 265.95 | H146: 264.00 | I146: 261.85 | J146: 270.05 | K146: 272.20 | L146: 274.15 | M146: 270.25 | N146: 266.15 | O146: 74898000 | P146: -0.40%
A147: 137 | B147: Power | C147: NTPC | D147: 2024-05-30 | E147: 362.40 | F147: 361.47 | G147: 358.58 | H147: 354.77 | I147: 351.88 | J147: 365.28 | K147: 368.17 | L147: 371.98 | M147: 364.35 | N147: 357.65 | O147: 93061500 | P147: -0.93%
A148: 138 | B148: Realty | C148: OBEROIRLTY | D148: 2024-05-30 | E148: 1579.30 | F148: 1585.03 | G148: 1534.22 | H148: 1489.13 | I148: 1438.32 | J148: 1630.12 | K148: 1680.93 | L148: 1726.02 | M148: 1635.85 | N148: 1539.95 | O148: 5306700 | P148: 0.24%
A149: 139 | B149: Technology | C149: OFSS | D149: 2024-05-30 | E149: 7813.20 | F149: 7866.13 | G149: 7749.12 | H149: 7685.03 | I149: 7568.02 | J149: 7930.22 | K149: 8047.23 | L149: 8111.32 | M149: 7983.15 | N149: 7802.05 | O149: 859300 | P149: 0.83%
A150: 140 | B150: Oil_Gas | C150: ONGC | D150: 2024-05-30 | E150: 274.85 | F150: 275.28 | G150: 273.17 | H150: 271.48 | I150: 269.37 | J150: 276.97 | K150: 279.08 | L150: 280.77 | M150: 277.4 | N150: 273.6 | O150: 76208825 | P150: 0.74%
A151: 141 | B151: Textile | C151: PAGEIND | D151: 2024-05-30 | E151: 34951.75 | F151: 34993.97 | G151: 34697.78 | H151: 34443.82 | I151: 34147.63 | J151: 35247.93 | K151: 35544.12 | L151: 35798.08 | M151: 35290.15 | N151: 34740 | O151: 181560 | P151: 1.82%
A152: 142 | B152: Pharma | C152: PEL | D152: 2024-05-30 | E152: 826.90 | F152: 832.15 | G152: 818.35 | H152: 809.80 | I152: 796.00 | J152: 840.70 | K152: 854.50 | L152: 863.05 | M152: 845.95 | N152: 823.6 | O152: 12852000 | P152: -1.83%
A153: 143 | B153: Technology | C153: PERSISTENT | D153: 2024-05-30 | E153: 3486.10 | F153: 3468.32 | G153: 3442.13 | H153: 3398.17 | I153: 3371.98 | J153: 3512.28 | K153: 3538.47 | L153: 3582.43 | M153: 3494.5 | N153: 3424.35 | O153: 3144800 | P153: -7.12%
A154: 144 | B154: Oil_Gas | C154: PETRONET | D154: 2024-05-30 | E154: 308.50 | F154: 307.47 | G154: 304.93 | H154: 301.37 | I154: 298.83 | J154: 311.03 | K154: 313.57 | L154: 317.13 | M154: 310 | N154: 303.9 | O154: 47826000 | P154: 2.02%
A155: 145 | B155: Finance | C155: PFC | D155: 2024-05-30 | E155: 438.00 | F155: 434.92 | G155: 427.13 | H155: 416.27 | I155: 408.48 | J155: 445.78 | K155: 453.57 | L155: 464.43 | M155: 442.7 | N155: 424.05 | O155: 79620450 | P155: -1.99%
A156: 146 | B156: FMCG | C156: PIDILITIND | D156: 2024-05-30 | E156: 2995.00 | F156: 2988.63 | G156: 2967.92 | H156: 2940.83 | I156: 2920.12 | J156: 3015.72 | K156: 3036.43 | L156: 3063.52 | M156: 3009.35 | N156: 2961.55 | O156: 2087000 | P156: 0.08%
A157: 147 | B157: Chemicals | C157: PIIND | D157: 2024-05-30 | E157: 3667.95 | F157: 3681.85 | G157: 3605.75 | H157: 3543.55 | I157: 3467.45 | J157: 3744.05 | K157: 3820.15 | L157: 3882.35 | M157: 3757.95 | N157: 3619.65 | O157: 2064750 | P157: 13.70%
A158: 148 | B158: Banking | C158: PNB | D158: 2024-05-30 | E158: 124.90 | F158: 125.93 | G158: 123.42 | H158: 121.93 | I158: 119.42 | J158: 127.42 | K158: 129.93 | L158: 131.42 | M158: 128.45 | N158: 124.45 | O158: 319736000 | P158: 7.46%
A159: 149 | B159: Capital_Goods | C159: POLYCAB | D159: 2024-05-30 | E159: 6491.75 | F159: 6452.25 | G159: 6345.50 | H159: 6199.25 | I159: 6092.50 | J159: 6598.50 | K159: 6705.25 | L159: 6851.50 | M159: 6559 | N159: 6306 | O159: 2140975 | P159: -2.44%
A160: 150 | B160: Power | C160: POWERGRID | D160: 2024-05-30 | E160: 315.80 | F160: 314.13 | G160: 311.27 | H160: 306.73 | I160: 303.87 | J160: 318.67 | K160: 321.53 | L160: 326.07 | M160: 317 | N160: 309.6 | O160: 60768000 | P160: -0.22%
A161: 151 | B161: Media | C161: PVRINOX | D161: 2024-05-30 | E161: 1289.70 | F161: 1289.53 | G161: 1275.27 | H161: 1260.83 | I161: 1246.57 | J161: 1303.97 | K161: 1318.23 | L161: 1332.67 | M161: 1303.8 | N161: 1275.1 | O161: 6236054 | P161: 1.68%
A162: 152 | B162: Cement | C162: RAMCOCEM | D162: 2024-05-30 | E162: 765.20 | F162: 767.95 | G162: 759.25 | H162: 753.30 | I162: 744.60 | J162: 773.90 | K162: 782.60 | L162: 788.55 | M162: 776.65 | N162: 762 | O162: 9453700 | P162: 1.69%
A163: 153 | B163: Banking | C163: RBLBANK | D163: 2024-05-30 | E163: 250.30 | F163: 251.18 | G163: 248.82 | H163: 247.33 | I163: 244.97 | J163: 252.67 | K163: 255.03 | L163: 256.52 | M163: 253.55 | N163: 249.7 | O163: 55550000 | P163: -0.40%
A164: 154 | B164: Finance | C164: RECLTD | D164: 2024-05-30 | E164: 530.25 | F164: 530.57 | G164: 523.38 | H164: 516.52 | I164: 509.33 | J164: 537.43 | K164: 544.62 | L164: 551.48 | M164: 537.75 | N164: 523.7 | O164: 49384000 | P164: -2.04%
A165: 155 | B165: Oil_Gas | C165: RELIANCE | D165: 2024-05-30 | E165: 2845.05 | F165: 2851.25 | G165: 2833.95 | H165: 2822.85 | I165: 2805.55 | J165: 2862.35 | K165: 2879.65 | L165: 2890.75 | M165: 2868.55 | N165: 2840.15 | O165: 41024000 | P165: -0.45%
A166: 156 | B166: Metals | C166: SAIL | D166: 2024-05-30 | E166: 167.05 | F166: 167.25 | G166: 165.50 | H166: 163.95 | I166: 162.20 | J166: 168.80 | K166: 170.55 | L166: 172.10 | M166: 169 | N166: 165.7 | O166: 176228000 | P166: -0.97%
A167: 157 | B167: Finance | C167: SBICARD | D167: 2024-05-30 | E167: 713.45 | F167: 716.50 | G167: 709.75 | H167: 706.05 | I167: 699.30 | J167: 720.20 | K167: 726.95 | L167: 730.65 | M167: 723.25 | N167: 712.8 | O167: 19742400 | P167: 1.41%
A168: 158 | B168: Finance | C168: SBILIFE | D168: 2024-05-30 | E168: 1436.65 | F168: 1438.63 | G168: 1430.32 | H168: 1423.98 | I168: 1415.67 | J168: 1444.97 | K168: 1453.28 | L168: 1459.62 | M168: 1446.95 | N168: 1432.3 | O168: 9421125 | P168: -0.54%
A169: 159 | B169: Banking | C169: SBIN | D169: 2024-05-30 | E169: 810.55 | F169: 811.17 | G169: 807.03 | H169: 803.52 | I169: 799.38 | J169: 814.68 | K169: 818.82 | L169: 822.33 | M169: 815.3 | N169: 807.65 | O169: 105634500 | P169: -0.80%
A170: 160 | B170: Cement | C170: SHREECEM | D170: 2024-05-30 | E170: 25883.30 | F170: 26145.07 | G170: 25441.13 | H170: 24998.97 | I170: 24295.03 | J170: 26587.23 | K170: 27291.17 | L170: 27733.33 | M170: 26849 | N170: 25702.9 | O170: 412825 | P170: -12.70%
A171: 161 | B171: Capital_Goods | C171: SIEMENS | D171: 2024-05-30 | E171: 7138.60 | F171: 7112.97 | G171: 6958.63 | H171: 6778.67 | I171: 6624.33 | J171: 7292.93 | K171: 7447.27 | L171: 7627.23 | M171: 7267.3 | N171: 6933 | O171: 1777650 | P171: -7.84%
A172: 162 | B172: Textile | C172: SRF | D172: 2024-05-30 | E172: 2293.30 | F172: 2302.32 | G172: 2278.68 | H172: 2264.07 | I172: 2240.43 | J172: 2316.93 | K172: 2340.57 | L172: 2355.18 | M172: 2325.95 | N172: 2287.7 | O172: 5308875 | P172: -2.10%
A173: 163 | B173: Finance | C173: SHRIRAMFIN | D173: 2024-05-30 | E173: 2327.00 | F173: 2331.72 | G173: 2304.43 | H173: 2281.87 | I173: 2254.58 | J173: 2354.28 | K173: 2381.57 | L173: 2404.13 | M173: 2359 | N173: 2309.15 | O173: 7216500 | P173: 0.56%
A174: 164 | B174: Pharma | C174: SUNPHARMA | D174: 2024-05-30 | E174: 1533.50 | F174: 1538.28 | G174: 1520.37 | H174: 1507.23 | I174: 1489.32 | J174: 1551.42 | K174: 1569.33 | L174: 1582.47 | M174: 1556.2 | N174: 1525.15 | O174: 14338100 | P174: -1.17%
A175: 165 | B175: Media | C175: SUNTV | D175: 2024-05-30 | E175: 664.00 | F175: 666.80 | G175: 658.10 | H175: 652.20 | I175: 643.50 | J175: 672.70 | K175: 681.40 | L175: 687.30 | M175: 675.5 | N175: 660.9 | O175: 8253000 | P175: -2.91%
A176: 166 | B176: Pharma | C176: SYNGENE | D176: 2024-05-30 | E176: 674.90 | F176: 674.28 | G176: 671.12 | H176: 667.33 | I176: 664.17 | J176: 678.07 | K176: 681.23 | L176: 685.02 | M176: 677.45 | N176: 670.5 | O176: 7338000 | P176: -2.03%
A177: 167 | B177: Chemicals | C177: TATACHEM | D177: 2024-05-30 | E177: 1074.90 | F177: 1083.27 | G177: 1061.68 | H177: 1048.47 | I177: 1026.88 | J177: 1096.48 | K177: 1118.07 | L177: 1131.28 | M177: 1104.85 | N177: 1070.05 | O177: 12837550 | P177: 4.05%
A178: 168 | B178: Telecom | C178: TATACOMM | D178: 2024-05-30 | E178: 1773.05 | F178: 1771.50 | G178: 1759.00 | H178: 1744.95 | I178: 1732.45 | J178: 1785.55 | K178: 1798.05 | L178: 1812.10 | M178: 1784 | N178: 1757.45 | O178: 7445500 | P178: -0.12%
A179: 169 | B179: FMCG | C179: TATACONSUM | D179: 2024-05-30 | E179: 1067.30 | F179: 1073.45 | G179: 1058.05 | H179: 1048.80 | I179: 1033.40 | J179: 1082.70 | K179: 1098.10 | L179: 1107.35 | M179: 1088.85 | N179: 1064.2 | O179: 12477600 | P179: 4.13%
A180: 170 | B180: Automobile | C180: TATAMOTORS | D180: 2024-05-30 | E180: 951.40 | F180: 958.05 | G180: 942.55 | H180: 933.70 | I180: 918.20 | J180: 966.90 | K180: 982.40 | L180: 991.25 | M180: 973.55 | N180: 949.2 | O180: 89125625 | P180: 4.88%
A181: 171 | B181: Power | C181: TATAPOWER | D181: 2024-05-30 | E181: 433.40 | F181: 435.73 | G181: 429.77 | H181: 426.13 | I181: 420.17 | J181: 439.37 | K181: 445.33 | L181: 448.97 | M181: 441.7 | N181: 432.1 | O181: 94423050 | P181: 1.04%
A182: 172 | B182: Metals | C182: TATASTEEL | D182: 2024-05-30 | E182: 166.40 | F182: 166.88 | G182: 165.32 | H182: 164.23 | I182: 162.67 | J182: 167.97 | K182: 169.53 | L182: 170.62 | M182: 168.45 | N182: 165.8 | O182: 267470500 | P182: 1.07%
A183: 173 | B183: Technology | C183: TCS | D183: 2024-05-30 | E183: 3871.75 | F183: 3883.22 | G183: 3852.53 | H183: 3833.32 | I183: 3802.63 | J183: 3902.43 | K183: 3933.12 | L183: 3952.33 | M183: 3913.9 | N183: 3864 | O183: 13595575 | P183: 0.34%
A184: 174 | B184: Technology | C184: TECHM | D184: 2024-05-30 | E184: 1278.10 | F184: 1278.67 | G184: 1268.93 | H184: 1259.77 | I184: 1250.03 | J184: 1287.83 | K184: 1297.57 | L184: 1306.73 | M184: 1288.4 | N184: 1269.5 | O184: 17094600 | P184: -0.28%
A185: 175 | B185: FMCG | C185: TITAN | D185: 2024-05-30 | E185: 3284.95 | F185: 3294.73 | G185: 3264.27 | H185: 3243.58 | I185: 3213.12 | J185: 3315.42 | K185: 3345.88 | L185: 3366.57 | M185: 3325.2 | N185: 3274.05 | O185: 8271375 | P185: 0.33%
A186: 176 | B186: Pharma | C186: TORNTPHARM | D186: 2024-05-30 | E186: 2658.65 | F186: 2652.58 | G186: 2636.17 | H186: 2613.68 | I186: 2597.27 | J186: 2675.07 | K186: 2691.48 | L186: 2713.97 | M186: 2669 | N186: 2630.1 | O186: 1380000 | P186: 0.95%
A187: 177 | B187: Textile | C187: TRENT | D187: 2024-05-30 | E187: 4533.35 | F187: 4545.03 | G187: 4502.07 | H187: 4470.78 | I187: 4427.82 | J187: 4576.32 | K187: 4619.28 | L187: 4650.57 | M187: 4588 | N187: 4513.75 | O187: 3423600 | P187: -2.92%
A188: 178 | B188: Automobile | C188: TVSMOTOR | D188: 2024-05-30 | E188: 2105.50 | F188: 2119.15 | G188: 2078.35 | H188: 2051.20 | I188: 2010.40 | J188: 2146.30 | K188: 2187.10 | L188: 2214.25 | M188: 2159.95 | N188: 2092 | O188: 6563900 | P188: -0.91%
A189: 179 | B189: FMCG | C189: UBL | D189: 2024-05-30 | E189: 1883.50 | F189: 1893.78 | G189: 1869.87 | H189: 1856.23 | I189: 1832.32 | J189: 1907.42 | K189: 1931.33 | L189: 1944.97 | M189: 1917.7 | N189: 1880.15 | O189: 2597200 | P189: 2.06%
A190: 180 | B190: Cement | C190: ULTRACEMCO | D190: 2024-05-30 | E190: 9647.15 | F190: 9660.27 | G190: 9580.68 | H190: 9514.22 | I190: 9434.63 | J190: 9726.73 | K190: 9806.32 | L190: 9872.78 | M190: 9739.85 | N190: 9593.8 | O190: 2113700 | P190: -0.33%
A191: 181 | B191: Chemicals | C191: UPL | D191: 2024-05-30 | E191: 516.40 | F191: 516.90 | G191: 511.25 | H191: 506.10 | I191: 500.45 | J191: 522.05 | K191: 527.70 | L191: 532.85 | M191: 522.55 | N191: 511.75 | O191: 37724700 | P191: -5.52%
A192: 182 | B192: Metals | C192: VEDL | D192: 2024-05-30 | E192: 438.65 | F192: 440.87 | G192: 432.83 | H192: 427.02 | I192: 418.98 | J192: 446.68 | K192: 454.72 | L192: 460.53 | M192: 448.9 | N192: 435.05 | O192: 97927100 | P192: 0.33%
A193: 183 | B193: Capital_Goods | C193: VOLTAS | D193: 2024-05-30 | E193: 1308.05 | F193: 1310.38 | G193: 1300.77 | H193: 1293.48 | I193: 1283.87 | J193: 1317.67 | K193: 1327.28 | L193: 1334.57 | M193: 1320 | N193: 1303.1 | O193: 7296600 | P193: -0.38%
A194: 184 | B194: Technology | C194: WIPRO | D194: 2024-05-30 | E194: 459.30 | F194: 458.65 | G194: 456.65 | H194: 454.00 | I194: 452.00 | J194: 461.30 | K194: 463.30 | L194: 465.95 | M194: 460.65 | N194: 456 | O194: 60973500 | P194: 0.27%
A195: 185 | B195: Media | C195: ZEEL | D195: 2024-05-30 | E195: 130.95 | F195: 131.62 | G195: 129.73 | H195: 128.52 | I195: 126.63 | J195: 132.83 | K195: 134.72 | L195: 135.93 | M195: 133.5 | N195: 130.4 | O195: 131304000 | P195: -0.12%
A196: 186 | B196: Pharma | C196: ZYDUSLIFE | D196: 2024-05-30 | E196: 1001.25 | F196: 999.50 | G196: 991.65 | H196: 982.05 | I196: 974.20 | J196: 1009.10 | K196: 1016.95 | L196: 1026.55 | M196: 1007.35 | N196: 989.9 | O196: 8111700 | P196: -0.34%
A221: Pivot Point: This is trigger point for intra day buy/sell based on the price range of the previous day
A222: As per the tool,the trader should take BUY position just above Pivot and keep the stop loss of pivot point and the first target would be Resistance 1(R1)
A223: If R1 is crossed then R2 becomes the next target with stop loss of at R1
A224: Similarly if price goes below pivot point then the trader should sell and keep a stop loss of pivot point and the first target would be S1
A225: If S1 is crossed then S2 becomes the next target with stop loss of at S1
A227: Disclaimer:
A228: This document has been prepared by the Retail Research Desk of Asit C Mehta
A229: Investment Intermediates Ltd. and is meant for use of the recipient only
A230: and is not for circulation. This document is not to be reported or
A231: copied or made available to others. It should not be considered to be
... 5 more rows

Sheet Cash Intra
M5: Back to Main Page
A6: FOR INTRA DAY TRADING | K6: =Main!B10 -> 2024-05-16
A8: Sr.no | C8: CLOSE RATE | D8: Pivot Point | E8: Supports | H8: Resistances
E9: S1 | F9: S2 | G9: S3 | H9: R1 | I9: R2 | J9: R3 | K9: HIGH | L9: LOW | M9: Total Trade Quanity in Lakhs
A10: 1 | B10: Nifty 50 | C10: 22200.55 | D10: 22216.62 | E10: 22135.68 | F10: 22070.82 | G10: 21989.88 | H10: 22281.48 | I10: 22362.42 | J10: 22427.28 | K10: 22297.55 | L10: 22151.75
A11: 2 | B11: Nifty Bank | C11: 47687.45 | D11: 47726.38 | E11: 47495.57 | F11: 47303.68 | G11: 47072.87 | H11: 47918.27 | I11: 48149.08 | J11: 48340.97 | K11: 47957.20 | L11: 47534.50
A12: 3 | B12: Nifty CPSE | C12: 6291.50 | D12: 6270.92 | E12: 6235.98 | F12: 6180.47 | G12: 6145.53 | H12: 6326.43 | I12: 6361.37 | J12: 6416.88 | K12: 6305.85 | L12: 6215.40
A13: 4 | B13: Nifty Infra | C13: 8488.30 | D13: 8471.93 | E13: 8437.57 | F13: 8386.83 | G13: 8352.47 | H13: 8522.67 | I13: 8557.03 | J13: 8607.77 | K13: 8506.30 | L13: 8421.20
A14: 5 | B14: Nifty IT | C14: 33117.40 | D14: 33131.93 | E14: 32971.52 | F14: 32825.63 | G14: 32665.22 | H14: 33277.82 | I14: 33438.23 | J14: 33584.12 | K14: 33292.35 | L14: 32986.05
A15: 6 | B15: Nifty PSE | C15: 10090.30 | D15: 10051.73 | E15: 9992.02 | F15: 9893.73 | G15: 9834.02 | H15: 10150.02 | I15: 10209.73 | J15: 10308.02 | K15: 10111.45 | L15: 9953.45
A16: 7 | B16: Nifty Midcap 50 | C16: 14262.55 | D16: 14233.27 | E16: 14185.28 | F16: 14108.02 | G16: 14060.03 | H16: 14310.53 | I16: 14358.52 | J16: 14435.78 | K16: 14281.25 | L16: 14156.00
A17: 8 | B17: ABB | C17: 8084.3 | D17: 8058.17 | E17: 7991.33 | F17: 7898.37 | G17: 7831.53 | H17: 8151.13 | I17: 8217.97 | J17: 8310.93 | K17: 8125 | L17: 7965.2 | M17: 4.60611
A18: 9 | B18: ACC | C18: 2489.15 | D18: 2480.82 | E18: 2459.63 | F18: 2430.12 | G18: 2408.93 | H18: 2510.33 | I18: 2531.52 | J18: 2561.03 | K18: 2502 | L18: 2451.3 | M18: 4.74968
A19: 10 | B19: APLAPOLLO | C19: 1580.2 | D19: 1584.55 | E19: 1562.10 | F19: 1544.00 | G19: 1521.55 | H19: 1602.65 | I19: 1625.10 | J19: 1643.20 | K19: 1607 | L19: 1566.45 | M19: 6.78661
A20: 11 | B20: AUBANK | C20: 622.95 | D20: 629.57 | E20: 610.23 | F20: 597.52 | G20: 578.18 | H20: 642.28 | I20: 661.62 | J20: 674.33 | K20: 648.9 | L20: 616.85 | M20: 46.54837
A21: 12 | B21: ADANIENSOL | C21: 1021.65 | D21: 1026.47 | E21: 1013.93 | F21: 1006.22 | G21: 993.68 | H21: 1034.18 | I21: 1046.72 | J21: 1054.43 | K21: 1039 | L21: 1018.75 | M21: 5.97368
A22: 13 | B22: ADANIENT | C22: 3049.75 | D22: 3068.73 | E22: 3018.62 | F22: 2987.48 | G22: 2937.37 | H22: 3099.87 | I22: 3149.98 | J22: 3181.12 | K22: 3118.85 | L22: 3037.6 | M22: 16.88836
A23: 14 | B23: ADANIGREEN | C23: 1839.15 | D23: 1822.27 | E23: 1799.53 | F23: 1759.92 | G23: 1737.18 | H23: 1861.88 | I23: 1884.62 | J23: 1924.23 | K23: 1845 | L23: 1782.65 | M23: 82.81198
A24: 15 | B24: ADANIPORTS | C24: 1337.85 | D24: 1341.60 | E24: 1329.25 | F24: 1320.65 | G24: 1308.30 | H24: 1350.20 | I24: 1362.55 | J24: 1371.15 | K24: 1353.95 | L24: 1333 | M24: 21.89768
A25: 16 | B25: ADANIPOWER | C25: 639.75 | D25: 637.85 | E25: 627.90 | F25: 616.05 | G25: 606.10 | H25: 649.70 | I25: 659.65 | J25: 671.50 | K25: 647.8 | L25: 626 | M25: 76.13514
A26: 17 | B26: ATGL | C26: 916.6 | D26: 918.85 | E26: 906.95 | F26: 897.30 | G26: 885.40 | H26: 928.50 | I26: 940.40 | J26: 950.05 | K26: 930.75 | L26: 909.2 | M26: 10.38925
A27: 18 | B27: AWL | C27: 334.8 | D27: 337.30 | E27: 330.80 | F27: 326.80 | G27: 320.30 | H27: 341.30 | I27: 347.80 | J27: 351.80 | K27: 343.8 | L27: 333.3 | M27: 11.97943
A28: 19 | B28: ABCAPITAL | C28: 220.45 | D28: 221.65 | E28: 218.45 | F28: 216.45 | G28: 213.25 | H28: 223.65 | I28: 226.85 | J28: 228.85 | K28: 224.85 | L28: 219.65 | M28: 50.33092
A29: 20 | B29: ABFRL | C29: 263.05 | D29: 263.10 | E29: 259.10 | F29: 255.15 | G29: 251.15 | H29: 267.05 | I29: 271.05 | J29: 275.00 | K29: 267.1 | L29: 259.15 | M29: 80.75972
A30: 21 | B30: ALKEM | C30: 5246.95 | D30: 5249.35 | E30: 5188.70 | F30: 5130.45 | G30: 5069.80 | H30: 5307.60 | I30: 5368.25 | J30: 5426.50 | K30: 5310 | L30: 5191.1 | M30: 2.21828
A31: 22 | B31: AMBUJACEM | C31: 613.25 | D31: 613.80 | E31: 609.35 | F31: 605.45 | G31: 601.00 | H31: 617.70 | I31: 622.15 | J31: 626.05 | K31: 618.25 | L31: 609.9 | M31: 14.79399
A32: 23 | B32: APOLLOHOSP | C32: 5848.8 | D32: 5850.75 | E32: 5818.05 | F32: 5787.30 | G32: 5754.60 | H32: 5881.50 | I32: 5914.20 | J32: 5944.95 | K32: 5883.45 | L32: 5820 | M32: 5.09306
A33: 24 | B33: APOLLOTYRE | C33: 474.1 | D33: 471.67 | E33: 461.43 | F33: 448.77 | G33: 438.53 | H33: 484.33 | I33: 494.57 | J33: 507.23 | K33: 481.9 | L33: 459 | M33: 118.96368
A34: 25 | B34: ASHOKLEY | C34: 201.4 | D34: 202.48 | E34: 199.42 | F34: 197.43 | G34: 194.37 | H34: 204.47 | I34: 207.53 | J34: 209.52 | K34: 205.55 | L34: 200.5 | M34: 105.15237
A35: 26 | B35: ASIANPAINT | C35: 2813.7 | D35: 2831.37 | E35: 2788.48 | F35: 2763.27 | G35: 2720.38 | H35: 2856.58 | I35: 2899.47 | J35: 2924.68 | K35: 2874.25 | L35: 2806.15 | M35: 12.3052
A36: 27 | B36: ASTRAL | C36: 2212.5 | D36: 2210.53 | E36: 2183.57 | F36: 2154.63 | G36: 2127.67 | H36: 2239.47 | I36: 2266.43 | J36: 2295.37 | K36: 2237.5 | L36: 2181.6 | M36: 5.32249
A37: 28 | B37: AUROPHARMA | C37: 1158.4 | D37: 1161.12 | E37: 1149.28 | F37: 1140.17 | G37: 1128.33 | H37: 1170.23 | I37: 1182.07 | J37: 1191.18 | K37: 1172.95 | L37: 1152 | M37: 10.01585
A38: 29 | B38: DMART | C38: 4652.45 | D38: 4643.18 | E38: 4606.37 | F38: 4560.28 | G38: 4523.47 | H38: 4689.27 | I38: 4726.08 | J38: 4772.17 | K38: 4680 | L38: 4597.1 | M38: 2.98259
A39: 30 | B39: AXISBANK | C39: 1128.05 | D39: 1125.95 | E39: 1120.70 | F39: 1113.35 | G39: 1108.10 | H39: 1133.30 | I39: 1138.55 | J39: 1145.90 | K39: 1131.2 | L39: 1118.6 | M39: 54.36338
A40: 31 | B40: BAJAJ-AUTO | C40: 8903.15 | D40: 8968.50 | E40: 8812.00 | F40: 8720.85 | G40: 8564.35 | H40: 9059.65 | I40: 9216.15 | J40: 9307.30 | K40: 9125 | L40: 8877.35 | M40: 2.74392
A41: 32 | B41: BAJFINANCE | C41: 6680 | D41: 6685.67 | E41: 6639.38 | F41: 6598.77 | G41: 6552.48 | H41: 6726.28 | I41: 6772.57 | J41: 6813.18 | K41: 6731.95 | L41: 6645.05 | M41: 5.95059
A42: 33 | B42: BAJAJFINSV | C42: 1569.05 | D42: 1575.10 | E42: 1560.55 | F42: 1552.05 | G42: 1537.50 | H42: 1583.60 | I42: 1598.15 | J42: 1606.65 | K42: 1589.65 | L42: 1566.6 | M42: 5.81805
A43: 34 | B43: BAJAJHLDNG | C43: 8429.9 | D43: 8436.62 | E43: 8379.28 | F43: 8328.67 | G43: 8271.33 | H43: 8487.23 | I43: 8544.57 | J43: 8595.18 | K43: 8493.95 | L43: 8386 | M43: 0.12212
A44: 35 | B44: BALKRISIND | C44: 2516.6 | D44: 2506.70 | E44: 2485.40 | F44: 2454.20 | G44: 2432.90 | H44: 2537.90 | I44: 2559.20 | J44: 2590.40 | K44: 2528 | L44: 2475.5 | M44: 2.85072
A45: 36 | B45: BANDHANBNK | C45: 189.9 | D45: 189.82 | E45: 188.23 | F45: 186.57 | G45: 184.98 | H45: 191.48 | I45: 193.07 | J45: 194.73 | K45: 191.4 | L45: 188.15 | M45: 107.99367
A46: 37 | B46: BANKBARODA | C46: 263.9 | D46: 264.12 | E46: 260.53 | F46: 257.17 | G46: 253.58 | H46: 267.48 | I46: 271.07 | J46: 274.43 | K46: 267.7 | L46: 260.75 | M46: 192.80956
A47: 38 | B47: BANKINDIA | C47: 124.6 | D47: 125.48 | E47: 122.87 | F47: 121.13 | G47: 118.52 | H47: 127.22 | I47: 129.83 | J47: 131.57 | K47: 128.1 | L47: 123.75 | M47: 170.75065
A48: 39 | B48: BATAINDIA | C48: 1327.15 | D48: 1328.05 | E48: 1320.10 | F48: 1313.05 | G48: 1305.10 | H48: 1335.10 | I48: 1343.05 | J48: 1350.10 | K48: 1336 | L48: 1321 | M48: 1.65453
A49: 40 | B49: BERGEPAINT | C49: 485.1 | D49: 486.40 | E49: 478.80 | F49: 472.50 | G49: 464.90 | H49: 492.70 | I49: 500.30 | J49: 506.60 | K49: 494 | L49: 480.1 | M49: 32.69682
A50: 41 | B50: BDL | C50: 1999.25 | D50: 1978.42 | E50: 1951.83 | F50: 1904.42 | G50: 1877.83 | H50: 2025.83 | I50: 2052.42 | J50: 2099.83 | K50: 2005 | L50: 1931 | M50: 11.04415
A51: 42 | B51: BEL | C51: 232.85 | D51: 232.30 | E51: 230.10 | F51: 227.35 | G51: 225.15 | H51: 235.05 | I51: 237.25 | J51: 240.00 | K51: 234.5 | L51: 229.55 | M51: 330.4592
A52: 43 | B52: BHARATFORG | C52: 1462.7 | D52: 1453.72 | E52: 1439.98 | F52: 1417.27 | G52: 1403.53 | H52: 1476.43 | I52: 1490.17 | J52: 1512.88 | K52: 1467.45 | L52: 1431 | M52: 8.88218
A53: 44 | B53: BHEL | C53: 291.35 | D53: 290.88 | E53: 288.57 | F53: 285.78 | G53: 283.47 | H53: 293.67 | I53: 295.98 | J53: 298.77 | K53: 293.2 | L53: 288.1 | M53: 154.00221
A54: 45 | B54: BPCL | C54: 625.05 | D54: 620.03 | E54: 612.07 | F54: 599.08 | G54: 591.12 | H54: 633.02 | I54: 640.98 | J54: 653.97 | K54: 628 | L54: 607.05 | M54: 94.17506
A55: 46 | B55: BHARTIARTL | C55: 1309.9 | D55: 1302.88 | E55: 1287.52 | F55: 1265.13 | G55: 1249.77 | H55: 1325.27 | I55: 1340.63 | J55: 1363.02 | K55: 1318.25 | L55: 1280.5 | M55: 68.91004
A56: 47 | B56: BIOCON | C56: 311.9 | D56: 314.07 | E56: 306.93 | F56: 301.97 | G56: 294.83 | H56: 319.03 | I56: 326.17 | J56: 331.13 | K56: 321.2 | L56: 309.1 | M56: 167.76785
A57: 48 | B57: BOSCHLTD | C57: 30935.4 | D57: 31136.33 | E57: 30372.67 | F57: 29809.93 | G57: 29046.27 | H57: 31699.07 | I57: 32462.73 | J57: 33025.47 | K57: 31900 | L57: 30573.6 | M57: 1.01787
A58: 49 | B58: BRITANNIA | C58: 5064 | D58: 5094.07 | E58: 5023.38 | F58: 4982.77 | G58: 4912.08 | H58: 5134.68 | I58: 5205.37 | J58: 5245.98 | K58: 5164.75 | L58: 5053.45 | M58: 1.66198
A59: 50 | B59: CGPOWER | C59: 641.5 | D59: 632.52 | E59: 615.53 | F59: 589.57 | G59: 572.58 | H59: 658.48 | I59: 675.47 | J59: 701.43 | K59: 649.5 | L59: 606.55 | M59: 94.24318
A60: 51 | B60: CANBK | C60: 119 | D60: 118.20 | E60: 116.80 | F60: 114.60 | G60: 113.20 | H60: 120.40 | I60: 121.80 | J60: 124.00 | K60: 119.6 | L60: 116 | M60: 581.48316
A61: 52 | B61: CHOLAFIN | C61: 1231.35 | D61: 1238.23 | E61: 1217.12 | F61: 1202.88 | G61: 1181.77 | H61: 1252.47 | I61: 1273.58 | J61: 1287.82 | K61: 1259.35 | L61: 1224 | M61: 12.99166
A62: 53 | B62: CIPLA | C62: 1406.7 | D62: 1407.28 | E62: 1386.12 | F62: 1365.53 | G62: 1344.37 | H62: 1427.87 | I62: 1449.03 | J62: 1469.62 | K62: 1428.45 | L62: 1386.7 | M62: 78.93092
A63: 54 | B63: COALINDIA | C63: 467.85 | D63: 462.45 | E63: 454.90 | F63: 441.95 | G63: 434.40 | H63: 475.40 | I63: 482.95 | J63: 495.90 | K63: 470 | L63: 449.5 | M63: 235.43942
A64: 55 | B64: COFORGE | C64: 4614.95 | D64: 4593.65 | E64: 4562.30 | F64: 4509.65 | G64: 4478.30 | H64: 4646.30 | I64: 4677.65 | J64: 4730.30 | K64: 4625 | L64: 4541 | M64: 4.9354
A65: 56 | B65: COLPAL | C65: 2672.55 | D65: 2729.47 | E65: 2608.13 | F65: 2543.72 | G65: 2422.38 | H65: 2793.88 | I65: 2915.22 | J65: 2979.63 | K65: 2850.8 | L65: 2665.05 | M65: 12.53241
A66: 57 | B66: CONCOR | C66: 1027.2 | D66: 1029.03 | E66: 1019.47 | F66: 1011.73 | G66: 1002.17 | H66: 1036.77 | I66: 1046.33 | J66: 1054.07 | K66: 1038.6 | L66: 1021.3 | M66: 10.57905
A67: 58 | B67: COROMANDEL | C67: 1235.45 | D67: 1233.83 | E67: 1224.82 | F67: 1214.18 | G67: 1205.17 | H67: 1244.47 | I67: 1253.48 | J67: 1264.12 | K67: 1242.85 | L67: 1223.2 | M67: 2.77176
A68: 59 | B68: CROMPTON | C68: 338.1 | D68: 336.27 | E68: 332.63 | F68: 327.17 | G68: 323.53 | H68: 341.73 | I68: 345.37 | J68: 350.83 | K68: 339.9 | L68: 330.8 | M68: 42.31184
A69: 60 | B69: CUMMINSIND | C69: 3683.2 | D69: 3650.45 | E69: 3596.90 | F69: 3510.60 | G69: 3457.05 | H69: 3736.75 | I69: 3790.30 | J69: 3876.60 | K69: 3704 | L69: 3564.15 | M69: 13.17014
A70: 61 | B70: DLF | C70: 825.65 | D70: 828.75 | E70: 809.50 | F70: 793.35 | G70: 774.10 | H70: 844.90 | I70: 864.15 | J70: 880.30 | K70: 848 | L70: 812.6 | M70: 52.37735
A71: 62 | B71: DABUR | C71: 545.85 | D71: 547.95 | E71: 540.90 | F71: 535.95 | G71: 528.90 | H71: 552.90 | I71: 559.95 | J71: 564.90 | K71: 555 | L71: 543 | M71: 24.36198
A72: 63 | B72: DALBHARAT | C72: 1760.95 | D72: 1753.03 | E72: 1741.07 | F72: 1721.18 | G72: 1709.22 | H72: 1772.92 | I72: 1784.88 | J72: 1804.77 | K72: 1765 | L72: 1733.15 | M72: 3.20148
A73: 64 | B73: DEEPAKNTR | C73: 2424.25 | D73: 2442.08 | E73: 2399.17 | F73: 2374.08 | G73: 2331.17 | H73: 2467.17 | I73: 2510.08 | J73: 2535.17 | K73: 2485 | L73: 2417 | M73: 1.19207
A74: 65 | B74: DELHIVERY | C74: 449 | D74: 450.65 | E74: 442.35 | F74: 435.70 | G74: 427.40 | H74: 457.30 | I74: 465.60 | J74: 472.25 | K74: 458.95 | L74: 444 | M74: 10.59467
A75: 66 | B75: DEVYANI | C75: 150.85 | D75: 153.10 | E75: 148.15 | F75: 145.45 | G75: 140.50 | H75: 155.80 | I75: 160.75 | J75: 163.45 | K75: 158.05 | L75: 150.4 | M75: 61.29826
A76: 67 | B76: DIVISLAB | C76: 3892.55 | D76: 3903.35 | E76: 3856.75 | F76: 3820.95 | G76: 3774.35 | H76: 3939.15 | I76: 3985.75 | J76: 4021.55 | K76: 3949.95 | L76: 3867.55 | M76: 1.88401
A77: 68 | B77: DIXON | C77: 8102.85 | D77: 8060.47 | E77: 7974.93 | F77: 7847.02 | G77: 7761.48 | H77: 8188.38 | I77: 8273.92 | J77: 8401.83 | K77: 8146 | L77: 7932.55 | M77: 5.7655
A78: 69 | B78: LALPATHLAB | C78: 2473.7 | D78: 2492.83 | E78: 2447.82 | F78: 2421.93 | G78: 2376.92 | H78: 2518.72 | I78: 2563.73 | J78: 2589.62 | K78: 2537.85 | L78: 2466.95 | M78: 1.86576
A79: 70 | B79: DRREDDY | C79: 5875 | D79: 5900.65 | E79: 5834.35 | F79: 5793.70 | G79: 5727.40 | H79: 5941.30 | I79: 6007.60 | J79: 6048.25 | K79: 5966.95 | L79: 5860 | M79: 2.91681
A80: 71 | B80: EICHERMOT | C80: 4649.35 | D80: 4659.33 | E80: 4588.12 | F80: 4526.88 | G80: 4455.67 | H80: 4720.57 | I80: 4791.78 | J80: 4853.02 | K80: 4730.55 | L80: 4598.1 | M80: 10.823
A81: 72 | B81: ESCORTS | C81: 3649.7 | D81: 3636.23 | E81: 3607.52 | F81: 3565.33 | G81: 3536.62 | H81: 3678.42 | I81: 3707.13 | J81: 3749.32 | K81: 3664.95 | L81: 3594.05 | M81: 2.5817
A82: 73 | B82: NYKAA | C82: 169.75 | D82: 170.27 | E82: 167.18 | F82: 164.62 | G82: 161.53 | H82: 172.83 | I82: 175.92 | J82: 178.48 | K82: 173.35 | L82: 167.7 | M82: 24.19758
A83: 74 | B83: FEDERALBNK | C83: 162.75 | D83: 162.98 | E83: 161.57 | F83: 160.38 | G83: 158.97 | H83: 164.17 | I83: 165.58 | J83: 166.77 | K83: 164.4 | L83: 161.8 | M83: 116.02958
A84: 75 | B84: FACT | C84: 694.55 | D84: 688.85 | E84: 668.70 | F84: 642.85 | G84: 622.70 | H84: 714.70 | I84: 734.85 | J84: 760.70 | K84: 709 | L84: 663 | M84: 9.76383
A85: 76 | B85: FORTIS | C85: 443.7 | D85: 444.92 | E85: 441.23 | F85: 438.77 | G85: 435.08 | H85: 447.38 | I85: 451.07 | J85: 453.53 | K85: 448.6 | L85: 442.45 | M85: 1.5764
A86: 77 | B86: GAIL | C86: 200.75 | D86: 200.70 | E86: 198.55 | F86: 196.35 | G86: 194.20 | H86: 202.90 | I86: 205.05 | J86: 207.25 | K86: 202.85 | L86: 198.5 | M86: 123.38883
A87: 78 | B87: GLAND | C87: 1775.2 | D87: 1774.02 | E87: 1758.03 | F87: 1740.87 | G87: 1724.88 | H87: 1791.18 | I87: 1807.17 | J87: 1824.33 | K87: 1790 | L87: 1756.85 | M87: 0.84729
A88: 79 | B88: GODREJCP | C88: 1291.6 | D88: 1298.70 | E88: 1280.30 | F88: 1269.00 | G88: 1250.60 | H88: 1310.00 | I88: 1328.40 | J88: 1339.70 | K88: 1317.1 | L88: 1287.4 | M88: 6.68668
A89: 80 | B89: GODREJPROP | C89: 2821.25 | D89: 2823.27 | E89: 2774.63 | F89: 2728.02 | G89: 2679.38 | H89: 2869.88 | I89: 2918.52 | J89: 2965.13 | K89: 2871.9 | L89: 2776.65 | M89: 7.29125
A90: 81 | B90: GRASIM | C90: 2369.7 | D90: 2379.95 | E90: 2355.95 | F90: 2342.20 | G90: 2318.20 | H90: 2393.70 | I90: 2417.70 | J90: 2431.45 | K90: 2403.95 | L90: 2366.2 | M90: 4.04095
A91: 82 | B91: FLUOROCHEM | C91: 3212.15 | D91: 3207.72 | E91: 3140.43 | F91: 3068.72 | G91: 3001.43 | H91: 3279.43 | I91: 3346.72 | J91: 3418.43 | K91: 3275 | L91: 3136 | M91: 0.47196
A92: 83 | B92: GUJGASLTD | C92: 542.55 | D92: 545.12 | E92: 538.88 | F92: 535.22 | G92: 528.98 | H92: 548.78 | I92: 555.02 | J92: 558.68 | K92: 551.35 | L92: 541.45 | M92: 4.37814
A93: 84 | B93: HCLTECH | C93: 1332.9 | D93: 1330.48 | E93: 1320.67 | F93: 1308.43 | G93: 1298.62 | H93: 1342.72 | I93: 1352.53 | J93: 1364.77 | K93: 1340.3 | L93: 1318.25 | M93: 29.75965
A94: 85 | B94: HDFCAMC | C94: 3762.05 | D94: 3735.57 | E94: 3702.68 | F94: 3643.32 | G94: 3610.43 | H94: 3794.93 | I94: 3827.82 | J94: 3887.18 | K94: 3768.45 | L94: 3676.2 | M94: 1.46451
A95: 86 | B95: HDFCBANK | C95: 1438.5 | D95: 1444.67 | E95: 1429.63 | F95: 1420.77 | G95: 1405.73 | H95: 1453.53 | I95: 1468.57 | J95: 1477.43 | K95: 1459.7 | L95: 1435.8 | M95: 194.65998
A96: 87 | B96: HDFCLIFE | C96: 555.95 | D96: 557.65 | E96: 553.30 | F96: 550.65 | G96: 546.30 | H96: 560.30 | I96: 564.65 | J96: 567.30 | K96: 562 | L96: 555 | M96: 24.15161
A97: 88 | B97: HAVELLS | C97: 1754.15 | D97: 1747.12 | E97: 1737.03 | F97: 1719.92 | G97: 1709.83 | H97: 1764.23 | I97: 1774.32 | J97: 1791.43 | K97: 1757.2 | L97: 1730 | M97: 10.43231
A98: 89 | B98: HEROMOTOCO | C98: 5057.3 | D98: 5060.35 | E98: 5017.70 | F98: 4978.10 | G98: 4935.45 | H98: 5099.95 | I98: 5142.60 | J98: 5182.20 | K98: 5103 | L98: 5020.75 | M98: 8.82851
A99: 90 | B99: HINDALCO | C99: 653.7 | D99: 653.80 | E99: 648.60 | F99: 643.50 | G99: 638.30 | H99: 658.90 | I99: 664.10 | J99: 669.20 | K99: 659 | L99: 648.7 | M99: 67.64257
A100: 91 | B100: HAL | C100: 4182.35 | D100: 4142.32 | E100: 4091.03 | F100: 3999.72 | G100: 3948.43 | H100: 4233.63 | I100: 4284.92 | J100: 4376.23 | K100: 4193.6 | L100: 4051 | M100: 23.10941
A101: 92 | B101: HINDPETRO | C101: 506.7 | D101: 504.32 | E101: 498.83 | F101: 490.97 | G101: 485.48 | H101: 512.18 | I101: 517.67 | J101: 525.53 | K101: 509.8 | L101: 496.45 | M101: 38.15738
A102: 93 | B102: HINDUNILVR | C102: 2323.3 | D102: 2332.25 | E102: 2308.70 | F102: 2294.10 | G102: 2270.55 | H102: 2346.85 | I102: 2370.40 | J102: 2385.00 | K102: 2355.8 | L102: 2317.65 | M102: 8.12282
A103: 94 | B103: ICICIBANK | C103: 1124.35 | D103: 1121.88 | E103: 1115.97 | F103: 1107.58 | G103: 1101.67 | H103: 1130.27 | I103: 1136.18 | J103: 1144.57 | K103: 1127.8 | L103: 1113.5 | M103: 107.43423
A104: 95 | B104: ICICIGI | C104: 1652.9 | D104: 1662.57 | E104: 1640.28 | F104: 1627.67 | G104: 1605.38 | H104: 1675.18 | I104: 1697.47 | J104: 1710.08 | K104: 1684.85 | L104: 1649.95 | M104: 3.27336
A105: 96 | B105: ICICIPRULI | C105: 577.05 | D105: 583.47 | E105: 568.03 | F105: 559.02 | G105: 543.58 | H105: 592.48 | I105: 607.92 | J105: 616.93 | K105: 598.9 | L105: 574.45 | M105: 12.6846
A106: 97 | B106: IDFCFIRSTB | C106: 76.9 | D106: 77.13 | E106: 76.42 | F106: 75.93 | G106: 75.22 | H106: 77.62 | I106: 78.33 | J106: 78.82 | K106: 77.85 | L106: 76.65 | M106: 420.1442
A107: 98 | B107: ITC | C107: 427.8 | D107: 429.27 | E107: 425.28 | F107: 422.77 | G107: 418.78 | H107: 431.78 | I107: 435.77 | J107: 438.28 | K107: 433.25 | L107: 426.75 | M107: 75.6508
A108: 99 | B108: INDIANB | C108: 535.6 | D108: 530.05 | E108: 520.15 | F108: 504.70 | G108: 494.80 | H108: 545.50 | I108: 555.40 | J108: 570.85 | K108: 539.95 | L108: 514.6 | M108: 28.29489
A109: 100 | B109: INDHOTEL | C109: 560.9 | D109: 563.12 | E109: 556.38 | F109: 551.87 | G109: 545.13 | H109: 567.63 | I109: 574.37 | J109: 578.88 | K109: 569.85 | L109: 558.6 | M109: 16.87347
A110: 101 | B110: IOC | C110: 161.8 | D110: 161.38 | E110: 160.17 | F110: 158.53 | G110: 157.32 | H110: 163.02 | I110: 164.23 | J110: 165.87 | K110: 162.6 | L110: 159.75 | M110: 179.06679
A111: 102 | B111: IRCTC | C111: 1028.65 | D111: 1029.60 | E111: 1019.30 | F111: 1009.95 | G111: 999.65 | H111: 1038.95 | I111: 1049.25 | J111: 1058.60 | K111: 1039.9 | L111: 1020.25 | M111: 13.28038
A112: 103 | B112: IRFC | C112: 155.45 | D112: 156.75 | E112: 153.70 | F112: 151.95 | G112: 148.90 | H112: 158.50 | I112: 161.55 | J112: 163.30 | K112: 159.8 | L112: 155 | M112: 454.70586
A113: 104 | B113: IGL | C113: 439.8 | D113: 440.47 | E113: 432.73 | F113: 425.67 | G113: 417.93 | H113: 447.53 | I113: 455.27 | J113: 462.33 | K113: 448.2 | L113: 433.4 | M113: 43.36704
A114: 105 | B114: INDUSTOWER | C114: 341.8 | D114: 343.23 | E114: 338.57 | F114: 335.33 | G114: 330.67 | H114: 346.47 | I114: 351.13 | J114: 354.37 | K114: 347.9 | L114: 340 | M114: 96.91825
A115: 106 | B115: INDUSINDBK | C115: 1417.1 | D115: 1418.12 | E115: 1406.38 | F115: 1395.67 | G115: 1383.93 | H115: 1428.83 | I115: 1440.57 | J115: 1451.28 | K115: 1429.85 | L115: 1407.4 | M115: 25.16309
A116: 107 | B116: NAUKRI | C116: 5941.6 | D116: 5945.35 | E116: 5863.40 | F116: 5785.20 | G116: 5703.25 | H116: 6023.55 | I116: 6105.50 | J116: 6183.70 | K116: 6027.3 | L116: 5867.15 | M116: 1.59527
A117: 108 | B117: INFY | C117: 1419.95 | D117: 1423.43 | E117: 1415.07 | F117: 1410.18 | G117: 1401.82 | H117: 1428.32 | I117: 1436.68 | J117: 1441.57 | K117: 1431.8 | L117: 1418.55 | M117: 43.27544
A118: 109 | B118: INDIGO | C118: 4295.5 | D118: 4248.17 | E118: 4181.93 | F118: 4068.37 | G118: 4002.13 | H118: 4361.73 | I118: 4427.97 | J118: 4541.53 | K118: 4314.4 | L118: 4134.6 | M118: 8.54988
A119: 110 | B119: IPCALAB | C119: 1276.3 | D119: 1279.27 | E119: 1263.53 | F119: 1250.77 | G119: 1235.03 | H119: 1292.03 | I119: 1307.77 | J119: 1320.53 | K119: 1295 | L119: 1266.5 | M119: 1.39522
A120: 111 | B120: JSWENERGY | C120: 598.05 | D120: 608.65 | E120: 581.70 | F120: 565.35 | G120: 538.40 | H120: 625.00 | I120: 651.95 | J120: 668.30 | K120: 635.6 | L120: 592.3 | M120: 76.36943
A121: 112 | B121: JSWSTEEL | C121: 870.95 | D121: 872.62 | E121: 861.73 | F121: 852.52 | G121: 841.63 | H121: 881.83 | I121: 892.72 | J121: 901.93 | K121: 883.5 | L121: 863.4 | M121: 21.94086
A122: 113 | B122: JINDALSTEL | C122: 993.55 | D122: 989.23 | E122: 979.77 | F122: 965.98 | G122: 956.52 | H122: 1003.02 | I122: 1012.48 | J122: 1026.27 | K122: 998.7 | L122: 975.45 | M122: 22.92776
A123: 114 | B123: JUBLFOOD | C123: 468.05 | D123: 471.65 | E123: 463.35 | F123: 458.65 | G123: 450.35 | H123: 476.35 | I123: 484.65 | J123: 489.35 | K123: 479.95 | L123: 466.95 | M123: 10.77915
A124: 115 | B124: KPITTECH | C124: 1493.25 | D124: 1494.08 | E124: 1479.17 | F124: 1465.08 | G124: 1450.17 | H124: 1508.17 | I124: 1523.08 | J124: 1537.17 | K124: 1509 | L124: 1480 | M124: 5.00621
A125: 116 | B125: KOTAKBANK | C125: 1650.8 | D125: 1647.28 | E125: 1640.57 | F125: 1630.33 | G125: 1623.62 | H125: 1657.52 | I125: 1664.23 | J125: 1674.47 | K125: 1654 | L125: 1637.05 | M125: 52.609
A126: 117 | B126: LTF | C126: 158.45 | D126: 159.47 | E126: 156.23 | F126: 154.02 | G126: 150.78 | H126: 161.68 | I126: 164.92 | J126: 167.13 | K126: 162.7 | L126: 157.25 | M126: 29.76208
A127: 118 | B127: LTTS | C127: 4456.65 | D127: 4478.92 | E127: 4414.28 | F127: 4371.92 | G127: 4307.28 | H127: 4521.28 | I127: 4585.92 | J127: 4628.28 | K127: 4543.55 | L127: 4436.55 | M127: 1.14696
A128: 119 | B128: LICHSGFIN | C128: 631 | D128: 631.57 | E128: 622.48 | F128: 613.97 | G128: 604.88 | H128: 640.08 | I128: 649.17 | J128: 657.68 | K128: 640.65 | L128: 623.05 | M128: 25.52119
A129: 120 | B129: LTIM | C129: 4649.3 | D129: 4652.75 | E129: 4629.55 | F129: 4609.80 | G129: 4586.60 | H129: 4672.50 | I129: 4695.70 | J129: 4715.45 | K129: 4675.95 | L129: 4633 | M129: 2.46664
A130: 121 | B130: LT | C130: 3411.3 | D130: 3393.95 | E130: 3370.50 | F130: 3329.70 | G130: 3306.25 | H130: 3434.75 | I130: 3458.20 | J130: 3499.00 | K130: 3417.4 | L130: 3353.15 | M130: 27.18682
A131: 122 | B131: LAURUSLABS | C131: 437.45 | D131: 436.13 | E131: 431.52 | F131: 425.58 | G131: 420.97 | H131: 442.07 | I131: 446.68 | J131: 452.62 | K131: 440.75 | L131: 430.2 | M131: 11.76348
A132: 123 | B132: LICI | C132: 990 | D132: 973.97 | E132: 948.58 | F132: 907.17 | G132: 881.78 | H132: 1015.38 | I132: 1040.77 | J132: 1082.18 | K132: 999.35 | L132: 932.55 | M132: 76.37335
A133: 124 | B133: LUPIN | C133: 1639.1 | D133: 1639.93 | E133: 1627.87 | F133: 1616.63 | G133: 1604.57 | H133: 1651.17 | I133: 1663.23 | J133: 1674.47 | K133: 1652 | L133: 1628.7 | M133: 5.59501
A134: 125 | B134: MRF | C134: 127445.45 | D134: 127765.78 | E134: 126981.62 | F134: 126517.78 | G134: 125733.62 | H134: 128229.62 | I134: 129013.78 | J134: 129477.62 | K134: 128549.95 | L134: 127301.95 | M134: 0.06132
A135: 126 | B135: LODHA | C135: 1189.45 | D135: 1179.48 | E135: 1153.97 | F135: 1118.48 | G135: 1092.97 | H135: 1214.97 | I135: 1240.48 | J135: 1275.97 | K135: 1205 | L135: 1144 | M135: 9.00246
A136: 127 | B136: M&MFIN | C136: 266.9 | D136: 265.73 | E136: 263.72 | F136: 260.53 | G136: 258.52 | H136: 268.92 | I136: 270.93 | J136: 274.12 | K136: 267.75 | L136: 262.55 | M136: 45.09013
A137: 128 | B137: M&M | C137: 2302.3 | D137: 2291.82 | E137: 2266.48 | F137: 2230.67 | G137: 2205.33 | H137: 2327.63 | I137: 2352.97 | J137: 2388.78 | K137: 2317.15 | L137: 2256 | M137: 25.69084
A138: 129 | B138: MANKIND | C138: 2190.75 | D138: 2218.00 | E138: 2153.00 | F138: 2115.25 | G138: 2050.25 | H138: 2255.75 | I138: 2320.75 | J138: 2358.50 | K138: 2283 | L138: 2180.25 | M138: 8.49117
A139: 130 | B139: MARICO | C139: 591.6 | D139: 593.63 | E139: 584.12 | F139: 576.63 | G139: 567.12 | H139: 601.12 | I139: 610.63 | J139: 618.12 | K139: 603.15 | L139: 586.15 | M139: 12.57277
A140: 131 | B140: MARUTI | C140: 12767.3 | D140: 12779.90 | E140: 12687.40 | F140: 12607.50 | G140: 12515.00 | H140: 12859.80 | I140: 12952.30 | J140: 13032.20 | K140: 12872.4 | L140: 12700 | M140: 2.3203
A141: 132 | B141: MFSL | C141: 1000.5 | D141: 993.73 | E141: 984.77 | F141: 969.03 | G141: 960.07 | H141: 1009.47 | I141: 1018.43 | J141: 1034.17 | K141: 1002.7 | L141: 978 | M141: 9.42181
A142: 133 | B142: MAXHEALTH | C142: 829.5 | D142: 828.52 | E142: 815.23 | F142: 800.97 | G142: 787.68 | H142: 842.78 | I142: 856.07 | J142: 870.33 | K142: 841.8 | L142: 814.25 | M142: 12.09042
A143: 134 | B143: MAZDOCK | C143: 2392.1 | D143: 2369.70 | E143: 2327.40 | F143: 2262.70 | G143: 2220.40 | H143: 2434.40 | I143: 2476.70 | J143: 2541.40 | K143: 2412 | L143: 2305 | M143: 25.43773
A144: 135 | B144: MSUMI | C144: 68.65 | D144: 68.63 | E144: 68.12 | F144: 67.58 | G144: 67.07 | H144: 69.17 | I144: 69.68 | J144: 70.22 | K144: 69.15 | L144: 68.1 | M144: 27.69402
A145: 136 | B145: MPHASIS | C145: 2274.35 | D145: 2289.13 | E145: 2255.27 | F145: 2236.18 | G145: 2202.32 | H145: 2308.22 | I145: 2342.08 | J145: 2361.17 | K145: 2323 | L145: 2270.05 | M145: 2.99045
A146: 137 | B146: MUTHOOTFIN | C146: 1671.5 | D146: 1674.57 | E146: 1659.43 | F146: 1647.37 | G146: 1632.23 | H146: 1686.63 | I146: 1701.77 | J146: 1713.83 | K146: 1689.7 | L146: 1662.5 | M146: 3.61547
A147: 138 | B147: NHPC | C147: 97.4 | D147: 98.22 | E147: 96.03 | F147: 94.67 | G147: 92.48 | H147: 99.58 | I147: 101.77 | J147: 103.13 | K147: 100.4 | L147: 96.85 | M147: 841.17827
A148: 139 | B148: NMDC | C148: 267.3 | D148: 267.32 | E148: 265.18 | F148: 263.07 | G148: 260.93 | H148: 269.43 | I148: 271.57 | J148: 273.68 | K148: 269.45 | L148: 265.2 | M148: 85.77348
A149: 140 | B149: NTPC | C149: 361.35 | D149: 360.50 | E149: 357.50 | F149: 353.65 | G149: 350.65 | H149: 364.35 | I149: 367.35 | J149: 371.20 | K149: 363.5 | L149: 356.65 | M149: 85.38183
A150: 141 | B150: NAVINFLUOR | C150: 3324.2 | D150: 3361.07 | E150: 3264.13 | F150: 3204.07 | G150: 3107.13 | H150: 3421.13 | I150: 3518.07 | J150: 3578.13 | K150: 3458 | L150: 3301 | M150: 5.74233
A151: 142 | B151: NESTLEIND | C151: 2465 | D151: 2474.67 | E151: 2450.33 | F151: 2435.67 | G151: 2411.33 | H151: 2489.33 | I151: 2513.67 | J151: 2528.33 | K151: 2499 | L151: 2460 | M151: 4.34406
A152: 143 | B152: OBEROIRLTY | C152: 1574.15 | D152: 1580.18 | E152: 1531.32 | F152: 1488.48 | G152: 1439.62 | H152: 1623.02 | I152: 1671.88 | J152: 1714.72 | K152: 1629.05 | L152: 1537.35 | M152: 53.74933
A153: 144 | B153: ONGC | C153: 273.45 | D153: 273.98 | E153: 271.97 | F153: 270.48 | G153: 268.47 | H153: 275.47 | I153: 277.48 | J153: 278.97 | K153: 276 | L153: 272.5 | M153: 63.68662
A154: 145 | B154: OIL | C154: 633.1 | D154: 629.45 | E154: 621.10 | F154: 609.10 | G154: 600.75 | H154: 641.45 | I154: 649.80 | J154: 661.80 | K154: 637.8 | L154: 617.45 | M154: 41.99091
A155: 146 | B155: PAYTM | C155: 343.25 | D155: 340.90 | E155: 334.00 | F155: 324.75 | G155: 317.85 | H155: 350.15 | I155: 357.05 | J155: 366.30 | K155: 347.8 | L155: 331.65 | M155: 20.03944
A156: 147 | B156: POLICYBZR | C156: 1271.65 | D156: 1269.92 | E156: 1234.73 | F156: 1197.82 | G156: 1162.63 | H156: 1306.83 | I156: 1342.02 | J156: 1378.93 | K156: 1305.1 | L156: 1233 | M156: 28.23297
A157: 148 | B157: PIIND | C157: 3664.4 | D157: 3673.37 | E157: 3596.83 | F157: 3529.27 | G157: 3452.73 | H157: 3740.93 | I157: 3817.47 | J157: 3885.03 | K157: 3749.9 | L157: 3605.8 | M157: 3.92757
A158: 149 | B158: PAGEIND | C158: 35010.55 | D158: 35060.90 | E158: 34721.80 | F158: 34433.05 | G158: 34093.95 | H158: 35349.65 | I158: 35688.75 | J158: 35977.50 | K158: 35400 | L158: 34772.15 | M158: 0.07038
A159: 150 | B159: PATANJALI | C159: 1378.7 | D159: 1366.90 | E159: 1343.80 | F159: 1308.90 | G159: 1285.80 | H159: 1401.80 | I159: 1424.90 | J159: 1459.80 | K159: 1390 | L159: 1332 | M159: 7.56184
A160: 151 | B160: PERSISTENT | C160: 3481.45 | D160: 3461.48 | E160: 3432.97 | F160: 3384.48 | G160: 3355.97 | H160: 3509.97 | I160: 3538.48 | J160: 3586.97 | K160: 3490 | L160: 3413 | M160: 6.9425
A161: 152 | B161: PETRONET | C161: 307.2 | D161: 306.43 | E161: 303.87 | F161: 300.53 | G161: 297.97 | H161: 309.77 | I161: 312.33 | J161: 315.67 | K161: 309 | L161: 303.1 | M161: 31.96483
A162: 153 | B162: PIDILITIND | C162: 2987.45 | D162: 2981.15 | E162: 2961.30 | F162: 2935.15 | G162: 2915.30 | H162: 3007.30 | I162: 3027.15 | J162: 3053.30 | K162: 3001 | L162: 2955 | M162: 3.27294
A163: 154 | B163: PEL | C163: 825.2 | D163: 829.03 | E163: 818.17 | F163: 811.13 | G163: 800.27 | H163: 836.07 | I163: 846.93 | J163: 853.97 | K163: 839.9 | L163: 822 | M163: 5.19373
A164: 155 | B164: POLYCAB | C164: 6466.9 | D164: 6428.65 | E164: 6322.60 | F164: 6178.30 | G164: 6072.25 | H164: 6572.95 | I164: 6679.00 | J164: 6823.30 | K164: 6534.7 | L164: 6284.35 | M164: 6.71424
A165: 156 | B165: POONAWALLA | C165: 465.95 | D165: 468.30 | E165: 462.05 | F165: 458.15 | G165: 451.90 | H165: 472.20 | I165: 478.45 | J165: 482.35 | K165: 474.55 | L165: 464.4 | M165: 7.42619
A166: 157 | B166: PFC | C166: 436.55 | D166: 433.55 | E166: 425.70 | F166: 414.85 | G166: 407.00 | H166: 444.40 | I166: 452.25 | J166: 463.10 | K166: 441.4 | L166: 422.7 | M166: 293.19985
A167: 158 | B167: POWERGRID | C167: 314.85 | D167: 313.33 | E167: 310.37 | F167: 305.88 | G167: 302.92 | H167: 317.82 | I167: 320.78 | J167: 325.27 | K167: 316.3 | L167: 308.85 | M167: 113.97656
A168: 159 | B168: PRESTIGE | C168: 1545.05 | D168: 1527.37 | E168: 1497.73 | F168: 1450.42 | G168: 1420.78 | H168: 1574.68 | I168: 1604.32 | J168: 1651.63 | K168: 1557 | L168: 1480.05 | M168: 10.72564
A169: 160 | B169: PGHH | C169: 15784.45 | D169: 15762.93 | E169: 15685.17 | F169: 15585.88 | G169: 15508.12 | H169: 15862.22 | I169: 15939.98 | J169: 16039.27 | K169: 15840.7 | L169: 15663.65 | M169: 0.01866
A170: 161 | B170: PNB | C170: 124.3 | D170: 125.35 | E170: 122.95 | F170: 121.60 | G170: 119.20 | H170: 126.70 | I170: 129.10 | J170: 130.45 | K170: 127.75 | L170: 124 | M170: 472.53149
A171: 162 | B171: RECLTD | C171: 528.7 | D171: 528.80 | E171: 521.90 | F171: 515.10 | G171: 508.20 | H171: 535.60 | I171: 542.50 | J171: 549.30 | K171: 535.7 | L171: 522 | M171: 143.66755
A172: 163 | B172: RVNL | C172: 275.6 | D172: 275.00 | E172: 272.00 | F172: 268.40 | G172: 265.40 | H172: 278.60 | I172: 281.60 | J172: 285.20 | K172: 278 | L172: 271.4 | M172: 88.7792
A173: 164 | B173: RELIANCE | C173: 2832.55 | D173: 2839.52 | E173: 2819.08 | F173: 2805.62 | G173: 2785.18 | H173: 2852.98 | I173: 2873.42 | J173: 2886.88 | K173: 2859.95 | L173: 2826.05 | M173: 25.23267
A174: 165 | B174: SBICARD | C174: 713.45 | D174: 716.38 | E174: 709.67 | F174: 705.88 | G174: 699.17 | H174: 720.17 | I174: 726.88 | J174: 730.67 | K174: 723.1 | L174: 712.6 | M174: 5.96597
A175: 166 | B175: SBILIFE | C175: 1430.1 | D175: 1433.23 | E175: 1422.62 | F175: 1415.13 | G175: 1404.52 | H175: 1440.72 | I175: 1451.33 | J175: 1458.82 | K175: 1443.85 | L175: 1425.75 | M175: 2.54646
A176: 167 | B176: SRF | C176: 2288.2 | D176: 2296.43 | E176: 2273.87 | F176: 2259.53 | G176: 2236.97 | H176: 2310.77 | I176: 2333.33 | J176: 2347.67 | K176: 2319 | L176: 2282.1 | M176: 6.80715
A177: 168 | B177: MOTHERSON | C177: 126.35 | D177: 126.67 | E177: 125.03 | F177: 123.72 | G177: 122.08 | H177: 127.98 | I177: 129.62 | J177: 130.93 | K177: 128.3 | L177: 125.35 | M177: 82.93059
A178: 169 | B178: SHREECEM | C178: 25819.65 | D178: 26096.77 | E178: 25368.68 | F178: 24917.72 | G178: 24189.63 | H178: 26547.73 | I178: 27275.82 | J178: 27726.78 | K178: 26824.85 | L178: 25645.8 | M178: 2.24481
A179: 170 | B179: SHRIRAMFIN | C179: 2320 | D179: 2321.68 | E179: 2301.37 | F179: 2282.73 | G179: 2262.42 | H179: 2340.32 | I179: 2360.63 | J179: 2379.27 | K179: 2342 | L179: 2303.05 | M179: 8.53936
A180: 171 | B180: SIEMENS | C180: 7119.3 | D180: 7095.10 | E180: 6950.20 | F180: 6781.10 | G180: 6636.20 | H180: 7264.20 | I180: 7409.10 | J180: 7578.20 | K180: 7240 | L180: 6926 | M180: 27.93249
A181: 172 | B181: SONACOMS | C181: 604.55 | D181: 597.98 | E181: 587.97 | F181: 571.38 | G181: 561.37 | H181: 614.57 | I181: 624.58 | J181: 641.17 | K181: 608 | L181: 581.4 | M181: 36.1318
A182: 173 | B182: SBIN | C182: 820.3 | D182: 821.22 | E182: 817.13 | F182: 813.97 | G182: 809.88 | H182: 824.38 | I182: 828.47 | J182: 831.63 | K182: 825.3 | L182: 818.05 | M182: 97.55062
A183: 174 | B183: SAIL | C183: 166.4 | D183: 166.70 | E183: 164.70 | F183: 163.00 | G183: 161.00 | H183: 168.40 | I183: 170.40 | J183: 172.10 | K183: 168.7 | L183: 165 | M183: 249.90811
A184: 175 | B184: SUNPHARMA | C184: 1527.4 | D184: 1532.67 | E184: 1515.08 | F184: 1502.77 | G184: 1485.18 | H184: 1544.98 | I184: 1562.57 | J184: 1574.88 | K184: 1550.25 | L184: 1520.35 | M184: 12.07536
A185: 176 | B185: SUNTV | C185: 660.85 | D185: 665.63 | E185: 653.52 | F185: 646.18 | G185: 634.07 | H185: 672.97 | I185: 685.08 | J185: 692.42 | K185: 677.75 | L185: 658.3 | M185: 2.8572
A186: 177 | B186: SYNGENE | C186: 673.5 | D186: 672.67 | E186: 668.93 | F186: 664.37 | G186: 660.63 | H186: 677.23 | I186: 680.97 | J186: 685.53 | K186: 676.4 | L186: 668.1 | M186: 9.4837
A187: 178 | B187: TVSMOTOR | C187: 2099.95 | D187: 2111.62 | E187: 2073.33 | F187: 2046.72 | G187: 2008.43 | H187: 2138.23 | I187: 2176.52 | J187: 2203.13 | K187: 2149.9 | L187: 2085 | M187: 7.24319
A188: 179 | B188: TATACHEM | C188: 1072.45 | D188: 1079.93 | E188: 1058.37 | F188: 1044.28 | G188: 1022.72 | H188: 1094.02 | I188: 1115.58 | J188: 1129.67 | K188: 1101.5 | L188: 1065.85 | M188: 9.6243
A189: 180 | B189: TATACOMM | C189: 1768.85 | D189: 1767.52 | E189: 1753.33 | F189: 1737.82 | G189: 1723.63 | H189: 1783.03 | I189: 1797.22 | J189: 1812.73 | K189: 1781.7 | L189: 1752 | M189: 2.59897
A190: 181 | B190: TCS | C190: 3880.4 | D190: 3894.28 | E190: 3861.62 | F190: 3842.83 | G190: 3810.17 | H190: 3913.07 | I190: 3945.73 | J190: 3964.52 | K190: 3926.95 | L190: 3875.5 | M190: 11.15021
A191: 182 | B191: TATACONSUM | C191: 1068.9 | D191: 1071.92 | E191: 1052.98 | F191: 1037.07 | G191: 1018.13 | H191: 1087.83 | I191: 1106.77 | J191: 1122.68 | K191: 1090.85 | L191: 1056 | M191: 19.20081
A192: 183 | B192: TATAELXSI | C192: 7222.25 | D192: 7186.08 | E192: 7101.17 | F192: 6980.08 | G192: 6895.17 | H192: 7307.17 | I192: 7392.08 | J192: 7513.17 | K192: 7271 | L192: 7065 | M192: 1.26317
A193: 184 | B193: TATAMTRDVR | C193: 637.3 | D193: 642.32 | E193: 630.63 | F193: 623.97 | G193: 612.28 | H193: 648.98 | I193: 660.67 | J193: 667.33 | K193: 654 | L193: 635.65 | M193: 26.47338
A194: 185 | B194: TATAMOTORS | C194: 947.3 | D194: 955.12 | E194: 937.28 | F194: 927.27 | G194: 909.43 | H194: 965.13 | I194: 982.97 | J194: 992.98 | K194: 972.95 | L194: 945.1 | M194: 196.68239
A195: 186 | B195: TATAPOWER | C195: 431.3 | D195: 433.87 | E195: 427.78 | F195: 424.27 | G195: 418.18 | H195: 437.38 | I195: 443.47 | J195: 446.98 | K195: 439.95 | L195: 430.35 | M195: 138.04148
A196: 187 | B196: TATASTEEL | C196: 165.6 | D196: 166.03 | E196: 164.52 | F196: 163.43 | G196: 161.92 | H196: 167.12 | I196: 168.63 | J196: 169.72 | K196: 167.55 | L196: 164.95 | M196: 296.01304
A197: 188 | B197: TECHM | C197: 1274.5 | D197: 1274.15 | E197: 1265.35 | F197: 1256.20 | G197: 1247.40 | H197: 1283.30 | I197: 1292.10 | J197: 1301.25 | K197: 1282.95 | L197: 1265 | M197: 10.08105
A198: 189 | B198: RAMCOCEM | C198: 763.4 | D198: 765.85 | E198: 757.55 | F198: 751.70 | G198: 743.40 | H198: 771.70 | I198: 780.00 | J198: 785.85 | K198: 774.15 | L198: 760 | M198: 4.28039
A199: 190 | B199: TITAN | C199: 3268.55 | D199: 3278.33 | E199: 3250.22 | F199: 3231.88 | G199: 3203.77 | H199: 3296.67 | I199: 3324.78 | J199: 3343.12 | K199: 3306.45 | L199: 3260 | M199: 6.57036
A200: 191 | B200: TORNTPHARM | C200: 2648.95 | D200: 2641.15 | E200: 2627.10 | F200: 2605.25 | G200: 2591.20 | H200: 2663.00 | I200: 2677.05 | J200: 2698.90 | K200: 2655.2 | L200: 2619.3 | M200: 0.98937
A201: 192 | B201: TORNTPOWER | C201: 1365.8 | D201: 1371.25 | E201: 1351.70 | F201: 1337.60 | G201: 1318.05 | H201: 1385.35 | I201: 1404.90 | J201: 1419.00 | K201: 1390.8 | L201: 1357.15 | M201: 9.71912
A202: 193 | B202: TRENT | C202: 4527 | D202: 4538.57 | E202: 4497.63 | F202: 4468.27 | G202: 4427.33 | H202: 4567.93 | I202: 4608.87 | J202: 4638.23 | K202: 4579.5 | L202: 4509.2 | M202: 4.13777
A203: 194 | B203: TIINDIA | C203: 3786.8 | D203: 3768.45 | E203: 3724.60 | F203: 3662.40 | G203: 3618.55 | H203: 3830.65 | I203: 3874.50 | J203: 3936.70 | K203: 3812.3 | L203: 3706.25 | M203: 3.25002
A204: 195 | B204: UPL | C204: 514.8 | D204: 515.38 | E204: 509.47 | F204: 504.13 | G204: 498.22 | H204: 520.72 | I204: 526.63 | J204: 531.97 | K204: 521.3 | L204: 510.05 | M204: 42.34215
A205: 196 | B205: ULTRACEMCO | C205: 9614.1 | D205: 9622.42 | E205: 9551.68 | F205: 9489.27 | G205: 9418.53 | H205: 9684.83 | I205: 9755.57 | J205: 9817.98 | K205: 9693.15 | L205: 9560 | M205: 1.61067
... 30 more rows

Sheet MidCap Intra
L5: Back To Main Page
A6: FOR INTRA DAY TRADING | K6: =Main!B10 -> 2024-05-16
A9: Sr.no | B9: Scrip | C9: CLOSE RATE | D9: Pivot Point | E9: Supports | H9: Resistances
E10: S1 | F10: S2 | G10: S3 | H10: R1 | I10: R2 | J10: R3 | K10: HIGH | L10: LOW | M10: Total Trade Quanity in Lakhs
A11: 1 | B11: 360ONE | C11: 754.9 | D11: 758.98 | E11: 748.12 | F11: 741.33 | G11: 730.47 | H11: 765.77 | I11: 776.63 | J11: 783.42 | K11: 769.85 | L11: 752.2 | M11: 1.5261
A12: 2 | B12: 3MINDIA | C12: 28619.05 | D12: 28772.33 | E12: 28345.67 | F12: 28072.28 | G12: 27645.62 | H12: 29045.72 | I12: 29472.38 | J12: 29745.77 | K12: 29199 | L12: 28498.95 | M12: 0.02795
A13: 3 | B13: ABB | C13: 8084.3 | D13: 8058.17 | E13: 7991.33 | F13: 7898.37 | G13: 7831.53 | H13: 8151.13 | I13: 8217.97 | J13: 8310.93 | K13: 8125 | L13: 7965.2 | M13: 4.60611
A14: 4 | B14: ACC | C14: 2489.15 | D14: 2480.82 | E14: 2459.63 | F14: 2430.12 | G14: 2408.93 | H14: 2510.33 | I14: 2531.52 | J14: 2561.03 | K14: 2502 | L14: 2451.3 | M14: 4.74968
A15: 5 | B15: AIAENG | C15: 3755.45 | D15: 3736.45 | E15: 3665.05 | F15: 3574.65 | G15: 3503.25 | H15: 3826.85 | I15: 3898.25 | J15: 3988.65 | K15: 3807.85 | L15: 3646.05 | M15: 0.98658
A16: 6 | B16: APLAPOLLO | C16: 1580.2 | D16: 1584.55 | E16: 1562.10 | F16: 1544.00 | G16: 1521.55 | H16: 1602.65 | I16: 1625.10 | J16: 1643.20 | K16: 1607 | L16: 1566.45 | M16: 6.78661
A17: 7 | B17: AUBANK | C17: 622.95 | D17: 629.57 | E17: 610.23 | F17: 597.52 | G17: 578.18 | H17: 642.28 | I17: 661.62 | J17: 674.33 | K17: 648.9 | L17: 616.85 | M17: 46.54837
A18: 8 | B18: AARTIDRUGS | C18: 480.3 | D18: 479.42 | E18: 474.83 | F18: 469.37 | G18: 464.78 | H18: 484.88 | I18: 489.47 | J18: 494.93 | K18: 484 | L18: 473.95 | M18: 0.66341
A19: 9 | B19: AARTIIND | C19: 621.9 | D19: 631.48 | E19: 610.52 | F19: 599.13 | G19: 578.17 | H19: 642.87 | I19: 663.83 | J19: 675.22 | K19: 652.45 | L19: 620.1 | M19: 40.43426
A20: 10 | B20: AAVAS | C20: 1577.3 | D20: 1572.85 | E20: 1553.00 | F20: 1528.70 | G20: 1508.85 | H20: 1597.15 | I20: 1617.00 | J20: 1641.30 | K20: 1592.7 | L20: 1548.55 | M20: 2.38308
A21: 11 | B21: ABBOTINDIA | C21: 26410.95 | D21: 26537.00 | E21: 26211.45 | F21: 26011.95 | G21: 25686.40 | H21: 26736.50 | I21: 27062.05 | J21: 27261.55 | K21: 26862.55 | L21: 26337.5 | M21: 0.06434
A22: 12 | B22: ADANIENSOL | C22: 1021.65 | D22: 1026.47 | E22: 1013.93 | F22: 1006.22 | G22: 993.68 | H22: 1034.18 | I22: 1046.72 | J22: 1054.43 | K22: 1039 | L22: 1018.75 | M22: 5.97368
A23: 13 | B23: ADANIENT | C23: 3049.75 | D23: 3068.73 | E23: 3018.62 | F23: 2987.48 | G23: 2937.37 | H23: 3099.87 | I23: 3149.98 | J23: 3181.12 | K23: 3118.85 | L23: 3037.6 | M23: 16.88836
A24: 14 | B24: ADANIGREEN | C24: 1839.15 | D24: 1822.27 | E24: 1799.53 | F24: 1759.92 | G24: 1737.18 | H24: 1861.88 | I24: 1884.62 | J24: 1924.23 | K24: 1845 | L24: 1782.65 | M24: 82.81198
A25: 15 | B25: ADANIPORTS | C25: 1337.85 | D25: 1341.60 | E25: 1329.25 | F25: 1320.65 | G25: 1308.30 | H25: 1350.20 | I25: 1362.55 | J25: 1371.15 | K25: 1353.95 | L25: 1333 | M25: 21.89768
A26: 16 | B26: ADANIPOWER | C26: 639.75 | D26: 637.85 | E26: 627.90 | F26: 616.05 | G26: 606.10 | H26: 649.70 | I26: 659.65 | J26: 671.50 | K26: 647.8 | L26: 626 | M26: 76.13514
A27: 17 | B27: ATGL | C27: 916.6 | D27: 918.85 | E27: 906.95 | F27: 897.30 | G27: 885.40 | H27: 928.50 | I27: 940.40 | J27: 950.05 | K27: 930.75 | L27: 909.2 | M27: 10.38925
A28: 18 | B28: AWL | C28: 334.8 | D28: 337.30 | E28: 330.80 | F28: 326.80 | G28: 320.30 | H28: 341.30 | I28: 347.80 | J28: 351.80 | K28: 343.8 | L28: 333.3 | M28: 11.97943
A29: 19 | B29: ABCAPITAL | C29: 220.45 | D29: 221.65 | E29: 218.45 | F29: 216.45 | G29: 213.25 | H29: 223.65 | I29: 226.85 | J29: 228.85 | K29: 224.85 | L29: 219.65 | M29: 50.33092
A30: 20 | B30: ABFRL | C30: 263.05 | D30: 263.10 | E30: 259.10 | F30: 255.15 | G30: 251.15 | H30: 267.05 | I30: 271.05 | J30: 275.00 | K30: 267.1 | L30: 259.15 | M30: 80.75972
A31: 21 | B31: AEGISCHEM | C31: 593.85 | D31: 601.35 | E31: 579.50 | F31: 565.15 | G31: 543.30 | H31: 615.70 | I31: 637.55 | J31: 651.90 | K31: 623.2 | L31: 587 | M31: 3.94185
A32: 22 | B32: AETHER | C32: 831.65 | D32: 827.18 | E32: 821.37 | F32: 811.08 | G32: 805.27 | H32: 837.47 | I32: 843.28 | J32: 853.57 | K32: 833 | L32: 816.9 | M32: 0.31037
A33: 23 | B33: AFFLE | C33: 1090.1 | D33: 1093.68 | E33: 1081.47 | F33: 1072.83 | G33: 1060.62 | H33: 1102.32 | I33: 1114.53 | J33: 1123.17 | K33: 1105.9 | L33: 1085.05 | M33: 0.68596
A34: 24 | B34: AJANTPHARM | C34: 2394.9 | D34: 2408.52 | E34: 2368.03 | F34: 2341.17 | G34: 2300.68 | H34: 2435.38 | I34: 2475.87 | J34: 2502.73 | K34: 2449 | L34: 2381.65 | M34: 2.84058
A35: 25 | B35: APLLTD | C35: 968.2 | D35: 972.00 | E35: 959.60 | F35: 951.00 | G35: 938.60 | H35: 980.60 | I35: 993.00 | J35: 1001.60 | K35: 984.4 | L35: 963.4 | M35: 0.82621
A36: 26 | B36: ALKEM | C36: 5246.95 | D36: 5249.35 | E36: 5188.70 | F36: 5130.45 | G36: 5069.80 | H36: 5307.60 | I36: 5368.25 | J36: 5426.50 | K36: 5310 | L36: 5191.1 | M36: 2.21828
A37: 27 | B37: ALKYLAMINE | C37: 1952.05 | D37: 1961.38 | E37: 1932.77 | F37: 1913.48 | G37: 1884.87 | H37: 1980.67 | I37: 2009.28 | J37: 2028.57 | K37: 1990 | L37: 1942.1 | M37: 0.32224
A38: 28 | B38: ALLCARGO | C38: 69.3 | D38: 69.48 | E38: 69.02 | F38: 68.73 | G38: 68.27 | H38: 69.77 | I38: 70.23 | J38: 70.52 | K38: 69.95 | L38: 69.2 | M38: 6.37987
A39: 29 | B39: ALOKINDS | C39: 26.7 | D39: 26.82 | E39: 26.23 | F39: 25.77 | G39: 25.18 | H39: 27.28 | I39: 27.87 | J39: 28.33 | K39: 27.4 | L39: 26.35 | M39: 63.27194
A40: 30 | B40: ARE&M | C40: 1123.15 | D40: 1119.37 | E40: 1098.78 | F40: 1074.42 | G40: 1053.83 | H40: 1143.73 | I40: 1164.32 | J40: 1188.68 | K40: 1139.95 | L40: 1095 | M40: 10.67513
A41: 31 | B41: AMBER | C41: 3791.35 | D41: 3804.48 | E41: 3761.07 | F41: 3730.78 | G41: 3687.37 | H41: 3834.77 | I41: 3878.18 | J41: 3908.47 | K41: 3847.9 | L41: 3774.2 | M41: 0.39239
A42: 32 | B42: AMBUJACEM | C42: 613.25 | D42: 613.80 | E42: 609.35 | F42: 605.45 | G42: 601.00 | H42: 617.70 | I42: 622.15 | J42: 626.05 | K42: 618.25 | L42: 609.9 | M42: 14.79399
A43: 33 | B43: ANGELONE | C43: 2680.9 | D43: 2648.45 | E43: 2595.90 | F43: 2510.90 | G43: 2458.35 | H43: 2733.45 | I43: 2786.00 | J43: 2871.00 | K43: 2701 | L43: 2563.45 | M43: 6.65604
A44: 34 | B44: ANURAS | C44: 792.25 | D44: 793.22 | E44: 785.63 | F44: 779.02 | G44: 771.43 | H44: 799.83 | I44: 807.42 | J44: 814.03 | K44: 800.8 | L44: 786.6 | M44: 0.51984
A45: 35 | B45: APARINDS | C45: 8114 | D45: 8157.67 | E45: 7928.98 | F45: 7743.97 | G45: 7515.28 | H45: 8342.68 | I45: 8571.37 | J45: 8756.38 | K45: 8386.35 | L45: 7972.65 | M45: 2.9554
A46: 36 | B46: APOLLOHOSP | C46: 5848.8 | D46: 5850.75 | E46: 5818.05 | F46: 5787.30 | G46: 5754.60 | H46: 5881.50 | I46: 5914.20 | J46: 5944.95 | K46: 5883.45 | L46: 5820 | M46: 5.09306
A47: 37 | B47: APOLLOTYRE | C47: 474.1 | D47: 471.67 | E47: 461.43 | F47: 448.77 | G47: 438.53 | H47: 484.33 | I47: 494.57 | J47: 507.23 | K47: 481.9 | L47: 459 | M47: 118.96368
A48: 38 | B48: APTUS | C48: 316.55 | D48: 316.50 | E48: 314.75 | F48: 312.95 | G48: 311.20 | H48: 318.30 | I48: 320.05 | J48: 321.85 | K48: 318.25 | L48: 314.7 | M48: 1.00279
A49: 39 | B49: ACI | C49: 616.6 | D49: 609.95 | E49: 590.20 | F49: 563.80 | G49: 544.05 | H49: 636.35 | I49: 656.10 | J49: 682.50 | K49: 629.7 | L49: 583.55 | M49: 13.47131
A50: 40 | B50: ASAHIINDIA | C50: 613.7 | D50: 611.88 | E50: 596.77 | F50: 579.83 | G50: 564.72 | H50: 628.82 | I50: 643.93 | J50: 660.87 | K50: 627 | L50: 594.95 | M50: 4.14032
A51: 41 | B51: ASHOKLEY | C51: 201.4 | D51: 202.48 | E51: 199.42 | F51: 197.43 | G51: 194.37 | H51: 204.47 | I51: 207.53 | J51: 209.52 | K51: 205.55 | L51: 200.5 | M51: 105.15237
A52: 42 | B52: ASIANPAINT | C52: 2813.7 | D52: 2831.37 | E52: 2788.48 | F52: 2763.27 | G52: 2720.38 | H52: 2856.58 | I52: 2899.47 | J52: 2924.68 | K52: 2874.25 | L52: 2806.15 | M52: 12.3052
A53: 43 | B53: ASTERDM | C53: 350.2 | D53: 349.62 | E53: 347.58 | F53: 344.97 | G53: 342.93 | H53: 352.23 | I53: 354.27 | J53: 356.88 | K53: 351.65 | L53: 347 | M53: 8.5491
A54: 44 | B54: ASTRAL | C54: 2212.5 | D54: 2210.53 | E54: 2183.57 | F54: 2154.63 | G54: 2127.67 | H54: 2239.47 | I54: 2266.43 | J54: 2295.37 | K54: 2237.5 | L54: 2181.6 | M54: 5.32249
A55: 45 | B55: ATUL | C55: 5876.6 | D55: 5906.85 | E55: 5839.75 | F55: 5802.90 | G55: 5735.80 | H55: 5943.70 | I55: 6010.80 | J55: 6047.65 | K55: 5973.95 | L55: 5870 | M55: 0.2046
A56: 46 | B56: AUROPHARMA | C56: 1158.4 | D56: 1161.12 | E56: 1149.28 | F56: 1140.17 | G56: 1128.33 | H56: 1170.23 | I56: 1182.07 | J56: 1191.18 | K56: 1172.95 | L56: 1152 | M56: 10.01585
A57: 47 | B57: AVANTIFEED | C57: 521.55 | D57: 522.15 | E57: 516.70 | F57: 511.85 | G57: 506.40 | H57: 527.00 | I57: 532.45 | J57: 537.30 | K57: 527.6 | L57: 517.3 | M57: 0.98307
A58: 48 | B58: DMART | C58: 4652.45 | D58: 4643.18 | E58: 4606.37 | F58: 4560.28 | G58: 4523.47 | H58: 4689.27 | I58: 4726.08 | J58: 4772.17 | K58: 4680 | L58: 4597.1 | M58: 2.98259
A59: 49 | B59: AXISBANK | C59: 1128.05 | D59: 1125.95 | E59: 1120.70 | F59: 1113.35 | G59: 1108.10 | H59: 1133.30 | I59: 1138.55 | J59: 1145.90 | K59: 1131.2 | L59: 1118.6 | M59: 54.36338
A60: 50 | B60: BEML | C60: 3777.9 | D60: 3787.28 | E60: 3714.57 | F60: 3651.23 | G60: 3578.52 | H60: 3850.62 | I60: 3923.33 | J60: 3986.67 | K60: 3860 | L60: 3723.95 | M60: 5.46209
A61: 51 | B61: BLS | C61: 321.4 | D61: 323.87 | E61: 315.63 | F61: 309.87 | G61: 301.63 | H61: 329.63 | I61: 337.87 | J61: 343.63 | K61: 332.1 | L61: 318.1 | M61: 29.74048
A62: 52 | B62: BSE | C62: 2840.9 | D62: 2808.22 | E62: 2747.43 | F62: 2653.97 | G62: 2593.18 | H62: 2901.68 | I62: 2962.47 | J62: 3055.93 | K62: 2869 | L62: 2714.75 | M62: 14.93504
A63: 53 | B63: BAJAJ-AUTO | C63: 8903.15 | D63: 8968.50 | E63: 8812.00 | F63: 8720.85 | G63: 8564.35 | H63: 9059.65 | I63: 9216.15 | J63: 9307.30 | K63: 9125 | L63: 8877.35 | M63: 2.74392
A64: 54 | B64: BAJFINANCE | C64: 6680 | D64: 6685.67 | E64: 6639.38 | F64: 6598.77 | G64: 6552.48 | H64: 6726.28 | I64: 6772.57 | J64: 6813.18 | K64: 6731.95 | L64: 6645.05 | M64: 5.95059
A65: 55 | B65: BAJAJFINSV | C65: 1569.05 | D65: 1575.10 | E65: 1560.55 | F65: 1552.05 | G65: 1537.50 | H65: 1583.60 | I65: 1598.15 | J65: 1606.65 | K65: 1589.65 | L65: 1566.6 | M65: 5.81805
A66: 56 | B66: BAJAJHLDNG | C66: 8429.9 | D66: 8436.62 | E66: 8379.28 | F66: 8328.67 | G66: 8271.33 | H66: 8487.23 | I66: 8544.57 | J66: 8595.18 | K66: 8493.95 | L66: 8386 | M66: 0.12212
A67: 57 | B67: BALAMINES | C67: 2167.6 | D67: 2180.52 | E67: 2141.08 | F67: 2114.57 | G67: 2075.13 | H67: 2207.03 | I67: 2246.47 | J67: 2272.98 | K67: 2219.95 | L67: 2154 | M67: 0.5599
A68: 58 | B68: BALKRISIND | C68: 2516.6 | D68: 2506.70 | E68: 2485.40 | F68: 2454.20 | G68: 2432.90 | H68: 2537.90 | I68: 2559.20 | J68: 2590.40 | K68: 2528 | L68: 2475.5 | M68: 2.85072
A69: 59 | B69: BALRAMCHIN | C69: 377.25 | D69: 378.33 | E69: 375.17 | F69: 373.08 | G69: 369.92 | H69: 380.42 | I69: 383.58 | J69: 385.67 | K69: 381.5 | L69: 376.25 | M69: 2.91824
A70: 60 | B70: BANDHANBNK | C70: 189.9 | D70: 189.82 | E70: 188.23 | F70: 186.57 | G70: 184.98 | H70: 191.48 | I70: 193.07 | J70: 194.73 | K70: 191.4 | L70: 188.15 | M70: 107.99367
A71: 61 | B71: BANKBARODA | C71: 263.9 | D71: 264.12 | E71: 260.53 | F71: 257.17 | G71: 253.58 | H71: 267.48 | I71: 271.07 | J71: 274.43 | K71: 267.7 | L71: 260.75 | M71: 192.80956
A72: 62 | B72: BANKINDIA | C72: 124.6 | D72: 125.48 | E72: 122.87 | F72: 121.13 | G72: 118.52 | H72: 127.22 | I72: 129.83 | J72: 131.57 | K72: 128.1 | L72: 123.75 | M72: 170.75065
A73: 63 | B73: MAHABANK | C73: 64.55 | D73: 64.90 | E73: 63.85 | F73: 63.15 | G73: 62.10 | H73: 65.60 | I73: 66.65 | J73: 67.35 | K73: 65.95 | L73: 64.2 | M73: 107.52336
A74: 64 | B74: BATAINDIA | C74: 1327.15 | D74: 1328.05 | E74: 1320.10 | F74: 1313.05 | G74: 1305.10 | H74: 1335.10 | I74: 1343.05 | J74: 1350.10 | K74: 1336 | L74: 1321 | M74: 1.65453
A75: 65 | B75: BAYERCROP | C75: 5403.45 | D75: 5391.83 | E75: 5289.67 | F75: 5175.88 | G75: 5073.72 | H75: 5505.62 | I75: 5607.78 | J75: 5721.57 | K75: 5494 | L75: 5278.05 | M75: 0.3376
A76: 66 | B76: BERGEPAINT | C76: 485.1 | D76: 486.40 | E76: 478.80 | F76: 472.50 | G76: 464.90 | H76: 492.70 | I76: 500.30 | J76: 506.60 | K76: 494 | L76: 480.1 | M76: 32.69682
A77: 67 | B77: BDL | C77: 1999.25 | D77: 1978.42 | E77: 1951.83 | F77: 1904.42 | G77: 1877.83 | H77: 2025.83 | I77: 2052.42 | J77: 2099.83 | K77: 2005 | L77: 1931 | M77: 11.04415
A78: 68 | B78: BEL | C78: 232.85 | D78: 232.30 | E78: 230.10 | F78: 227.35 | G78: 225.15 | H78: 235.05 | I78: 237.25 | J78: 240.00 | K78: 234.5 | L78: 229.55 | M78: 330.4592
A79: 69 | B79: BHARATFORG | C79: 1462.7 | D79: 1453.72 | E79: 1439.98 | F79: 1417.27 | G79: 1403.53 | H79: 1476.43 | I79: 1490.17 | J79: 1512.88 | K79: 1467.45 | L79: 1431 | M79: 8.88218
A80: 70 | B80: BHEL | C80: 291.35 | D80: 290.88 | E80: 288.57 | F80: 285.78 | G80: 283.47 | H80: 293.67 | I80: 295.98 | J80: 298.77 | K80: 293.2 | L80: 288.1 | M80: 154.00221
A81: 71 | B81: BPCL | C81: 625.05 | D81: 620.03 | E81: 612.07 | F81: 599.08 | G81: 591.12 | H81: 633.02 | I81: 640.98 | J81: 653.97 | K81: 628 | L81: 607.05 | M81: 94.17506
A82: 72 | B82: BHARTIARTL | C82: 1309.9 | D82: 1302.88 | E82: 1287.52 | F82: 1265.13 | G82: 1249.77 | H82: 1325.27 | I82: 1340.63 | J82: 1363.02 | K82: 1318.25 | L82: 1280.5 | M82: 68.91004
A83: 73 | B83: BIKAJI | C83: 518.8 | D83: 519.23 | E83: 514.57 | F83: 510.33 | G83: 505.67 | H83: 523.47 | I83: 528.13 | J83: 532.37 | K83: 523.9 | L83: 515 | M83: 3.33758
A84: 74 | B84: BIOCON | C84: 311.9 | D84: 314.07 | E84: 306.93 | F84: 301.97 | G84: 294.83 | H84: 319.03 | I84: 326.17 | J84: 331.13 | K84: 321.2 | L84: 309.1 | M84: 167.76785
A85: 75 | B85: BIRLACORPN | C85: 1447.95 | D85: 1441.82 | E85: 1430.68 | F85: 1413.42 | G85: 1402.28 | H85: 1459.08 | I85: 1470.22 | J85: 1487.48 | K85: 1452.95 | L85: 1424.55 | M85: 0.70452
A86: 76 | B86: BSOFT | C86: 612.45 | D86: 608.82 | E86: 602.68 | F86: 592.92 | G86: 586.78 | H86: 618.58 | I86: 624.72 | J86: 634.48 | K86: 614.95 | L86: 599.05 | M86: 35.96174
A87: 77 | B87: BLUEDART | C87: 7125.75 | D87: 7127.68 | E87: 7070.42 | F87: 7015.08 | G87: 6957.82 | H87: 7183.02 | I87: 7240.28 | J87: 7295.62 | K87: 7184.95 | L87: 7072.35 | M87: 0.21077
A88: 78 | B88: BLUESTARCO | C88: 1487.4 | D88: 1497.70 | E88: 1460.40 | F88: 1433.40 | G88: 1396.10 | H88: 1524.70 | I88: 1562.00 | J88: 1589.00 | K88: 1535 | L88: 1470.7 | M88: 8.16465
A89: 79 | B89: BBTC | C89: 1551.9 | D89: 1564.70 | E89: 1527.40 | F89: 1502.90 | G89: 1465.60 | H89: 1589.20 | I89: 1626.50 | J89: 1651.00 | K89: 1602 | L89: 1540.2 | M89: 1.40613
A90: 80 | B90: BORORENEW | C90: 504.3 | D90: 504.97 | E90: 491.93 | F90: 479.57 | G90: 466.53 | H90: 517.33 | I90: 530.37 | J90: 542.73 | K90: 518 | L90: 492.6 | M90: 7.83533
A91: 81 | B91: BOSCHLTD | C91: 30935.4 | D91: 31136.33 | E91: 30372.67 | F91: 29809.93 | G91: 29046.27 | H91: 31699.07 | I91: 32462.73 | J91: 33025.47 | K91: 31900 | L91: 30573.6 | M91: 1.01787
A92: 82 | B92: BRIGADE | C92: 1081.15 | D92: 1062.68 | E92: 1027.37 | F92: 973.58 | G92: 938.27 | H92: 1116.47 | I92: 1151.78 | J92: 1205.57 | K92: 1098 | L92: 1008.9 | M92: 9.59935
A93: 84 | B93: BRITANNIA | C93: 5064 | D93: 5094.07 | E93: 5023.38 | F93: 4982.77 | G93: 4912.08 | H93: 5134.68 | I93: 5205.37 | J93: 5245.98 | K93: 5164.75 | L93: 5053.45 | M93: 1.66198
A94: 85 | B94: MAPMYINDIA | C94: 1990.8 | D94: 1999.77 | E94: 1966.13 | F94: 1941.47 | G94: 1907.83 | H94: 2024.43 | I94: 2058.07 | J94: 2082.73 | K94: 2033.4 | L94: 1975.1 | M94: 0.81663
A95: 86 | B95: CCL | C95: 559.5 | D95: 562.17 | E95: 554.33 | F95: 549.17 | G95: 541.33 | H95: 567.33 | I95: 575.17 | J95: 580.33 | K95: 570 | L95: 557 | M95: 5.17415
A96: 87 | B96: CESC | C96: 140.55 | D96: 141.72 | E96: 138.83 | F96: 137.12 | G96: 134.23 | H96: 143.43 | I96: 146.32 | J96: 148.03 | K96: 144.6 | L96: 140 | M96: 27.50023
A97: 88 | B97: CGPOWER | C97: 641.5 | D97: 632.52 | E97: 615.53 | F97: 589.57 | G97: 572.58 | H97: 658.48 | I97: 675.47 | J97: 701.43 | K97: 649.5 | L97: 606.55 | M97: 94.24318
A98: 89 | B98: CIEINDIA | C98: 483.05 | D98: 483.23 | E98: 476.57 | F98: 470.08 | G98: 463.42 | H98: 489.72 | I98: 496.38 | J98: 502.87 | K98: 489.9 | L98: 476.75 | M98: 8.03722
A99: 90 | B99: CRISIL | C99: 4368 | D99: 4362.67 | E99: 4340.33 | F99: 4312.67 | G99: 4290.33 | H99: 4390.33 | I99: 4412.67 | J99: 4440.33 | K99: 4385 | L99: 4335 | M99: 0.09261
A100: 91 | B100: CSBBANK | C100: 350.65 | D100: 350.90 | E100: 348.20 | F100: 345.75 | G100: 343.05 | H100: 353.35 | I100: 356.05 | J100: 358.50 | K100: 353.6 | L100: 348.45 | M100: 0.92069
A101: 92 | B101: CAMPUS | C101: 250.45 | D101: 251.37 | E101: 247.73 | F101: 245.02 | G101: 241.38 | H101: 254.08 | I101: 257.72 | J101: 260.43 | K101: 255 | L101: 248.65 | M101: 4.2952
A102: 93 | B102: CANFINHOME | C102: 753 | D102: 752.22 | E102: 747.23 | F102: 741.47 | G102: 736.48 | H102: 757.98 | I102: 762.97 | J102: 768.73 | K102: 757.2 | L102: 746.45 | M102: 2.70791
A103: 94 | B103: CANBK | C103: 119 | D103: 118.20 | E103: 116.80 | F103: 114.60 | G103: 113.20 | H103: 120.40 | I103: 121.80 | J103: 124.00 | K103: 119.6 | L103: 116 | M103: 581.48316
A104: 95 | B104: CGCL | C104: 223.35 | D104: 223.12 | E104: 217.48 | F104: 211.62 | G104: 205.98 | H104: 228.98 | I104: 234.62 | J104: 240.48 | K104: 228.75 | L104: 217.25 | M104: 2.18928
A105: 96 | B105: CARBORUNIV | C105: 1533.5 | D105: 1523.77 | E105: 1509.08 | F105: 1484.67 | G105: 1469.98 | H105: 1548.18 | I105: 1562.87 | J105: 1587.28 | K105: 1538.45 | L105: 1499.35 | M105: 1.24855
A106: 97 | B106: CASTROLIND | C106: 189.15 | D106: 190.52 | E106: 187.18 | F106: 185.22 | G106: 181.88 | H106: 192.48 | I106: 195.82 | J106: 197.78 | K106: 193.85 | L106: 188.55 | M106: 19.79587
A107: 98 | B107: CEATLTD | C107: 2289.3 | D107: 2302.42 | E107: 2270.88 | F107: 2252.47 | G107: 2220.93 | H107: 2320.83 | I107: 2352.37 | J107: 2370.78 | K107: 2333.95 | L107: 2284 | M107: 0.70016
A108: 99 | B108: CENTRALBK | C108: 60.7 | D108: 61.07 | E108: 60.03 | F108: 59.37 | G108: 58.33 | H108: 61.73 | I108: 62.77 | J108: 63.43 | K108: 62.1 | L108: 60.4 | M108: 85.25938
A109: 100 | B109: CDSL | C109: 2121.7 | D109: 2109.23 | E109: 2074.47 | F109: 2027.23 | G109: 1992.47 | H109: 2156.47 | I109: 2191.23 | J109: 2238.47 | K109: 2144 | L109: 2062 | M109: 16.69215
A110: 101 | B110: CENTURYPLY | C110: 664.9 | D110: 665.22 | E110: 659.43 | F110: 653.97 | G110: 648.18 | H110: 670.68 | I110: 676.47 | J110: 681.93 | K110: 671 | L110: 659.75 | M110: 0.75955
A111: 102 | B111: CENTURYTEX | C111: 2047.95 | D111: 2057.25 | E111: 1989.50 | F111: 1931.05 | G111: 1863.30 | H111: 2115.70 | I111: 2183.45 | J111: 2241.90 | K111: 2125 | L111: 1998.8 | M111: 11.43986
A112: 103 | B112: CERA | C112: 7173.8 | D112: 7143.23 | E112: 6985.47 | F112: 6797.13 | G112: 6639.37 | H112: 7331.57 | I112: 7489.33 | J112: 7677.67 | K112: 7301 | L112: 6954.9 | M112: 0.46316
A113: 104 | B113: CHALET | C113: 778.9 | D113: 769.65 | E113: 750.30 | F113: 721.70 | G113: 702.35 | H113: 798.25 | I113: 817.60 | J113: 846.20 | K113: 789 | L113: 741.05 | M113: 13.82994
A114: 105 | B114: CHAMBLFERT | C114: 400.2 | D114: 402.25 | E114: 396.50 | F114: 392.80 | G114: 387.05 | H114: 405.95 | I114: 411.70 | J114: 415.40 | K114: 408 | L114: 398.55 | M114: 14.09942
A115: 106 | B115: CHEMPLASTS | C115: 476.45 | D115: 475.58 | E115: 469.87 | F115: 463.28 | G115: 457.57 | H115: 482.17 | I115: 487.88 | J115: 494.47 | K115: 481.3 | L115: 469 | M115: 0.47165
A116: 107 | B116: CHOLAHLDNG | C116: 1076.4 | D116: 1078.15 | E116: 1066.25 | F116: 1056.10 | G116: 1044.20 | H116: 1088.30 | I116: 1100.20 | J116: 1110.35 | K116: 1090.05 | L116: 1068 | M116: 0.96017
A117: 108 | B117: CHOLAFIN | C117: 1231.35 | D117: 1238.23 | E117: 1217.12 | F117: 1202.88 | G117: 1181.77 | H117: 1252.47 | I117: 1273.58 | J117: 1287.82 | K117: 1259.35 | L117: 1224 | M117: 12.99166
A118: 109 | B118: CIPLA | C118: 1406.7 | D118: 1407.28 | E118: 1386.12 | F118: 1365.53 | G118: 1344.37 | H118: 1427.87 | I118: 1449.03 | J118: 1469.62 | K118: 1428.45 | L118: 1386.7 | M118: 78.93092
A119: 110 | B119: CUB | C119: 153.05 | D119: 153.60 | E119: 151.75 | F119: 150.45 | G119: 148.60 | H119: 154.90 | I119: 156.75 | J119: 158.05 | K119: 155.45 | L119: 152.3 | M119: 7.03716
A120: 111 | B120: CLEAN | C120: 1327.55 | D120: 1318.87 | E120: 1301.23 | F120: 1274.92 | G120: 1257.28 | H120: 1345.18 | I120: 1362.82 | J120: 1389.13 | K120: 1336.5 | L120: 1292.55 | M120: 2.21241
A121: 112 | B121: COALINDIA | C121: 467.85 | D121: 462.45 | E121: 454.90 | F121: 441.95 | G121: 434.40 | H121: 475.40 | I121: 482.95 | J121: 495.90 | K121: 470 | L121: 449.5 | M121: 235.43942
A122: 113 | B122: COCHINSHIP | C122: 1330.5 | D122: 1337.40 | E122: 1304.80 | F122: 1279.10 | G122: 1246.50 | H122: 1363.10 | I122: 1395.70 | J122: 1421.40 | K122: 1370 | L122: 1311.7 | M122: 58.45758
A123: 114 | B123: COFORGE | C123: 4614.95 | D123: 4593.65 | E123: 4562.30 | F123: 4509.65 | G123: 4478.30 | H123: 4646.30 | I123: 4677.65 | J123: 4730.30 | K123: 4625 | L123: 4541 | M123: 4.9354
A124: 115 | B124: COLPAL | C124: 2672.55 | D124: 2729.47 | E124: 2608.13 | F124: 2543.72 | G124: 2422.38 | H124: 2793.88 | I124: 2915.22 | J124: 2979.63 | K124: 2850.8 | L124: 2665.05 | M124: 12.53241
A125: 116 | B125: CAMS | C125: 3294.8 | D125: 3275.58 | E125: 3227.17 | F125: 3159.53 | G125: 3111.12 | H125: 3343.22 | I125: 3391.63 | J125: 3459.27 | K125: 3324 | L125: 3207.95 | M125: 3.9106
A126: 117 | B126: CONCORDBIO | C126: 1487.4 | D126: 1490.87 | E126: 1466.73 | F126: 1446.07 | G126: 1421.93 | H126: 1511.53 | I126: 1535.67 | J126: 1556.33 | K126: 1515 | L126: 1470.2 | M126: 0.79241
A127: 118 | B127: CONCOR | C127: 1027.2 | D127: 1029.03 | E127: 1019.47 | F127: 1011.73 | G127: 1002.17 | H127: 1036.77 | I127: 1046.33 | J127: 1054.07 | K127: 1038.6 | L127: 1021.3 | M127: 10.57905
A128: 119 | B128: COROMANDEL | C128: 1235.45 | D128: 1233.83 | E128: 1224.82 | F128: 1214.18 | G128: 1205.17 | H128: 1244.47 | I128: 1253.48 | J128: 1264.12 | K128: 1242.85 | L128: 1223.2 | M128: 2.77176
A129: 120 | B129: CRAFTSMAN | C129: 4372.2 | D129: 4394.90 | E129: 4316.80 | F129: 4261.40 | G129: 4183.30 | H129: 4450.30 | I129: 4528.40 | J129: 4583.80 | K129: 4473 | L129: 4339.5 | M129: 0.27113
A130: 121 | B130: CREDITACC | C130: 1413.7 | D130: 1414.05 | E130: 1389.70 | F130: 1365.70 | G130: 1341.35 | H130: 1438.05 | I130: 1462.40 | J130: 1486.40 | K130: 1438.4 | L130: 1390.05 | M130: 2.73566
A131: 122 | B131: CROMPTON | C131: 338.1 | D131: 336.27 | E131: 332.63 | F131: 327.17 | G131: 323.53 | H131: 341.73 | I131: 345.37 | J131: 350.83 | K131: 339.9 | L131: 330.8 | M131: 42.31184
A132: 123 | B132: CUMMINSIND | C132: 3683.2 | D132: 3650.45 | E132: 3596.90 | F132: 3510.60 | G132: 3457.05 | H132: 3736.75 | I132: 3790.30 | J132: 3876.60 | K132: 3704 | L132: 3564.15 | M132: 13.17014
A133: 124 | B133: CYIENT | C133: 1753.3 | D133: 1738.43 | E133: 1710.02 | F133: 1666.73 | G133: 1638.32 | H133: 1781.72 | I133: 1810.13 | J133: 1853.42 | K133: 1766.85 | L133: 1695.15 | M133: 4.29934
A134: 125 | B134: DCMSHRIRAM | C134: 994.2 | D134: 991.72 | E134: 974.48 | F134: 954.77 | G134: 937.53 | H134: 1011.43 | I134: 1028.67 | J134: 1048.38 | K134: 1008.95 | L134: 972 | M134: 0.6122
A135: 126 | B135: DLF | C135: 825.65 | D135: 828.75 | E135: 809.50 | F135: 793.35 | G135: 774.10 | H135: 844.90 | I135: 864.15 | J135: 880.30 | K135: 848 | L135: 812.6 | M135: 52.37735
A136: 127 | B136: DABUR | C136: 545.85 | D136: 547.95 | E136: 540.90 | F136: 535.95 | G136: 528.90 | H136: 552.90 | I136: 559.95 | J136: 564.90 | K136: 555 | L136: 543 | M136: 24.36198
A137: 128 | B137: DALBHARAT | C137: 1760.95 | D137: 1753.03 | E137: 1741.07 | F137: 1721.18 | G137: 1709.22 | H137: 1772.92 | I137: 1784.88 | J137: 1804.77 | K137: 1765 | L137: 1733.15 | M137: 3.20148
A138: 129 | B138: DATAPATTNS | C138: 2865.65 | D138: 2900.78 | E138: 2805.47 | F138: 2745.28 | G138: 2649.97 | H138: 2960.97 | I138: 3056.28 | J138: 3116.47 | K138: 2996.1 | L138: 2840.6 | M138: 2.17907
A139: 130 | B139: DEEPAKFERT | C139: 552.75 | D139: 551.05 | E139: 534.70 | F139: 516.65 | G139: 500.30 | H139: 569.10 | I139: 585.45 | J139: 603.50 | K139: 567.4 | L139: 533 | M139: 11.51307
A140: 131 | B140: DEEPAKNTR | C140: 2424.25 | D140: 2442.08 | E140: 2399.17 | F140: 2374.08 | G140: 2331.17 | H140: 2467.17 | I140: 2510.08 | J140: 2535.17 | K140: 2485 | L140: 2417 | M140: 1.19207
A141: 132 | B141: DELHIVERY | C141: 449 | D141: 450.65 | E141: 442.35 | F141: 435.70 | G141: 427.40 | H141: 457.30 | I141: 465.60 | J141: 472.25 | K141: 458.95 | L141: 444 | M141: 10.59467
A142: 133 | B142: DELTACORP | C142: 116.9 | D142: 117.72 | E142: 115.73 | F142: 114.57 | G142: 112.58 | H142: 118.88 | I142: 120.87 | J142: 122.03 | K142: 119.7 | L142: 116.55 | M142: 11.51466
A143: 134 | B143: DEVYANI | C143: 150.85 | D143: 153.10 | E143: 148.15 | F143: 145.45 | G143: 140.50 | H143: 155.80 | I143: 160.75 | J143: 163.45 | K143: 158.05 | L143: 150.4 | M143: 61.29826
A144: 135 | B144: DIVISLAB | C144: 3892.55 | D144: 3903.35 | E144: 3856.75 | F144: 3820.95 | G144: 3774.35 | H144: 3939.15 | I144: 3985.75 | J144: 4021.55 | K144: 3949.95 | L144: 3867.55 | M144: 1.88401
A145: 136 | B145: DIXON | C145: 8102.85 | D145: 8060.47 | E145: 7974.93 | F145: 7847.02 | G145: 7761.48 | H145: 8188.38 | I145: 8273.92 | J145: 8401.83 | K145: 8146 | L145: 7932.55 | M145: 5.7655
A146: 137 | B146: LALPATHLAB | C146: 2473.7 | D146: 2492.83 | E146: 2447.82 | F146: 2421.93 | G146: 2376.92 | H146: 2518.72 | I146: 2563.73 | J146: 2589.62 | K146: 2537.85 | L146: 2466.95 | M146: 1.86576
A147: 138 | B147: DRREDDY | C147: 5875 | D147: 5900.65 | E147: 5834.35 | F147: 5793.70 | G147: 5727.40 | H147: 5941.30 | I147: 6007.60 | J147: 6048.25 | K147: 5966.95 | L147: 5860 | M147: 2.91681
A148: 139 | B148: EIDPARRY | C148: 620.9 | D148: 622.62 | E148: 615.23 | F148: 609.57 | G148: 602.18 | H148: 628.28 | I148: 635.67 | J148: 641.33 | K148: 630 | L148: 616.95 | M148: 2.54256
A149: 140 | B149: EIHOTEL | C149: 480.25 | D149: 481.82 | E149: 475.33 | F149: 470.42 | G149: 463.93 | H149: 486.73 | I149: 493.22 | J149: 498.13 | K149: 488.3 | L149: 476.9 | M149: 3.0206
A150: 141 | B150: EPL | C150: 187.9 | D150: 188.62 | E150: 186.78 | F150: 185.67 | G150: 183.83 | H150: 189.73 | I150: 191.57 | J150: 192.68 | K150: 190.45 | L150: 187.5 | M150: 3.35692
A151: 142 | B151: EASEMYTRIP | C151: 43.7 | D151: 43.92 | E151: 43.38 | F151: 43.07 | G151: 42.53 | H151: 44.23 | I151: 44.77 | J151: 45.08 | K151: 44.45 | L151: 43.6 | M151: 54.64744
A152: 143 | B152: EICHERMOT | C152: 4649.35 | D152: 4659.33 | E152: 4588.12 | F152: 4526.88 | G152: 4455.67 | H152: 4720.57 | I152: 4791.78 | J152: 4853.02 | K152: 4730.55 | L152: 4598.1 | M152: 10.823
A153: 144 | B153: ELGIEQUIP | C153: 620.1 | D153: 622.57 | E153: 616.53 | F153: 612.97 | G153: 606.93 | H153: 626.13 | I153: 632.17 | J153: 635.73 | K153: 628.6 | L153: 619 | M153: 0.63005
A154: 145 | B154: EMAMILTD | C154: 526.9 | D154: 525.88 | E154: 520.02 | F154: 513.13 | G154: 507.27 | H154: 532.77 | I154: 538.63 | J154: 545.52 | K154: 531.75 | L154: 519 | M154: 3.32073
A155: 146 | B155: ENDURANCE | C155: 2050.85 | D155: 2045.78 | E155: 2022.27 | F155: 1993.68 | G155: 1970.17 | H155: 2074.37 | I155: 2097.88 | J155: 2126.47 | K155: 2069.3 | L155: 2017.2 | M155: 0.50338
A156: 147 | B156: ENGINERSIN | C156: 247.65 | D156: 246.07 | E156: 243.13 | F156: 238.62 | G156: 235.68 | H156: 250.58 | I156: 253.52 | J156: 258.03 | K156: 249 | L156: 241.55 | M156: 72.92069
A157: 148 | B157: EPIGRAL | C157: 1283.7 | D157: 1291.27 | E157: 1270.53 | F157: 1257.37 | G157: 1236.63 | H157: 1304.43 | I157: 1325.17 | J157: 1338.33 | K157: 1312 | L157: 1278.1 | M157: 0.26408
A158: 149 | B158: EQUITASBNK | C158: 94.1 | D158: 94.65 | E158: 93.20 | F158: 92.30 | G158: 90.85 | H158: 95.55 | I158: 97.00 | J158: 97.90 | K158: 96.1 | L158: 93.75 | M158: 18.82609
A159: 150 | B159: ERIS | C159: 888 | D159: 884.33 | E159: 867.77 | F159: 847.53 | G159: 830.97 | H159: 904.57 | I159: 921.13 | J159: 941.37 | K159: 900.9 | L159: 864.1 | M159: 5.38717
A160: 151 | B160: ESCORTS | C160: 3649.7 | D160: 3636.23 | E160: 3607.52 | F160: 3565.33 | G160: 3536.62 | H160: 3678.42 | I160: 3707.13 | J160: 3749.32 | K160: 3664.95 | L160: 3594.05 | M160: 2.5817
A161: 152 | B161: EXIDEIND | C161: 463.1 | D161: 461.63 | E161: 455.12 | F161: 447.13 | G161: 440.62 | H161: 469.62 | I161: 476.13 | J161: 484.12 | K161: 468.15 | L161: 453.65 | M161: 27.9028
A162: 153 | B162: FDC | C162: 455 | D162: 455.33 | E162: 449.67 | F162: 444.33 | G162: 438.67 | H162: 460.67 | I162: 466.33 | J162: 471.67 | K162: 461 | L162: 450 | M162: 0.60717
A163: 154 | B163: NYKAA | C163: 169.75 | D163: 170.27 | E163: 167.18 | F163: 164.62 | G163: 161.53 | H163: 172.83 | I163: 175.92 | J163: 178.48 | K163: 173.35 | L163: 167.7 | M163: 24.19758
A164: 155 | B164: FEDERALBNK | C164: 162.75 | D164: 162.98 | E164: 161.57 | F164: 160.38 | G164: 158.97 | H164: 164.17 | I164: 165.58 | J164: 166.77 | K164: 164.4 | L164: 161.8 | M164: 116.02958
A165: 156 | B165: FACT | C165: 694.55 | D165: 688.85 | E165: 668.70 | F165: 642.85 | G165: 622.70 | H165: 714.70 | I165: 734.85 | J165: 760.70 | K165: 709 | L165: 663 | M165: 9.76383
A166: 157 | B166: FINEORG | C166: 4409.15 | D166: 4376.30 | E166: 4303.85 | F166: 4198.55 | G166: 4126.10 | H166: 4481.60 | I166: 4554.05 | J166: 4659.35 | K166: 4448.75 | L166: 4271 | M166: 0.29936
A167: 158 | B167: FINCABLES | C167: 1046.4 | D167: 1052.72 | E167: 1021.03 | F167: 995.67 | G167: 963.98 | H167: 1078.08 | I167: 1109.77 | J167: 1135.13 | K167: 1084.4 | L167: 1027.35 | M167: 5.36017
A168: 159 | B168: FINPIPE | C168: 304.85 | D168: 309.88 | E168: 292.07 | F168: 279.28 | G168: 261.47 | H168: 322.67 | I168: 340.48 | J168: 353.27 | K168: 327.7 | L168: 297.1 | M168: 99.2228
A169: 160 | B169: FSL | C169: 194.6 | D169: 193.80 | E169: 192.00 | F169: 189.40 | G169: 187.60 | H169: 196.40 | I169: 198.20 | J169: 200.80 | K169: 195.6 | L169: 191.2 | M169: 10.98402
A170: 161 | B170: FIVESTAR | C170: 767.85 | D170: 760.40 | E170: 750.30 | F170: 732.75 | G170: 722.65 | H170: 777.95 | I170: 788.05 | J170: 805.60 | K170: 770.5 | L170: 742.85 | M170: 2.27315
A171: 162 | B171: FORTIS | C171: 443.7 | D171: 444.92 | E171: 441.23 | F171: 438.77 | G171: 435.08 | H171: 447.38 | I171: 451.07 | J171: 453.53 | K171: 448.6 | L171: 442.45 | M171: 1.5764
A172: 163 | B172: GRINFRA | C172: 1462.1 | D172: 1435.73 | E172: 1386.47 | F172: 1310.83 | G172: 1261.57 | H172: 1511.37 | I172: 1560.63 | J172: 1636.27 | K172: 1485 | L172: 1360.1 | M172: 2.67627
A173: 164 | B173: GAIL | C173: 200.75 | D173: 200.70 | E173: 198.55 | F173: 196.35 | G173: 194.20 | H173: 202.90 | I173: 205.05 | J173: 207.25 | K173: 202.85 | L173: 198.5 | M173: 123.38883
A174: 165 | B174: GMMPFAUDLR | C174: 1382.55 | D174: 1376.57 | E174: 1354.33 | F174: 1326.12 | G174: 1303.88 | H174: 1404.78 | I174: 1427.02 | J174: 1455.23 | K174: 1398.8 | L174: 1348.35 | M174: 0.98968
A175: 166 | B175: GMRINFRA | C175: 83.75 | D175: 83.68 | E175: 83.12 | F175: 82.48 | G175: 81.92 | H175: 84.32 | I175: 84.88 | J175: 85.52 | K175: 84.25 | L175: 83.05 | M175: 93.78427
A176: 167 | B176: GALAXYSURF | C176: 2547.45 | D176: 2538.18 | E176: 2513.32 | F176: 2479.18 | G176: 2454.32 | H176: 2572.32 | I176: 2597.18 | J176: 2631.32 | K176: 2563.05 | L176: 2504.05 | M176: 0.09397
A177: 168 | B177: GICRE | C177: 341 | D177: 339.12 | E177: 331.13 | F177: 321.27 | G177: 313.28 | H177: 348.98 | I177: 356.97 | J177: 366.83 | K177: 347.1 | L177: 329.25 | M177: 18.81986
A178: 169 | B178: GILLETTE | C178: 6717.65 | D178: 6757.22 | E178: 6650.23 | F178: 6582.82 | G178: 6475.83 | H178: 6824.63 | I178: 6931.62 | J178: 6999.03 | K178: 6864.2 | L178: 6689.8 | M178: 0.26223
A179: 170 | B179: GLAND | C179: 1775.2 | D179: 1774.02 | E179: 1758.03 | F179: 1740.87 | G179: 1724.88 | H179: 1791.18 | I179: 1807.17 | J179: 1824.33 | K179: 1790 | L179: 1756.85 | M179: 0.84729
A180: 171 | B180: GLAXO | C180: 1989.15 | D180: 1997.80 | E180: 1966.35 | F180: 1943.55 | G180: 1912.10 | H180: 2020.60 | I180: 2052.05 | J180: 2074.85 | K180: 2029.25 | L180: 1975 | M180: 0.84411
A181: 172 | B181: GLS | C181: 821.25 | D181: 821.57 | E181: 813.13 | F181: 805.02 | G181: 796.58 | H181: 829.68 | I181: 838.12 | J181: 846.23 | K181: 830 | L181: 813.45 | M181: 0.38683
A182: 173 | B182: GLENMARK | C182: 1002.4 | D182: 1002.13 | E182: 986.67 | F182: 970.93 | G182: 955.47 | H182: 1017.87 | I182: 1033.33 | J182: 1049.07 | K182: 1017.6 | L182: 986.4 | M182: 9.69716
A183: 174 | B183: MEDANTA | C183: 1400.95 | D183: 1404.32 | E183: 1388.63 | F183: 1376.32 | G183: 1360.63 | H183: 1416.63 | I183: 1432.32 | J183: 1444.63 | K183: 1420 | L183: 1392 | M183: 0.72531
A184: 175 | B184: GOCOLORS | C184: 990.25 | D184: 984.22 | E184: 963.78 | F184: 937.32 | G184: 916.88 | H184: 1010.68 | I184: 1031.12 | J184: 1057.58 | K184: 1004.65 | L184: 957.75 | M184: 3.63471
A185: 176 | B185: GPIL | C185: 915.1 | D185: 913.40 | E185: 902.20 | F185: 889.30 | G185: 878.10 | H185: 926.30 | I185: 937.50 | J185: 950.40 | K185: 924.6 | L185: 900.5 | M185: 2.69734
A186: 177 | B186: GODFRYPHLP | C186: 3545.35 | D186: 3586.80 | E186: 3485.60 | F186: 3425.85 | G186: 3324.65 | H186: 3646.55 | I186: 3747.75 | J186: 3807.50 | K186: 3688 | L186: 3527.05 | M186: 1.04581
A187: 178 | B187: GODREJCP | C187: 1291.6 | D187: 1298.70 | E187: 1280.30 | F187: 1269.00 | G187: 1250.60 | H187: 1310.00 | I187: 1328.40 | J187: 1339.70 | K187: 1317.1 | L187: 1287.4 | M187: 6.68668
A188: 179 | B188: GODREJIND | C188: 799.5 | D188: 802.13 | E188: 794.27 | F188: 789.03 | G188: 781.17 | H188: 807.37 | I188: 815.23 | J188: 820.47 | K188: 810 | L188: 796.9 | M188: 1.33663
A189: 180 | B189: GODREJPROP | C189: 2821.25 | D189: 2823.27 | E189: 2774.63 | F189: 2728.02 | G189: 2679.38 | H189: 2869.88 | I189: 2918.52 | J189: 2965.13 | K189: 2871.9 | L189: 2776.65 | M189: 7.29125
A190: 181 | B190: GRANULES | C190: 396.8 | D190: 398.68 | E190: 387.47 | F190: 378.13 | G190: 366.92 | H190: 408.02 | I190: 419.23 | J190: 428.57 | K190: 409.9 | L190: 389.35 | M190: 40.02753
A191: 182 | B191: GRAPHITE | C191: 581.4 | D191: 586.53 | E191: 573.07 | F191: 564.73 | G191: 551.27 | H191: 594.87 | I191: 608.33 | J191: 616.67 | K191: 600 | L191: 578.2 | M191: 6.81429
A192: 183 | B192: GRASIM | C192: 2369.7 | D192: 2379.95 | E192: 2355.95 | F192: 2342.20 | G192: 2318.20 | H192: 2393.70 | I192: 2417.70 | J192: 2431.45 | K192: 2403.95 | L192: 2366.2 | M192: 4.04095
A193: 184 | B193: GESHIP | C193: 1039.15 | D193: 1045.02 | E193: 1028.13 | F193: 1017.12 | G193: 1000.23 | H193: 1056.03 | I193: 1072.92 | J193: 1083.93 | K193: 1061.9 | L193: 1034 | M193: 11.35365
A194: 185 | B194: GRINDWELL | C194: 2282.8 | D194: 2267.60 | E194: 2245.20 | F194: 2207.60 | G194: 2185.20 | H194: 2305.20 | I194: 2327.60 | J194: 2365.20 | K194: 2290 | L194: 2230 | M194: 0.4801
A195: 186 | B195: GUJALKALI | C195: 807.65 | D195: 804.20 | E195: 776.15 | F195: 744.65 | G195: 716.60 | H195: 835.70 | I195: 863.75 | J195: 895.25 | K195: 832.25 | L195: 772.7 | M195: 1.92906
A196: 187 | B196: GAEL | C196: 154.55 | D196: 154.58 | E196: 152.57 | F196: 150.58 | G196: 148.57 | H196: 156.57 | I196: 158.58 | J196: 160.57 | K196: 156.6 | L196: 152.6 | M196: 4.44223
A197: 188 | B197: FLUOROCHEM | C197: 3212.15 | D197: 3207.72 | E197: 3140.43 | F197: 3068.72 | G197: 3001.43 | H197: 3279.43 | I197: 3346.72 | J197: 3418.43 | K197: 3275 | L197: 3136 | M197: 0.47196
A198: 189 | B198: GUJGASLTD | C198: 542.55 | D198: 545.12 | E198: 538.88 | F198: 535.22 | G198: 528.98 | H198: 548.78 | I198: 555.02 | J198: 558.68 | K198: 551.35 | L198: 541.45 | M198: 4.37814
A199: 190 | B199: GNFC | C199: 660.55 | D199: 663.57 | E199: 654.23 | F199: 647.92 | G199: 638.58 | H199: 669.88 | I199: 679.22 | J199: 685.53 | K199: 672.9 | L199: 657.25 | M199: 7.14257
A200: 191 | B200: GPPL | C200: 204.1 | D200: 205.13 | E200: 202.52 | F200: 200.93 | G200: 198.32 | H200: 206.72 | I200: 209.33 | J200: 210.92 | K200: 207.75 | L200: 203.55 | M200: 12.63412
A201: 192 | B201: GSFC | C201: 233.85 | D201: 232.43 | E201: 229.92 | F201: 225.98 | G201: 223.47 | H201: 236.37 | I201: 238.88 | J201: 242.82 | K201: 234.95 | L201: 228.5 | M201: 24.28253
A202: 193 | B202: GSPL | C202: 291.1 | D202: 291.22 | E202: 288.98 | F202: 286.87 | G202: 284.63 | H202: 293.33 | I202: 295.57 | J202: 297.68 | K202: 293.45 | L202: 289.1 | M202: 11.9469
A203: 194 | B203: HEG | C203: 2394.6 | D203: 2389.17 | E203: 2368.43 | F203: 2342.27 | G203: 2321.53 | H203: 2415.33 | I203: 2436.07 | J203: 2462.23 | K203: 2409.9 | L203: 2363 | M203: 1.28674
A204: 195 | B204: HCLTECH | C204: 1332.9 | D204: 1330.48 | E204: 1320.67 | F204: 1308.43 | G204: 1298.62 | H204: 1342.72 | I204: 1352.53 | J204: 1364.77 | K204: 1340.3 | L204: 1318.25 | M204: 29.75965
A205: 196 | B205: HDFCAMC | C205: 3762.05 | D205: 3735.57 | E205: 3702.68 | F205: 3643.32 | G205: 3610.43 | H205: 3794.93 | I205: 3827.82 | J205: 3887.18 | K205: 3768.45 | L205: 3676.2 | M205: 1.46451
A206: 197 | B206: HDFCBANK | C206: 1438.5 | D206: 1444.67 | E206: 1429.63 | F206: 1420.77 | G206: 1405.73 | H206: 1453.53 | I206: 1468.57 | J206: 1477.43 | K206: 1459.7 | L206: 1435.8 | M206: 194.65998
... 318 more rows

Sheet Bulk Deals
E6: Back To Main Page
A7: Subject : | B7: BULK DEAL | D7: =Main!B10 -> 2024-05-16
A9: Date | B9: Scrip code | C9: Scrip Name | D9: Client Name | E9: Buy / Sell | F9: Quantity Traded | G9: Trade Price / Wt.Avg.trade price | H9: Exchange
A10: 2024-05-15 | B10: 540829 | C10: CHANDRIMA | D10: SONALBEN RANAJITBHAI MISTRI | E10: BUY | F10: 50,018 | G10: 10.5 | H10: BSE
A11: 2024-05-15 | B11: 540829 | C11: CHANDRIMA | D11: ANILKUMAR | E11: SELL | F11: 47,224 | G11: 10.5 | H11: BSE
A12: 2024-05-15 | B12: 524752 | C12: DECIPHER | D12: RAJESH MANUBHAI SHAH | E12: SELL | F12: 71,000 | G12: 14.94 | H12: BSE
A13: 2024-05-15 | B13: 537707 | C13: ETT | D13: SETU SECURITIES PVT. LTD. | E13: SELL | F13: 15,488 | G13: 23.22 | H13: BSE
A14: 2024-05-15 | B14: 537707 | C14: ETT | D14: SETU SECURITIES PVT. LTD. | E14: BUY | F14: 75,488 | G14: 23.22 | H14: BSE
A15: 2024-05-15 | B15: 537707 | C15: ETT | D15: SANTOSH KUMAR KUSHAWAHA | E15: BUY | F15: 103,910 | G15: 23.22 | H15: BSE
A16: 2024-05-15 | B16: 537707 | C16: ETT | D16: SANTOSH KUMAR KUSHAWAHA | E16: SELL | F16: 108,027 | G16: 24.04 | H16: BSE
A17: 2024-05-15 | B17: 537707 | C17: ETT | D17: RDS CORPORATE SERVICES PRIVATE LIMITED | E17: BUY | F17: 31,358 | G17: 25.45 | H17: BSE
A18: 2024-05-15 | B18: 537707 | C18: ETT | D18: RDS CORPORATE SERVICES PRIVATE LIMITED | E18: SELL | F18: 143,499 | G18: 23.44 | H18: BSE
A19: 2024-05-15 | B19: 537707 | C19: ETT | D19: KAMAL KUMAR JALAN SEC. PVT. LTD | E19: BUY | F19: 55,009 | G19: 23.22 | H19: BSE
A20: 2024-05-15 | B20: 537707 | C20: ETT | D20: KAMAL KUMAR JALAN SEC. PVT. LTD | E20: SELL | F20: 33,547 | G20: 23.22 | H20: BSE
A21: 2024-05-15 | B21: 537707 | C21: ETT | D21: KAUSHAL HITESHBHAI PARIKH | E21: SELL | F21: 99,000 | G21: 23.58 | H21: BSE
A22: 2024-05-15 | B22: 543444 | C22: FABINO | D22: SHWETA MALHOTRA | E22: BUY | F22: 15,000 | G22: 27.03 | H22: BSE
A23: 2024-05-15 | B23: 543444 | C23: FABINO | D23: DRISHTI SHARES & INVESTMENTS PRIVATE LIMITED | E23: SELL | F23: 21,000 | G23: 27.19 | H23: BSE
A24: 2024-05-15 | B24: 544173 | C24: FTL | D24: MULTIPLIER SHARE & STOCK ADVISORS PRIVATE LIMITED | E24: BUY | F24: 40,000 | G24: 140 | H24: BSE
A25: 2024-05-15 | B25: 544173 | C25: FTL | D25: MANSI SHARE & STOCK ADVISORS PRIVATE LIMITED | E25: BUY | F25: 30,000 | G25: 140 | H25: BSE
A26: 2024-05-15 | B26: 544173 | C26: FTL | D26: STOCK VERTEX VENTURES | E26: BUY | F26: 23,000 | G26: 140 | H26: BSE
A27: 2024-05-15 | B27: 512443 | C27: GANONPRO | D27: VISHAL VIJ | E27: SELL | F27: 50,500 | G27: 6.65 | H27: BSE
A28: 2024-05-15 | B28: 544156 | C28: GCONNECT | D28: VAXFAB ENTERPRISES LIMITED | E28: SELL | F28: 66,000 | G28: 34.62 | H28: BSE
A29: 2024-05-15 | B29: 531739 | C29: GENNEX | D29: MARYADA BARTER PRIVATE LIMITED | E29: SELL | F29: 3,613,048 | G29: 17.99 | H29: BSE
A30: 2024-05-15 | B30: 531739 | C30: GENNEX | D30: RIDHI SIDHI DISTRIBUTORS PVT. LTD. | E30: SELL | F30: 1 | G30: 17.5 | H30: BSE
A31: 2024-05-15 | B31: 531739 | C31: GENNEX | D31: RIDHI SIDHI DISTRIBUTORS PVT. LTD. | E31: BUY | F31: 1,542,501 | G31: 17.9 | H31: BSE
A32: 2024-05-15 | B32: 513309 | C32: GOLKONDA | D32: TINA JAIN | E32: BUY | F32: 30,000 | G32: 16.26 | H32: BSE
A33: 2024-05-15 | B33: 513309 | C33: GOLKONDA | D33: MIKY KIRTIKUMAR SHAH | E33: BUY | F33: 36,835 | G33: 16.32 | H33: BSE
A34: 2024-05-15 | B34: 513309 | C34: GOLKONDA | D34: GOLAM MEHEBUB KHAN | E34: SELL | F34: 32,000 | G34: 16.33 | H34: BSE
A35: 2024-05-15 | B35: 513337 | C35: GUJTLRM | D35: PRASHIL SANJAY SHAH | E35: SELL | F35: 520,000 | G35: 25.4 | H35: BSE
A36: 2024-05-15 | B36: 513337 | C36: GUJTLRM | D36: NOBLE POLYMERS LIMITED NOBLE | E36: SELL | F36: 598,466 | G36: 25.02 | H36: BSE
A37: 2024-05-15 | B37: 513337 | C37: GUJTLRM | D37: SANYUKTABEN SURYAKANT MEHTA | E37: SELL | F37: 1,345,000 | G37: 25.15 | H37: BSE
A38: 2024-05-15 | B38: 513337 | C38: GUJTLRM | D38: JAI VINAYAK SECURITIES | E38: BUY | F38: 290,383 | G38: 25.07 | H38: BSE
A39: 2024-05-15 | B39: 513337 | C39: GUJTLRM | D39: JAI VINAYAK SECURITIES | E39: SELL | F39: 368,383 | G39: 25.46 | H39: BSE
A40: 2024-05-15 | B40: 513337 | C40: GUJTLRM | D40: SHUBHAM ASHOKBHAI PATEL | E40: BUY | F40: 410,826 | G40: 25.34 | H40: BSE
A41: 2024-05-15 | B41: 513337 | C41: GUJTLRM | D41: NIKHIL RAJESH SINGH | E41: BUY | F41: 721,371 | G41: 25.13 | H41: BSE
A42: 2024-05-15 | B42: 513337 | C42: GUJTLRM | D42: SHUBHAM ASHOKBHAI PATEL | E42: SELL | F42: 410,826 | G42: 26.76 | H42: BSE
A43: 2024-05-15 | B43: 513337 | C43: GUJTLRM | D43: NIKHIL RAJESH SINGH | E43: SELL | F43: 721,371 | G43: 25.51 | H43: BSE
A44: 2024-05-15 | B44: 536709 | C44: INDRENEW | D44: MILIND MADHANI SECURITIES PRIVATE LIMITED | E44: SELL | F44: 100,000 | G44: 20.08 | H44: BSE
A45: 2024-05-15 | B45: 536709 | C45: INDRENEW | D45: MULTIPLIER SHARE & STOCK ADVISORS PRIVATE LIMITED | E45: BUY | F45: 75,000 | G45: 20.85 | H45: BSE
A46: 2024-05-15 | B46: 536709 | C46: INDRENEW | D46: MULTIPLIER SHARE & STOCK ADVISORS PRIVATE LIMITED | E46: SELL | F46: 138,372 | G46: 20.85 | H46: BSE
A47: 2024-05-15 | B47: 532397 | C47: KONNDOR | D47: DEVKANT SYNTHETICS INDIA PRIVATE LIMITED | E47: SELL | F47: 225,000 | G47: 8.84 | H47: BSE
A48: 2024-05-15 | B48: 532397 | C48: KONNDOR | D48: KADOLI INVESTMENT P LTD | E48: BUY | F48: 225,000 | G48: 8.86 | H48: BSE
A49: 2024-05-15 | B49: 540360 | C49: LLFICL | D49: PUSHKAR VINAYAK DATE | E49: BUY | F49: 635,402 | G49: 3.32 | H49: BSE
A50: 2024-05-15 | B50: 505523 | C50: MAHACORP | D50: ANKIT MAHENDRABHAI PARLESHA | E50: SELL | F50: 3,870,000 | G50: 0.82 | H50: BSE
A51: 2024-05-15 | B51: 543262 | C51: MRP | D51: VICCO PRODUCTS BOMBAY PVT LTD | E51: BUY | F51: 51,000 | G51: 80.02 | H51: BSE
A52: 2024-05-15 | B52: 531494 | C52: NAVKAR | D52: MOONLIGHT MULTITRADE LLP | E52: SELL | F52: 2,500,000 | G52: 14.16 | H52: BSE
A53: 2024-05-15 | B53: 523242 | C53: NBFOOT | D53: LEMON MANAGEMENT CONSULTANCY PRIVATE LIMITED | E53: SELL | F53: 198,000 | G53: 5.91 | H53: BSE
A54: 2024-05-15 | B54: 509040 | C54: NETLINK | D54: MULTIPLIER SHARE & STOCK ADVISORS PRIVATE LIMITED | E54: BUY | F54: 15,000 | G54: 170.5 | H54: BSE
A55: 2024-05-15 | B55: 509040 | C55: NETLINK | D55: JAYVILASKATE | E55: SELL | F55: 23,830 | G55: 171.07 | H55: BSE
A56: 2024-05-15 | B56: 543400 | C56: OMNIPOTENT | D56: ANUP KUMAR RATHI | E56: SELL | F56: 42,000 | G56: 11.88 | H56: BSE
A57: 2024-05-15 | B57: 540198 | C57: OSIAJEE | D57: REEMA SAROYA | E57: SELL | F57: 27,612 | G57: 42.42 | H57: BSE
A58: 2024-05-15 | B58: 540198 | C58: OSIAJEE | D58: REEMA SAROYA | E58: BUY | F58: 462 | G58: 42.45 | H58: BSE
A59: 2024-05-15 | B59: 519191 | C59: RGRL | D59: MANGALBHAI SHANABHAI BARIYA | E59: SELL | F59: 56,000 | G59: 9.2 | H59: BSE
A60: 2024-05-15 | B60: 531893 | C60: SAWABUSI | D60: RATHOD MANOJ CHHAGANLAL HUF | E60: SELL | F60: 5,042,712 | G60: 1.48 | H60: BSE
A61: 2024-05-15 | B61: 531893 | C61: SAWABUSI | D61: SAGAR RAJESHBHAI JHAVERI | E61: SELL | F61: 5,000,000 | G61: 1.48 | H61: BSE
A62: 2024-05-15 | B62: 531893 | C62: SAWABUSI | D62: NIKHIL RAJESH SINGH | E62: BUY | F62: 12,661,754 | G62: 1.48 | H62: BSE
A63: 2024-05-15 | B63: 531893 | C63: SAWABUSI | D63: NIKHIL RAJESH SINGH | E63: SELL | F63: 9,420,320 | G63: 1.48 | H63: BSE
A64: 2024-05-15 | B64: 539584 | C64: SIPTL | D64: CAMELLIA TRADEX PRIVATE LIMITED | E64: SELL | F64: 932,900 | G64: 0.66 | H64: NSE
A65: 2024-05-15 | B65: 539584 | C65: SIPTL | D65: CAMELLIA TRADEX PRIVATE LIMITED | E65: BUY | F65: 1 | G65: 0.66 | H65: NSE
A66: 2024-05-15 | B66: 543924 | C66: SONALIS | D66: KALPALABDHI SECURITIES PRIVATE LIMITED | E66: SELL | F66: 24,000 | G66: 72.69 | H66: NSE
A67: 2024-05-15 | B67: 519242 | C67: SRDAPRT | D67: KANTA DEVI SAMDARIA | E67: BUY | F67: 25,602 | G67: 60.14 | H67: NSE
A68: 2024-05-15 | B68: 519242 | C68: SRDAPRT | D68: RACHEL SAGAR DOSHI | E68: SELL | F68: 10,000 | G68: 60.14 | H68: NSE
A69: 2024-05-15 | B69: 519242 | C69: SRDAPRT | D69: KALPANA MADHANI SECURITIES PRIVATE LIMITED | E69: SELL | F69: 15,000 | G69: 60.14 | H69: NSE
A70: 2024-05-15 | B70: 544171 | C70: STAL | D70: MULTIPLIER SHARE & STOCK ADVISORS PRIVATE LIMITED | E70: BUY | F70: 126,400 | G70: 118.44 | H70: NSE
A71: 2024-05-15 | B71: 544171 | C71: STAL | D71: MULTIPLIER SHARE & STOCK ADVISORS PRIVATE LIMITED | E71: SELL | F71: 227,200 | G71: 118.7 | H71: NSE
A72: 2024-05-15 | B72: 517548 | C72: STARLITE | D72: JINAL SAMIR SHAH | E72: BUY | F72: 126,000 | G72: 2.74 | H72: NSE
A73: 2024-05-15 | B73: 514211 | C73: SUMEETINDS | D73: CAPRI FINSERV ADVISORS LLP | E73: BUY | F73: 700,000 | G73: 2.71 | H73: NSE
A74: 2024-05-15 | B74: 543274 | C74: SUUMAYA | D74: HARESH CHIMANLAL BHATT | E74: BUY | F74: 191,700 | G74: 5.8 | H74: NSE
A75: 2024-05-15 | B75: 543274 | C75: SUUMAYA | D75: RESHMA GAURANGBHAI NATHVANI | E75: BUY | F75: 126,000 | G75: 5.8 | H75: NSE
A76: 2024-05-15 | B76: 543274 | C76: SUUMAYA | D76: IRIS COMPUTERS LIMITED | E76: SELL | F76: 597,150 | G76: 5.81 | H76: NSE
A77: 2024-05-15 | B77: 544175 | C77: TGIF | D77: GREEN PEAKS ENTERPRISES LLP | E77: BUY | F77: 49,200 | G77: 150 | H77: NSE
A78: 2024-05-15 | B78: 544175 | C78: TGIF | D78: STCI PRIMARY DEALER LIMITED | E78: SELL | F78: 15,600 | G78: 150 | H78: NSE
A79: 2024-05-15 | B79: 544175 | C79: TGIF | D79: MULTIPLIER SHARE & STOCK ADVISORS PRIVATE LIMITED | E79: BUY | F79: 37,200 | G79: 147.58 | H79: NSE
A80: 2024-05-15 | B80: 544175 | C80: TGIF | D80: PANKAJBAFNA | E80: BUY | F80: 38,400 | G80: 150 | H80: NSE
A81: 2024-05-15 | B81: 521005 | C81: TITANIN | D81: SABRIYA FISHERIES LLP | E81: SELL | F81: 79,950 | G81: 107.62 | H81: NSE
A82: 2024-05-15 | B82: 539040 | C82: TTIL | D82: ADAN TRADERS LLP | E82: SELL | F82: 183,773 | G82: 50.22 | H82: NSE
A83: 2024-05-15 | B83: 544002 | C83: VIVAA | D83: MANJU DEVI | E83: BUY | F83: 50,000 | G83: 34.96 | H83: NSE
A84: 2024-05-15 | B84: 544002 | C84: VIVAA | D84: ASNANI STOCK BROKER PRIVATE LIMITED | E84: BUY | F84: 40,000 | G84: 34.97 | H84: NSE
A85: 2024-05-15 | B85: 544002 | C85: VIVAA | D85: ASNANI STOCK BROKER PRIVATE LIMITED | E85: SELL | F85: 42,000 | G85: 35 | H85: NSE
A86: 2024-05-15 | B86: AADHARHFC | C86: Aadhar Housing Finance L | D86: AKASH BHANSHALI | E86: BUY | F86: 2,200,000 | G86: 319.06 | H86: NSE
A87: 2024-05-15 | B87: AADHARHFC | C87: Aadhar Housing Finance L | D87: BLUE DAIMOND PROPERTIES PRIVATE LIMITED | E87: BUY | F87: 2,300,000 | G87: 315.04 | H87: NSE
A88: 2024-05-15 | B88: ALMONDZ | C88: Almondz Global Securities | D88: MANGALA SUBHASH RATHOD | E88: BUY | F88: 175,000 | G88: 115 | H88: NSE
A89: 2024-05-15 | B89: ALMONDZ | C89: Almondz Global Securities | D89: SUBHASH PHOOTARMAL RATHOD | E89: BUY | F89: 220,000 | G89: 114.92 | H89: NSE
A90: 2024-05-15 | B90: ASALCBR | C90: Asso Alcohols & Brew Ltd | D90: GRAVITON RESEARCH CAPITAL LLP | E90: BUY | F90: 170,147 | G90: 618.13 | H90: NSE
A91: 2024-05-15 | B91: ASPIRE | C91: Aspire & Innovative Adv L | D91: ARUNA AGARWAL | E91: BUY | F91: 92,000 | G91: 84.14 | H91: NSE
A92: 2024-05-15 | B92: BOMDYEING | C92: Bombay Dyeing & Mfg Co. | D92: GRAVITON RESEARCH CAPITAL LLP | E92: BUY | F92: 1,160,482 | G92: 182.85 | H92: NSE
A93: 2024-05-15 | B93: CIPLA | C93: Cipla Ltd | D93: ICICI PRUDENTIAL MUTUAL FUND | E93: BUY | F93: 5,525,999 | G93: 1345 | H93: NSE
A94: 2024-05-15 | B94: DLINKINDIA | C94: D-Link India Ltd | D94: QE SECURITIES LLP | E94: BUY | F94: 421,704 | G94: 434.37 | H94: NSE
A95: 2024-05-15 | B95: DLINKINDIA | C95: D-Link India Ltd | D95: MICROCURVES TRADING PRIVATE LIMITED | E95: BUY | F95: 274,265 | G95: 436.42 | H95: NSE
A96: 2024-05-15 | B96: DLINKINDIA | C96: D-Link India Ltd | D96: AAKRAYA RESEARCH LLP | E96: BUY | F96: 268,736 | G96: 433.68 | H96: NSE
A97: 2024-05-15 | B97: DLINKINDIA | C97: D-Link India Ltd | D97: GRAVITON RESEARCH CAPITAL LLP | E97: BUY | F97: 441,166 | G97: 431.01 | H97: NSE
A98: 2024-05-15 | B98: DYCL | C98: Dynamic Cables Limited | D98: GRAVITON RESEARCH CAPITAL LLP | E98: BUY | F98: 135,361 | G98: 602.64 | H98: NSE
A99: 2024-05-15 | B99: HINDMOTORS | C99: Hindustan Motors Limited | D99: MULTIPLIER SHARE & STOCK ADVISORS PRIVATE LIMITED | E99: BUY | F99: 1,253,994 | G99: 37.9 | H99: NSE
A100: 2024-05-15 | B100: HINDMOTORS | C100: Hindustan Motors Limited | D100: MANSI SHARE AND STOCK ADVISORS PVT LTD | E100: BUY | F100: 1,500,038 | G100: 37.95 | H100: NSE
A101: 2024-05-15 | B101: HINDMOTORS | C101: Hindustan Motors Limited | D101: SAHASTRAA ADVISORS PRIVATE LIMITED | E101: BUY | F101: 1,504,344 | G101: 37.97 | H101: NSE
A102: 2024-05-15 | B102: HINDMOTORS | C102: Hindustan Motors Limited | D102: TOPGAIN FINANCE PRIVATE LIMITED | E102: BUY | F102: 2,682,042 | G102: 37.96 | H102: NSE
A103: 2024-05-15 | B103: MOS | C103: Mos Utility Limited | D103: SKSE SECURITIES LTD | E103: BUY | F103: 145,600 | G103: 203.38 | H103: NSE
A104: 2024-05-15 | B104: PENINLAND | C104: Peninsula Land Limited | D104: CRONY VYAPAR PVT LTD | E104: BUY | F104: 4,287,727 | G104: 70.43 | H104: NSE
A105: 2024-05-15 | B105: PENINLAND | C105: Peninsula Land Limited | D105: GRAVITON RESEARCH CAPITAL LLP | E105: BUY | F105: 2,411,440 | G105: 70.79 | H105: NSE
A106: 2024-05-15 | B106: PRESSTONIC | C106: Presstonic Engineering L | D106: SUMICKSHA BANSAL | E106: BUY | F106: 60,000 | G106: 115.11 | H106: NSE
A107: 2024-05-15 | B107: SANG-RE | C107: Sanginita Chemicals Ltd | D107: SRESTHA FINVEST LIMITED | E107: BUY | F107: 312,252 | G107: 7.07 | H107: NSE
A108: 2024-05-15 | B108: SILKFLEX | C108: Silkflex Polymers India L | D108: JIGNESH AMRUTLAL THOBHANI | E108: BUY | F108: 120,000 | G108: 60 | H108: NSE
A109: 2024-05-15 | B109: SILKFLEX | C109: Silkflex Polymers India L | D109: AMRUTLAL GORDHANDAS THOBHANI | E109: BUY | F109: 140,000 | G109: 60 | H109: NSE
A110: 2024-05-15 | B110: SILKFLEX | C110: Silkflex Polymers India L | D110: KOKILABEN KIRITBHAI SHAH | E110: BUY | F110: 120,000 | G110: 59.57 | H110: NSE
A111: 2024-05-15 | B111: SILKFLEX | C111: Silkflex Polymers India L | D111: PALANIAPPAN MEYYAPPAN | E111: BUY | F111: 68,000 | G111: 60.71 | H111: NSE
A112: 2024-05-15 | B112: SILKFLEX | C112: Silkflex Polymers India L | D112: HEEMA BIPIN SHAH | E112: BUY | F112: 100,000 | G112: 60 | H112: NSE
A113: 2024-05-15 | B113: SILKFLEX | C113: Silkflex Polymers India L | D113: CAIFU INVESTMENT ADVISORY LLP | E113: BUY | F113: 220,000 | G113: 59.91 | H113: NSE
A114: 2024-05-15 | B114: SLONE | C114: Slone Infosystems Limited | D114: MANSI SHARE AND STOCK ADVISORS PVT LTD | E114: BUY | F114: 80,000 | G114: 96.62 | H114: NSE
A115: 2024-05-15 | B115: SLONE | C115: Slone Infosystems Limited | D115: EVERMORE SHARE BROKING PRIVATE LIMITED | E115: BUY | F115: 89,600 | G115: 98 | H115: NSE
A116: 2024-05-15 | B116: SUNREST | C116: Sunrest Lifescience Ltd | D116: MANJU DEVI | E116: BUY | F116: 32,000 | G116: 73.93 | H116: NSE
A117: 2024-05-15 | B117: TARMAT | C117: Tarmat Limited | D117: SETU SECURITIES PVT LTD | E117: BUY | F117: 145,000 | G117: 80.8 | H117: NSE
A118: 2024-05-15 | B118: TBOTEK | C118: TBO Tek Limited | D118: NORGES BANK ON ACCOUNT OF THE GOVERNMENT PENSION FUND GLOBAL | E118: BUY | F118: 868,000 | G118: 1424.61 | H118: NSE
A119: 2024-05-15 | B119: TBOTEK | C119: TBO Tek Limited | D119: VALUEQUEST INVESTMENT ADVISORS PRIVATE LIMITED | E119: BUY | F119: 593,000 | G119: 1425.37 | H119: NSE
A120: 2024-05-15 | B120: TBOTEK | C120: TBO Tek Limited | D120: GOLDMAN SACHS FDS GOLDMAN SACHS INDIA EQ PORTFOLIO | E120: BUY | F120: 653,187 | G120: 1411.35 | H120: NSE
A121: 2024-05-15 | B121: TBOTEK | C121: TBO Tek Limited | D121: NOMURA FUNDS IRELAND PLC NOMURA FUNDS IRELAND INDIA EQUITY FUND | E121: BUY | F121: 600,000 | G121: 1391.06 | H121: NSE
A122: 2024-05-15 | B122: TRU | C122: TruCap Finance Limited | D122: IND SWIFT LABORATORIES LIMITED | E122: BUY | F122: 900,909 | G122: 61.66 | H122: NSE
A123: 2024-05-15 | B123: VIKASLIFE | C123: Vikas Lifecare Limited | D123: ANKITA VISHAL SHAH | E123: BUY | F123: 8,918,889 | G123: 5.09 | H123: NSE
A124: 2024-05-15 | B124: WINSOL | C124: Winsol Engineers Limited | D124: TOPGAIN FINANCE PRIVATE LIMITED | E124: BUY | F124: 22,400 | G124: 389.16 | H124: NSE
A125: 2024-05-15 | B125: ALMONDZ | C125: Almondz Global Securities | D125: PARMEET KAUR | E125: SELL | F125: 200,000 | G125: 115 | H125: NSE
A126: 2024-05-15 | B126: ALMONDZ | C126: Almondz Global Securities | D126: VEENA GASES & CHEMICALS PRIVATE LIMITED | E126: SELL | F126: 170,899 | G126: 115 | H126: NSE
A127: 2024-05-15 | B127: ASALCBR | C127: Asso Alcohols & Brew Ltd | D127: GRAVITON RESEARCH CAPITAL LLP | E127: SELL | F127: 170,147 | G127: 617.46 | H127: NSE
A128: 2024-05-15 | B128: BOMDYEING | C128: Bombay Dyeing & Mfg Co. | D128: GRAVITON RESEARCH CAPITAL LLP | E128: SELL | F128: 1,160,482 | G128: 182.92 | H128: NSE
A129: 2024-05-15 | B129: CIPLA | C129: Cipla Ltd | D129: SAMINA HAMIED | E129: SELL | F129: 8,954,750 | G129: 1345 | H129: NSE
A130: 2024-05-15 | B130: CIPLA | C130: Cipla Ltd | D130: SHIRIN HAMIED | E130: SELL | F130: 6,363,000 | G130: 1345 | H130: NSE
A131: 2024-05-15 | B131: CIPLA | C131: Cipla Ltd | D131: RUMANA HAMIED | E131: SELL | F131: 4,943,250 | G131: 1345 | H131: NSE
A132: 2024-05-15 | B132: DLINKINDIA | C132: D-Link India Ltd | D132: AAKRAYA RESEARCH LLP | E132: SELL | F132: 268,736 | G132: 433.92 | H132: NSE
A133: 2024-05-15 | B133: DLINKINDIA | C133: D-Link India Ltd | D133: GRAVITON RESEARCH CAPITAL LLP | E133: SELL | F133: 441,166 | G133: 431.63 | H133: NSE
A134: 2024-05-15 | B134: DLINKINDIA | C134: D-Link India Ltd | D134: QE SECURITIES LLP | E134: SELL | F134: 439,949 | G134: 434.84 | H134: NSE
A135: 2024-05-15 | B135: DLINKINDIA | C135: D-Link India Ltd | D135: MICROCURVES TRADING PRIVATE LIMITED | E135: SELL | F135: 274,265 | G135: 436.62 | H135: NSE
A136: 2024-05-15 | B136: DYCL | C136: Dynamic Cables Limited | D136: GRAVITON RESEARCH CAPITAL LLP | E136: SELL | F136: 135,361 | G136: 603.11 | H136: NSE
A137: 2024-05-15 | B137: HINDMOTORS | C137: Hindustan Motors Limited | D137: MANSI SHARE AND STOCK ADVISORS PVT LTD | E137: SELL | F137: 2,502,906 | G137: 37.9 | H137: NSE
A138: 2024-05-15 | B138: HINDMOTORS | C138: Hindustan Motors Limited | D138: TOPGAIN FINANCE PRIVATE LIMITED | E138: SELL | F138: 3,132,042 | G138: 38.02 | H138: NSE
A139: 2024-05-15 | B139: HINDMOTORS | C139: Hindustan Motors Limited | D139: MULTIPLIER SHARE & STOCK ADVISORS PRIVATE LIMITED | E139: SELL | F139: 3,994 | G139: 38.3 | H139: NSE
A140: 2024-05-15 | B140: HINDMOTORS | C140: Hindustan Motors Limited | D140: SAHASTRAA ADVISORS PRIVATE LIMITED | E140: SELL | F140: 1,546,802 | G140: 37.98 | H140: NSE
A141: 2024-05-15 | B141: KEL | C141: Kundan Edifice Limited | D141: HARISH KUMAR GUPTA | E141: SELL | F141: 66,000 | G141: 174.84 | H141: NSE
A142: 2024-05-15 | B142: MOS | C142: Mos Utility Limited | D142: SKSE SECURITIES LTD | E142: SELL | F142: 145,600 | G142: 202.94 | H142: NSE
A143: 2024-05-15 | B143: PENINLAND | C143: Peninsula Land Limited | D143: CRONY VYAPAR PVT LTD | E143: SELL | F143: 4,787,727 | G143: 70.4 | H143: NSE
A144: 2024-05-15 | B144: PENINLAND | C144: Peninsula Land Limited | D144: GRAVITON RESEARCH CAPITAL LLP | E144: SELL | F144: 2,411,440 | G144: 70.64 | H144: NSE
A145: 2024-05-15 | B145: PRESSTONIC | C145: Presstonic Engineering L | D145: SUMICKSHA BANSAL | E145: SELL | F145: 67,200 | G145: 116.2 | H145: NSE
A146: 2024-05-15 | B146: RADIOWALLA | C146: Radiowalla Network Ltd | D146: PRABHAT FINANCIAL SERVICES LIMITED | E146: SELL | F146: 43,200 | G146: 114.48 | H146: NSE
A147: 2024-05-15 | B147: RATNAVEER | C147: Ratnaveer Precision Eng L | D147: VIVEK MEHROTRA | E147: SELL | F147: 391,293 | G147: 123.55 | H147: NSE
A148: 2024-05-15 | B148: SANG-RE | C148: Sanginita Chemicals Ltd | D148: SANGINITA INDUSTRIES LLP | E148: SELL | F148: 101,393 | G148: 7.2 | H148: NSE
A149: 2024-05-15 | B149: SILKFLEX | C149: Silkflex Polymers India L | D149: STCI PRIMARY DELAER LTD | E149: SELL | F149: 90,000 | G149: 60 | H149: NSE
A150: 2024-05-15 | B150: SLONE | C150: Slone Infosystems Limited | D150: JITENDRA MULARAM CHOUDHARY | E150: SELL | F150: 62,400 | G150: 96.65 | H150: NSE
A151: 2024-05-15 | B151: SLONE | C151: Slone Infosystems Limited | D151: MANSI SHARE AND STOCK ADVISORS PVT LTD | E151: SELL | F151: 30,400 | G151: 96.61 | H151: NSE
A152: 2024-05-15 | B152: SUMEETINDS | C152: Sumeet Ind Limited | D152: PROFIN COMMODITIES PRIVATE LIMITED | E152: SELL | F152: 575,848 | G152: 2.6 | H152: NSE
A153: 2024-05-15 | B153: SUMEETINDS | C153: Sumeet Ind Limited | D153: SHRENI CONSTRUCTION PRIVATE LIMITED . | E153: SELL | F153: 823,935 | G153: 2.44 | H153: NSE
A154: 2024-05-15 | B154: SUNREST | C154: Sunrest Lifescience Ltd | D154: ARYA FIN-TRADE SERVICES (INDIA) PVT. LTD | E154: SELL | F154: 22,400 | G154: 74 | H154: NSE
A155: 2024-05-15 | B155: TARMAT | C155: Tarmat Limited | D155: JAINAM BROKING LIMITED | E155: SELL | F155: 149,007 | G155: 80.94 | H155: NSE
A156: 2024-05-15 | B156: TARMAT | C156: Tarmat Limited | D156: JALIYAN COMMODITY | E156: SELL | F156: 225,993 | G156: 82.45 | H156: NSE
A157: 2024-05-15 | B157: TRU | C157: TruCap Finance Limited | D157: IND SWIFT LABORATORIES LIMITED | E157: SELL | F157: 606,927 | G157: 61.88 | H157: NSE
A158: 2024-05-15 | B158: VIKASLIFE | C158: Vikas Lifecare Limited | D158: ANKITA VISHAL SHAH | E158: SELL | F158: 3,926,174 | G158: 5.14 | H158: NSE
A159: 2024-05-15 | B159: WINSOL | C159: Winsol Engineers Limited | D159: TOPGAIN FINANCE PRIVATE LIMITED | E159: SELL | F159: 68,800 | G159: 381.35 | H159: NSE

Sheet Call Tracker (Equity & F&O)
M5: Back To Main Page
A6: Retail Research Technical Calls & Fundamental Performance Report for the month of May-2024
M7: =Main!B10 -> 2024-05-16
B8: Positional Call
A9: Sr.no | B9: Date | D9: Company | E9: Rec | F9: Rec Price | G9: Stop Loss*** | H9: Call Closed At | I9: Target | J9: Remark | K9: Profit / Loss per Share | L9: All charges | M9: Net Gain / Loss % | N9: Status | O9: Closed Date | P9: Market Closing Price | Q9: Second Buying Date
A10: 1 | B10: 2024-03-11 | D10: NESTLEIND | E10: Accu | F10: 2485-2585 | G10: 2390 | I10: 2800-3000 | J10: Open | P10: =VLOOKUP(D10,'MidCap Intra'!$B$11:$C$568,2,0) -> 2465.00 | R10: H
A11: 2 | B11: 2024-03-22 | D11: TCS | E11: Accu <> | F11: 3752-3852 | G11: 3612 | I11: 4072-4172 | J11: Open | P11: =VLOOKUP(D11,'MidCap Intra'!$B$11:$C$568,2,0) -> 3880.40 | R11: H
A12: 3 | B12: 2024-04-03 | D12: BRITANNIA | E12: Accu | F12: 4760 | G12: 4580 | H12: 4965 | I12: 5050-5300 | J12: Profit of Rs.205/- | K12: =H12-F12 -> 205 | L12: =(F12*-0.3)/100 -> -14.28 | M12: =(K12+L12)/F12 -> 4.01% | N12: Successful | O12: 2024-05-06 | R12: H
A13: 4 | B13: 2024-04-12 | D13: GLAND | E13: Accu | F13: 1705-1750 | G13: 1625 | I13: 1875-2000 | J13: Open | P13: =VLOOKUP(D13,'MidCap Intra'!$B$11:$C$568,2,0) -> 1775.20 | R13: K
A14: 5 | B14: 2024-04-15 | D14: HDFCBANK | E14: Accu <> | F14: 1425.5-1477.5 | G14: 1357.5 | I14: 1610.5-1730.5 | J14: Open | P14: =VLOOKUP(D14,'MidCap Intra'!$B$11:$C$568,2,0) -> 1438.50 | R14: H
A15: 6 | B15: 2024-04-23 | D15: PRSMJOHNSN | E15: Accu | F15: 161 | G15: 149.5 | H15: 148.5 | I15: 180-195 | J15: Loss of Rs.12.5 /- | K15: =H15-F15 -> -12.5 | L15: =(F15*-0.3)/100 -> -0.48 | M15: =(K15+L15)/F15 -> -8.06% | N15: Unsuccessful | O15: 2024-05-13 | R15: H
A16: 7 | B16: 2024-04-29 | D16: SUNTV | E16: Accu | F16: 642.5 | G16: 618 | H16: 669.5 | I16: 695-730 | J16: Profit of Rs.27/- | K16: =H16-F16 -> 27 | L16: =(F16*-0.3)/100 -> -1.93 | M16: =(K16+L16)/F16 -> 3.90% | N16: Successful | O16: 2024-05-10 | R16: H
A17: 8 | B17: 2024-04-30 | D17: LTF | E17: Accu | F17: 165.5 | G17: 159 | H17: 158.5 | I17: 180-190 | J17: Loss of Rs.7/- | K17: =H17-F17 -> -7 | L17: =(F17*-0.3)/100 -> -0.50 | M17: =(K17+L17)/F17 -> -4.53% | N17: Unsuccessful | O17: 2024-05-09 | R17: H
A18: 9 | B18: 2024-04-30 | D18: KPITTECH | E18: Accu | F18: 1410-1480 | G18: 1360 | I18: 1600-1700 | J18: Open | P18: =VLOOKUP(D18,'MidCap Intra'!$B$11:$C$568,2,0) -> 1493.25 | R18: H
A19: 10 | B19: 2024-05-02 | D19: HCLTECH | E19: Accu <> | F19: 1292-1342 | G19: 1267 | I19: 1417-1492 | J19: Open | P19: =VLOOKUP(D19,'MidCap Intra'!$B$11:$C$568,2,0) -> 1332.90 | R19: H
A20: 11 | B20: 2024-05-06 | D20: COALINDIA | E20: Accu | F20: 445-455 | G20: 428 | I20: 490-500 | J20: Open | P20: =VLOOKUP(D20,'MidCap Intra'!$B$11:$C$568,2,0) -> 467.85 | R20: H
A21: 12 | B21: 2024-05-07 | D21: ITC | E21: Accu | F21: 432-442 | G21: 416 | I21: 468-495 | J21: Open | P21: =VLOOKUP(D21,'MidCap Intra'!$B$11:$C$568,2,0) -> 427.80 | R21: H
A22: 13 | B22: 2024-05-14 | D22: TATAPOWER | E22: Accu | F22: 420 | G22: 395 | H22: 439 | I22: 440-460 | J22: Profit of Rs.19/- | K22: =H22-F22 -> 19 | L22: =(F22*-0.3)/100 -> -1.26 | M22: =(K22+L22)/F22 -> 4.22% | N22: Successful | O22: 2024-05-15 | R22: H
A27: CLBS = Closing Basis ***
A28: Dividend adjusted <> | F28: Reinitiated $
A29: Part book {} | D29: s | F29: Revised stoploss #
A33: Master Trade High Risk
A34: Sr.no | B34: Date | D34: Company | E34: Rec | F34: Rec Price | G34: Stop Loss | H34: Call Closed At | I34: Target | J34: Remark | K34: Profit / Loss per share | L34: All charges | M34: Gain / Loss per Lot | N34: Lot | O34: Status | P34: Closed Date
A35: 1 | B35: 2024-04-26 | D35: TATACONSUM MAY FUT | E35: Buy | F35: 1102.5 | G35: 1078 | H35: 1114 | I35: 1128-1150 | J35: Profit of Rs.11.5/- | K35: =H35-F35 -> 11.5 | L35: =(H35*N35)*0.03% -> 150.39 | M35: =(K35*N35)-L35 -> 5024.6 | N35: 450 | O35: Successful | P35: 2024-05-03 | R35: H
A36: 2 | B36: 2024-05-02 | D36: JUBLFOOD MAY FUT | E36: Buy | F36: 457 | G36: 448 | H36: 465.5 | I36: 468-478 | J36: Profit of Rs.8.5/- | K36: =H36-F36 -> 8.5 | L36: =(H36*N36)*0.03% -> 174.56 | M36: =(K36*N36)-L36 -> 10450.4 | N36: 1250 | O36: Successful | P36: 2024-05-03 | R36: H
A37: 3 | B37: 2024-05-02 | D37: ASIANPAINT MAY FUT | E37: Buy | F37: 3002.5 | G37: 2950 | H37: 2950 | I37: 3055-3108 | J37: Loss of Rs.52.5/- | K37: =H37-F37 -> -52.5 | L37: =(H37*N37)*0.03% -> 177.00 | M37: =(K37*N37)-L37 -> -10677.0 | N37: 200 | O37: Unsuccessful | P37: 2024-05-03 | R37: N
A38: 4 | B38: 2024-05-06 | D38: JUBLFOOD MAY FUT | E38: Buy | F38: 455 | G38: 446 | H38: 465.5 | I38: 464-473 | J38: Profit of Rs.10.5/- | K38: =H38-F38 -> 10.5 | L38: 174.56 | M38: 12950.4 | N38: 1250 | O38: Successful | P38: 2024-05-06 | R38: H
A39: 5 | B39: 2024-05-06 | D39: SBIN MAY FUT | E39: Buy | F39: 805 | G39: 790 | H39: 790 | I39: 820-835 | J39: Loss of Rs.15/- | K39: =H39-F39 -> -15 | L39: =(H39*N39)*0.03% -> 177.75 | M39: =(K39*N39)-L39 -> -11427.8 | N39: 750 | O39: Unsuccessful | P39: 2024-05-07 | R39: H
A40: 6 | B40: 2024-05-07 | D40: HDFCLIFE MAY FUT | E40: Sell | F40: 561 | G40: 571 | H40: 560.5 | I40: 550-542 | J40: Profit of Rs.0.5/- | K40: =F40-H40 -> 0.5 | L40: =(H40*N40)*0.03% -> 184.97 | M40: =(K40*N40)-L40 -> 365.0 | N40: 1100 | O40: Neutral | P40: 2024-05-07 | R40: H
A41: 7 | B41: 2024-05-07 | D41: UPL MAY FUT | E41: Sell | F41: 474 | G41: 482 | H41: 482 | I41: 466-458 | J41: Loss of Rs.8/- | K41: =F41-H41 -> -8 | L41: 187.98 | M41: -10588.0 | N41: 1300 | O41: Unsuccessful | P41: 2024-05-08 | R41: K
A42: 8 | B42: 2024-05-07 | D42: HAVELLS MAY FUT | E42: Buy | F42: 1680 | G42: 1660 | H42: 1697 | I42: 1701-1722 | J42: Profit of Rs.17/- | K42: =H42-F42 -> 17 | L42: =(H42*N42)*0.03% -> 254.55 | M42: =(K42*N42)-L42 -> 8245.5 | N42: 500 | O42: Successful | P42: 2024-05-08 | R42: N
A43: 9 | B43: 2024-05-07 | D43: FEDERALBNK MAY FUT | E43: Buy | F43: 161.25 | G43: 159 | H43: 158.75 | I43: 163-165 | J43: Loss of Rs.2.5/- | K43: =H43-F43 -> -2.5 | L43: 238.13 | M43: -12738.1 | N43: 5000 | O43: Unsuccessful | P43: 2024-05-08 | R43: K
A44: 10 | B44: 2024-05-08 | D44: AXISBANK MAY FUT | E44: Buy | F44: 1131 | G44: 1115 | H44: 1133 | I44: 1148-1165 | J44: Profit of Rs.2/- | K44: =H44-F44 -> 2 | L44: =(H44*N44)*0.03% -> 212.44 | M44: =(K44*N44)-L44 -> 1037.6 | N44: 625 | O44: Neutral | P44: 2024-05-10 | R44: H
A45: 11 | B45: 2024-05-09 | D45: RELIANCE MAY FUT | E45: Buy | F45: 2822 | G45: 2778 | H45: 2825 | I45: 2868-2910 | J45: Profit of Rs.3/- | K45: =H45-F45 -> 3 | L45: =(H45*N45)*0.03% -> 211.88 | M45: =(K45*N45)-L45 -> 538.1 | N45: 250 | O45: Neutral | P45: 2024-05-10 | R45: H
A46: 12 | B46: 2024-05-09 | D46: DIXON MAY FUT | E46: Buy | F46: 8435 | G46: 8330 | H46: 8330 | I46: 8545-8650 | J46: Loss of Rs.105/- | K46: =H46-F46 -> -105 | L46: =(H46*N46)*0.03% -> 249.90 | M46: =(K46*N46)-L46 -> -10749.9 | N46: 100 | O46: Unsuccessful | P46: 2024-05-09 | R46: K
A47: 13 | B47: 2024-05-09 | D47: ASTRAL MAY FUT | E47: Buy | F47: 2077 | G47: 2050 | H47: 2081 | I47: 2108-2140 | J47: Profit of Rs.4/- | K47: =H47-F47 -> 4 | L47: =(H47*N47)*0.03% -> 229.12 | M47: =(K47*N47)-L47 -> 1238.9 | N47: 367 | O47: Neutral | P47: 2024-05-09 | R47: N
A48: 14 | B48: 2024-05-13 | D48: HAVELLS MAY FUT | E48: Buy | F48: 1681 | G48: 1660 | H48: 1697 | I48: 1701-1722 | J48: Profit of Rs.16/- | K48: 16 | L48: 254.55 | M48: 7745.5 | N48: 500 | O48: Successful | P48: 2024-05-13 | R48: N
A49: 15 | B49: 2024-05-13 | D49: JINDALSTEL MAY FUT | E49: Buy | F49: 937 | G49: 918 | H49: 939.5 | I49: 957-974 | J49: Profit of Rs.2.5/- | K49: =H49-F49 -> 2.5 | L49: =(H49*N49)*0.03% -> 176.16 | M49: =(K49*N49)-L49 -> 1386.3 | N49: 625 | O49: Successful | P49: 2024-05-13 | R49: N
A50: 16 | B50: 2024-05-13 | D50: CUMMINSIND MAY FUT | E50: Buy | F50: 3512.5 | G50: 3475 | H50: 3475 | I50: 3544-3579 | J50: Loss of Rs.105/- | K50: =H50-F50 -> -37.5 | L50: 312.75 | M50: -11562.8 | N50: 300 | O50: Unsuccessful | P50: 2024-05-14 | R50: N
A51: 17 | B51: 2024-05-13 | D51: HCLTECH MAY FUT | E51: Buy | F51: 1320 | G51: 1288 | H51: 1339.5 | I51: 1355-1385 | J51: Profit of Rs.19.5/- | K51: =H51-F51 -> 19.5 | L51: 140.65 | M51: 6684.4 | N51: 350 | O51: Successful | P51: 2024-05-15 | R51: H
A52: 18 | B52: 2024-05-14 | D52: AXISBANK MAY FUT | E52: Buy | F52: 1127-1130 | G52: 1110 | I52: 1148-1165 | J52: Open | R52: H
A53: 19 | B53: 2024-05-14 | D53: NIFTY MAY FUT | E53: Buy | F53: 22190 | G53: 21890 | H53: 22320 | J53: Profit of Rs.108.5/- | K53: =H53-F53 -> 130 | L53: =(H53*N53)*0.03% -> 167.40 | M53: =(K53*N53)-L53 -> 3082.6 | N53: 25 | O53: Successful | P53: 2024-05-14 | R53: H
D54: NIFTY 22300 CE 16-MAY | E54: Sell | F54: 51 | H54: 72.5 | K54: =F54-H54 -> -21.5 | L54: 50.00 | M54: =(K54*25)-50 -> -587.5 | N54: 25
A55: 20 | B55: 2024-05-15 | D55: TVSMOTOR MAY FUT | E55: Buy | F55: 2125 | G55: 2096 | H55: 2096 | I55: 2155-2185 | J55: Loss of Rs.29/- | K55: =H55-F55 -> -29 | L55: =(H55*N55)*0.03% -> 220.08 | M55: =(K55*N55)-L55 -> -10370.1 | N55: 350 | O55: Unsuccessful | P55: 2024-05-15 | R55: H
A61: Master Trade Medium Risk
A62: Sr.no | B62: Date | D62: Company | E62: Rec | F62: Rec Price | G62: Stop Loss | H62: Call Closed At | I62: Target | J62: Remark | K62: Profit/ Loss per lot | L62: All charges | M62: Gain / Loss per Lot | N62: Lot | O62: Status | P62: Closed Date
A63: 1 | B63: 2024-04-29 | D63: NIFTY 21800 PE 30 MAY | E63: Sell | F63: 81 | H63: 45 | J63: Profit of Rs.40/- | K63: =F63-H63 -> 36 | L63: 50.00 | M63: 900.0 | N63: 25 | O63: Successful | P63: 2024-05-08 | R63: H
D64: NIFTY 23200 CE 30 MAY | E64: Sell | F64: 95 | H64: 91 | K64: =F64-H64 -> 4 | L64: 50.00 | N64: 25
A65: 2 | B65: 2024-05-02 | D65: KOTAKBANK 1600 CE 30 MAY | E65: Buy | F65: 32 | H65: 44 | J65: Profit of Rs.7/- | K65: =H65-F65 -> 12 | L65: 50.00 | M65: 2700.0 | N65: 400 | O65: Successful | P65: 2024-05-02 | R65: H
D66: KOTAKBANK 1660 CE 30 MAY | E66: Sell | F66: 16 | H66: 21 | K66: =F66-H66 -> -5 | L66: 50.00 | N66: 400
A67: 3 | B67: 2024-05-02 | D67: NIFTY 22700 PE 2-MAY | E67: Buy | F67: 40 | G67: 10 | H67: 65.5 | I67: 80-120 | J67: Profit of Rs.25.5/- | K67: =H67-F67 -> 25.5 | L67: 50.00 | M67: =(K67*N67)-L67 -> 587.5 | N67: 25 | O67: Successful | P67: 2024-05-02 | R67: H
A68: 4 | B68: 2024-05-02 | D68: NIFTY 22700 PE 2-MAY | E68: Buy | F68: 37.5 | G68: 10 | H68: 57.5 | I68: 80-120 | J68: Profit of Rs.20/- | K68: =H68-F68 -> 20 | L68: 50.00 | M68: =(K68*N68)-L68 -> 450.0 | N68: 25 | O68: Successful | P68: 2024-05-02 | R68: H
A69: 5 | B69: 2024-05-02 | D69: KOTAKBANK 1600 CE 30 MAY | E69: Buy | F69: 39 | H69: 30.5 | J69: Loss of Rs.04/- | K69: =H69-F69 -> -8.5 | L69: 50.00 | M69: -1700.0 | N69: 400 | O69: Unsuccessful | P69: 2024-05-03 | R69: H
D70: KOTAKBANK 1660 CE 30 MAY | E70: Sell | F70: 19 | H70: 14.5 | K70: =F70-H70 -> 4.5 | L70: 50.00 | N70: 400
A71: 6 | B71: 2024-05-03 | D71: NIFTY 22600 CE 2-MAY | E71: Sell | F71: 132 | H71: 87 | J71: Profit of Rs.24/- | K71: =F71-H71 -> 45 | L71: 50.00 | M71: 500.0 | N71: 25 | O71: Successful | P71: 2024-05-02 | R71: N
D72: NIFTY 22750 CE 2-MAY | E72: Buy | F72: 26 | H72: 5 | K72: =H72-F72 -> -21 | L72: 50.00 | N72: 25
A73: 7 | B73: 2024-05-03 | D73: NIFTY 22800 PE 9-MAY | E73: Buy | F73: 130 | H73: 212.5 | J73: Profit of Rs.33/- | K73: =H73-F73 -> 82.5 | L73: 50.00 | M73: 725.0 | N73: 25 | O73: Successful | P73: 2024-05-03
D74: NIFTY 22600 PE 9-MAY | E74: Sell | F74: 63 | H74: 112.5 | K74: =F74-H74 -> -49.5 | L74: 50.00 | N74: 25
A75: 8 | B75: 2024-05-03 | D75: FINNIFTY 21950 CE 7-MAY | E75: Buy | F75: 122 | G75: 80 | H75: 80 | I75: 160-200 | J75: Loss of Rs.42/- | K75: =H75-F75 -> -42 | L75: 50.00 | M75: =(K75*N75)-L75 -> -1730.0 | N75: 40 | O75: Unsuccessful | P75: 2024-05-03 | R75: N
A76: 9 | B76: 2024-05-03 | D76: BANKNIFTY 49200 CE 8-MAY | E76: Buy | F76: 295 | G76: 190 | H76: 360 | I76: 400-500 | J76: Profit of Rs.65/- | K76: 65 | L76: 50.00 | M76: =(K76*N76)-L76 -> 925.0 | N76: 15 | O76: Successful | P76: 2024-05-03 | R76: H
A77: 10 | B77: 2024-05-06 | D77: BANKNIFTY 48900 CE 8-MAY | E77: Buy | F77: 385 | G77: 280 | H77: 280 | I77: 480-580 | J77: Loss of Rs.105/- | K77: -105 | L77: 50.00 | M77: -1625.0 | N77: 15 | O77: Unsuccessful | P77: 2024-05-06 | R77: K
A78: 11 | B78: 2024-05-07 | D78: NIFTY 22400 PE 09-MAY | E78: Buy | F78: 82 | G78: 49 | H78: 102 | I78: 110-140 | J78: Profit of Rs.20/- | K78: 20 | L78: 50.00 | M78: =(K78*N78)-L78 -> 450.0 | N78: 25 | O78: Successful | P78: 2024-05-07 | R78: H
A79: 12 | B79: 2024-05-07 | D79: FINNIFTY 21650 CE 07-MAY | E79: Buy | F79: 45 | G79: 9 | H79: 9 | I79: 90-130 | J79: Loss of Rs.36/- | K79: -36 | L79: 50.00 | M79: -1490.0 | N79: 40 | O79: Unsuccessful | P79: 2024-05-07 | R79: N
A80: 13 | B80: 2024-05-07 | D80: VEDL 390 PE MAY | E80: Buy | F80: 11.6 | H80: 14.2 | J80: Profit of Rs.0.90/- | K80: 2.6 | L80: 50.00 | M80: 1970.0 | N80: 2300 | O80: Successful | P80: 2024-05-07 | R80: H
D81: VEDL 380 PE MAY | E81: Sell | F81: 8.2 | H81: 9.9 | K81: =F81-H81 -> -1.7 | L81: 50.00 | N81: 2300
A82: 14 | B82: 2024-05-07 | D82: BANKNIFTY 48300 PE 08-MAY | E82: Buy | F82: 200 | G82: 90 | H82: 255 | I82: 350-450 | J82: Profit of Rs.55/- | K82: =H82-F82 -> 55 | L82: 50.00 | M82: =(K82*N82)-L82 -> 775.0 | N82: 15 | O82: Successful | P82: 2024-05-07 | R82: N
A83: 15 | B83: 2024-05-08 | D83: NIFTY 22300 PE 09-MAY | E83: Buy | F83: 54 | G83: 0 | H83: 80 | I83: 120-200 | J83: Profit of Rs.26/- | K83: =H83-F83 -> 26 | L83: 50.00 | M83: =(K83*N83)-L83 -> 600.0 | N83: 25 | O83: Successful | P83: 2024-05-08 | R83: H
A84: 16 | B84: 2024-05-08 | D84: NIFTY 21800 PE 30 MAY | E84: Sell | F84: 121 | H84: 136 | J84: Profit of Rs.13/- | K84: =F84-H84 -> -15 | L84: 50.00 | M84: 225.0 | N84: 25 | O84: Neutral | P84: 2024-05-10 | R84: H
D85: NIFTY 23000 CE 30 MAY | E85: Sell | F85: 69 | H85: 41 | K85: =F85-H85 -> 28 | L85: 50.00 | N85: 25
A86: 17 | B86: 2024-05-09 | D86: NIFTY 22200 PE 9 MAY | E86: Buy | F86: 51 | H86: 112.5 | J86: Profit of Rs.39.5/- | K86: =H86-F86 -> 61.5 | L86: 50.00 | M86: 887.5 | N86: 25 | O86: Successful | P86: 2024-05-09 | R86: N
D87: NIFTY 22250 CE 9 MAY | E87: Buy | F87: 41 | H87: 19 | K87: =H87-F87 -> -22 | L87: 50.00 | N87: 25
A88: 18 | B88: 2024-05-09 | D88: NIFTY 22150 CE 9 MAY | E88: Buy | F88: 50 | G88: 0 | H88: 0 | I88: 100-150 | J88: Loss of Rs.50/- | K88: =H88-F88 -> -50 | L88: 25.00 | M88: =(K88*N88)-L88 -> -1275.0 | N88: 25 | O88: Unsuccessful | P88: 2024-05-09 | R88: N
A89: 19 | B89: 2024-05-09 | D89: LT 3380 CE MAY | E89: Buy | F89: 66.5 | H89: 76 | J89: Profit of Rs.9.5/- | K89: =H89-F89 -> 9.5 | L89: 50.00 | M89: 1325.0 | N89: 150 | O89: Successful | P89: 2024-05-15 | R89: N
D90: LT 3460 CE MAY | E90: Sell | F90: 40.5 | H90: 40.5 | K90: =H90-F90 -> 0 | L90: 50.00 | N90: 150
A91: 20 | B91: 2024-05-09 | D91: BANKNIFTY 48000 CE 15 MAY | E91: Buy | F91: 350 | G91: 250 | H91: 265 | I91: 450-550 | J91: Loss of Rs.85/- | K91: =H91-F91 -> -85 | L91: 50.00 | M91: =(K91*N91)-L91 -> -1325.0 | N91: 15 | O91: Unsuccessful | P91: 2024-05-09 | R91: H
A92: 21 | B92: 2024-05-10 | D92: NIFTY 22000 PE 16 MAY | E92: Buy | F92: 137.5 | G92: 80 | H92: 145 | I92: 200-250 | J92: Profit of Rs.7.5/- | K92: =H92-F92 -> 7.5 | L92: 50.00 | M92: 137.5 | N92: 25 | O92: Neutral | P92: 2024-05-13 | R92: H
A93: 22 | B93: 2024-05-10 | D93: BANKNIFTY 47700 PE 15 MAY | E93: Buy | F93: 295 | G93: 180 | H93: 367.5 | I93: 400-500 | J93: Profit of Rs.72.5/- | K93: =H93-F93 -> 72.5 | L93: 50.00 | M93: =(K93*N93)-L93 -> 1037.5 | N93: 15 | O93: Successful | P93: 2024-05-10 | R93: H
A94: 23 | B94: 2024-04-13 | D94: BANKNIFTY 47300 CE 15 MAY | E94: Buy | F94: 235 | G94: 140 | H94: 315 | I94: 350-450 | J94: Profit of Rs.80/- | K94: =H94-F94 -> 80 | L94: 50.00 | M94: =(K94*N94)-L94 -> 1150.0 | N94: 15 | O94: Successful | P94: 2024-05-13 | R94: H
A95: 24 | B95: 2024-05-13 | D95: NIFTY 21900 CE 16 MAY | E95: Buy | F95: 117.5 | G95: 50 | H95: 152.5 | I95: 200-280 | J95: Profit of Rs.35/- | K95: =H95-F95 -> 35 | L95: 50.00 | M95: =(K95*N95)-L95 -> 825.0 | N95: 25 | O95: Successful | P95: 2024-05-13 | R95: H
A96: 25 | B96: 2024-05-13 | D96: MIDCPNIFTY 10825 CE 13 MAY | E96: Buy | F96: 25.5 | G96: 8 | H96: 37 | I96: 50-65 | J96: Profit of Rs.11.5- | K96: =H96-F96 -> 11.5 | L96: 50.00 | M96: =(K96*N96)-L96 -> 812.5 | N96: 75 | O96: Successful | P96: 2024-05-13 | R96: N
A97: 26 | B97: 2024-05-13 | D97: FINNIFTY 21200 CE 14 MAY | E97: Buy | F97: 62 | G97: 30 | H97: 36 | I97: 95-125 | J97: Loss of Rs.26/- | K97: =H97-F97 -> -26 | L97: 50.00 | M97: -1090.0 | N97: 40 | O97: Unsuccessful | P97: 2024-05-13 | R97: N
A98: 27 | B98: 2024-05-13 | D98: FINNIFTY 21200 CE 14 MAY | E98: Buy | F98: 96.5 | H98: 140 | J98: Profit of Rs.14.5/- | K98: 43.5 | L98: 50.00 | M98: 480.0 | N98: 40 | O98: Successful | P98: 2024-05-14 | R98: N
D99: FINNIFTY 21300 PE 14 MAY | E99: Buy | F99: 96.5 | H99: 67.5 | K99: -29 | L99: 50.00 | N99: 40
A100: 28 | B100: 2024-05-14 | D100: FINNIFTY 21250 CE 14 MAY | E100: Buy | F100: 24 | H100: 8 | J100: Profit of Rs.25.5/- | K100: -16 | L100: 50.00 | M100: 920.0 | N100: 40 | O100: Successful | P100: 2024-05-14 | R100: N
D101: FINNIFTY 21300 PE 14 MAY | E101: Buy | F101: 46 | H101: 87.5 | K101: 41.5 | L101: 50.00 | N101: 40
A102: 29 | B102: 2024-05-15 | D102: BANKNIFTY 47600 CE 15 MAY | E102: Buy | F102: 87.5 | G102: 0 | H102: 35 | I102: 180-270 | J102: Loss of Rs.52.5/- | K102: =H102-F102 -> -52.5 | L102: 50.00 | M102: =(K102*N102)-L102 -> -837.5 | N102: 15 | O102: Unsuccessful | P102: 2024-05-15 | R102: N
A106: Techno -Funda (positional)
A107: Sr.no | B107: Date | D107: Company | E107: Rec | F107: Rec Price | G107: Stop Loss*** | H107: Call Closed At | I107: Target | J107: Remark | K107: Profit / Loss per Share/Lot | L107: All charges | M107: Net Gain / Loss % | N107: Status | O107: Closed Date | P107: Market Closing Price | Q107: Second Buying Date
A108: 1 | B108: 2024-03-05 | D108: TRIDENT | E108: Accu | F108: 37.3-41.30 | G108: 35 | I108: 48-52 | J108: Open | P108: =VLOOKUP(D108,'MidCap Intra'!$B$11:$C$568,2,0) -> 38.55 | R108: H
A109: 2 | B109: 2024-04-08 | D109: NILKAMAL | E109: Accu | F109: 1805-1955 | G109: 1770 | I109: 2150-2350 | J109: Open | R109: H
A112: CLBS = Closing Basis *** | F112: Reinitiated $
A113: Dividend adjusted <> | F113: Revised stoploss # | H113: .................
B122: Investment Idea
A123: Sr.no | B123: Date | D123: Company | E123: Rec | F123: Rec Price | G123: Point of Review | H123: Close Rate | I123: Target | J123: Remark | K123: Profit / Loss per Share | L123: Gain / Loss % | M123: Status | N123: Closed Date
A124: 1 | B124: 2013-11-01 | D124: L&T Finance Holding | E124: Accu | F124: 82.00 | G124: - | H124: 100 | I124: 100.00 | J124: Target Achieved | K124: =H124-F124 -> 18.00 | L124: =K124/F124 -> 21.95% | M124: Successful | N124: 2016-10-14
A125: 2 | B125: 2014-06-04 | D125: Finolex Inds | E125: Buy | F125: 257.00 | G125: - | H125: 300 | I125: 300.00 | J125: Target Achieved | K125: 43.00 | L125: 16.73% | M125: Successful | N125: 2014-07-02
A126: 3 | B126: 2014-07-08 | D126: JK Cement | E126: Buy | F126: 393.00 | G126: - | H126: 468 | I126: 468.00 | J126: Target Achieved | K126: 75.00 | L126: 19.08% | M126: Successful | N126: 2014-08-12
A127: 4 | B127: 2014-08-06 | D127: Finolex Cables | E127: Buy | F127: 205.00 | G127: - | H127: 275 | I127: 250.00 | J127: Target Achieved | K127: 70.00 | L127: 34.15% | M127: Successful | N127: 2014-11-19
A128: 5 | B128: 2014-09-04 | D128: Exide Inds | E128: Buy | F128: 162.00 | G128: - | H128: 190 | I128: 190.00 | J128: Target Achieved | K128: 28.00 | L128: 17.28% | M128: Successful | N128: 2015-01-02
A129: 6 | B129: 2014-09-04 | D129: Deepak Nitrite | E129: Buy | F129: 75.00 | G129: - | H129: 91.5 | I129: 95-100 | J129: Profit of Rs.16.50/- | K129: 16.50 | L129: 22.00% | M129: Successful | N129: 2014-11-11
A130: 7 | B130: 2014-10-01 | D130: Mercks | E130: Buy | F130: 850.00 | G130: - | H130: 982.5 | I130: 1050.00 | J130: Profit of Rs.132.50/- | K130: 132.50 | L130: 15.59% | M130: Successful | N130: 2015-02-04
A131: 8 | B131: 2014-10-01 | D131: Grindwell Norton | E131: Buy | F131: 475.00 | G131: - | H131: 515 | I131: 600.00 | J131: Profit of Rs.40/- | K131: 40.00 | L131: 8.42% | M131: Successful | N131: 2014-10-27
A132: 9 | B132: 2014-10-01 | D132: Snowman Logistics | E132: Buy | F132: 86.00 | G132: - | H132: 99 | I132: 140.00 | J132: Profit of Rs.13.00/- | K132: 13.00 | L132: 15.12% | M132: Successful | N132: 2014-10-27
A133: 10 | B133: 2014-10-14 | D133: Birla Corp | E133: Buy | F133: 496.60 | G133: - | H133: 621 | I133: 580.00 | J133: Target Achieved | K133: 124.40 | L133: 25.05% | M133: Successful | N133: 2016-08-23
A134: 11 | B134: 2014-10-14 | D134: Ultratech Cem | E134: Buy | F134: 2481.90 | G134: - | H134: 2840 | I134: 2870.00 | J134: Profit of Rs.358.10/- | K134: 358.10 | L134: 14.43% | M134: Successful | N134: 2015-01-13
A135: 12 | B135: 2014-10-16 | D135: Sintex Inds | E135: Buy | F135: 84.50 | G135: - | H135: 93 | I135: 110.00 | J135: Profit of Rs.8.50/- | K135: 8.50 | L135: 10.06% | M135: Successful | N135: 2014-10-27
A136: 13 | B136: 2014-10-16 | D136: HSIL | E136: Buy | F136: 401.00 | G136: - | H136: 428 | I136: 450.00 | J136: Profit of Rs.27.00/- | K136: 27.00 | L136: 6.73% | M136: Successful | N136: 2015-01-16
A137: 14 | B137: 2014-10-16 | D137: Eveready Inds | E137: Buy | F137: 101.00 | G137: - | H137: 112 | I137: 120.00 | J137: Profit of Rs.11.00/- | K137: 11.00 | L137: 10.89% | M137: Successful | N137: 2014-10-27
A138: 15 | B138: 2014-11-11 | D138: Pennar Inds | E138: Buy | F138: 59.00 | G138: - | H138: 76 | I138: 76.00 | J138: Target Achieved | K138: 17.00 | L138: 28.81% | M138: Successful | N138: 2017-10-24
A139: 16 | B139: 2014-11-11 | D139: Snowman Logistics | E139: Buy | F139: 99.00 | G139: - | H139: 120 | I139: 120.00 | J139: Profit of Rs.21/- | K139: 21.00 | L139: 21.21% | M139: Successful | N139: 2014-11-17
A140: 17 | B140: 2014-11-13 | D140: Dharamsi Morarji Chem | E140: Buy | F140: 22.00 | G140: - | H140: 33.55 | I140: 32.00 | J140: Profit of Rs 11.55/- | K140: 11.55 | L140: 52.50% | M140: Successful | N140: 2015-07-03
A141: 18 | B141: 2014-12-03 | D141: Tatachem | E141: Buy | F141: 440.00 | G141: - | H141: 520 | I141: 520.00 | J141: Profit of Rs 80.00/- | K141: 80.00 | L141: 18.18% | M141: Successful | N141: 2015-07-23
A142: 19 | B142: 2014-12-03 | D142: Advanta | E142: Buy | F142: 360.00 | G142: - | H142: 427 | I142: 425.00 | J142: Profit of Rs.67.00/- | K142: 67.00 | L142: 18.61% | M142: Successful | N142: 2015-02-23
A143: 20 | B143: 2015-01-08 | D143: GDL | E143: Buy | F143: 360.00 | G143: - | H143: 455 | I143: 420.00 | J143: Profit of Rs.95.00/- | K143: 95.00 | L143: 26.39% | M143: Successful | N143: 2015-01-20
A144: 21 | B144: 2015-01-08 | D144: NRB Bearing | E144: Buy | F144: 130.00 | H144: 175.5 | I144: 165.00 | J144: Profit of Rs 45.50/- | K144: 45.50 | L144: 35.00% | M144: Successful | N144: 2017-12-19
A145: 22 | B145: 2015-02-05 | D145: GSFC | E145: Accu | F145: 98.00 | H145: 120 | I145: 120.00 | J145: Target Achieved | K145: 22.00 | L145: 22.45% | M145: Successful | N145: 2017-01-18
A146: 23 | B146: 2015-02-05 | D146: Sundrmfast | E146: Accu | F146: 196.00 | H146: 262 | I146: 255.00 | J146: Target Achieved | K146: 66.00 | L146: 33.67% | M146: Successful | N146: 2016-08-17
A147: 24 | B147: 2015-03-04 | D147: GPPL | E147: Accu | F147: 235 | H147: 77.00 | I147: 280-285 | J147: Loss of Rs.158/- | K147: -158.00 | L147: -67.23% | M147: Unsuccessful | N147: 2019-02-26
A148: 25 | B148: 2015-03-04 | D148: ORIENTCEM | E148: Accu | F148: 185.00 | H148: 224 | I148: 220-225 | J148: Target Achieved | K148: 39.00 | L148: 21.08% | M148: Successful | N148: 2016-10-04
A149: 26 | B149: 2015-03-27 | D149: PFS | E149: Accu | F149: 49.5 | H149: 15.85 | I149: 67.00 | J149: Loss of Rs.33.65/- | K149: -33.65 | L149: -68% | M149: Unsuccessful | N149: 2019-06-11
A150: 27 | B150: 2015-03-30 | D150: Walchandnagar Ind Ltd | E150: Accu | F150: 183.50 | H150: 219 | I150: 218.00 | J150: Profit of Rs.35.50/- | K150: 35.50 | L150: 19.35% | M150: Successful | N150: 2015-04-09
A151: 28 | B151: 2015-04-20 | D151: Kalpataru Power Transmission Ltd | E151: Accu | F151: =(227+237)/2 -> 232.00 | H151: 298 | I151: 298.00 | J151: Target Achieved | K151: 66.00 | L151: 28.45% | M151: Successful | N151: 2017-03-29
A152: 29 | B152: 2015-05-04 | D152: Mastek Ltd | E152: Buy | F152: 385.00 | H152: =212.5+331 -> 543.5 | I152: 510.00 | J152: Profit of Rs 158.50/- | K152: 158.50 | L152: 41.17% | M152: Successful | N152: 2015-08-19
A153: 30 | B153: 2015-05-04 | D153: Suprajit Eng | E153: Buy | F153: 115.50 | H153: 146 | I153: 142.00 | J153: Profit of Rs 30.50/- | K153: 30.50 | L153: 26.41% | M153: Successful | N153: 2015-07-17
A154: 31 | B154: 2015-05-27 | D154: TCI | E154: Buy | F154: 237.50 | H154: 279.5 | I154: 278.00 | J154: Target Achieved | K154: 42.00 | L154: 17.68% | M154: Successful | N154: 2015-08-06
A155: 32 | B155: 2015-06-19 | D155: HSIL | E155: Accu | F155: 340.00 | H155: 448 | I155: 448.00 | J155: Target Achieved | K155: 108.00 | L155: 31.76% | M155: Successful | N155: 2017-10-10
A156: 33 | B156: 2015-07-06 | D156: Capital First | E156: Accu | F156: 390.00 | H156: 460 | I156: 460.00 | J156: Target Achieved | K156: =H156-F156 -> 70.00 | L156: =K156/F156 -> 17.95% | M156: Successful | N156: 2016-04-18
A157: 34 | B157: 2015-07-10 | D157: Dolphin OffShore | E157: Accu | F157: 122.5 | H157: 61.00 | I157: 172.00 | J157: Loss of Rs.61.50/- | K157: -61.50 | L157: -50.20% | M157: Unsuccessful | N157: 2018-08-21
A158: 35 | B158: 2015-08-03 | D158: Allcargo logistics | E158: Accu | F158: 297.50 | H158: 350 | I158: 360.00 | J158: Profit of Rs 52.50/- | K158: 52.50 | L158: 17.65% | M158: Successful | N158: 2015-08-16
A159: 36 | B159: 2015-08-03 | D159: Camline Fine | E159: Accu | F159: 115.50 | H159: 149 | I159: 140.00 | J159: Profit of Rs 33.50/- | K159: 33.50 | L159: 29.00% | M159: Successful | N159: 2017-01-05
A160: 37 | B160: 2015-09-04 | D160: TCI | E160: Accu | F160: 226.00 | H160: 292 | I160: 292.00 | J160: Target Achieved | K160: 66.00 | L160: 29.20% | M160: Successful | N160: 2015-10-09
A161: 38 | B161: 2015-09-07 | D161: Kalpataru Power Transmission Ltd | E161: Accu | F161: 232.50 | H161: 312.5 | I161: 310.00 | J161: Target Achieved | K161: 80.00 | L161: 34.41% | M161: Successful | N161: 2017-03-29
A162: 39 | B162: 2015-09-21 | D162: LLOYD ELECTRIC & ENG LTD | E162: Accu | F162: 196.50 | H162: 238 | I162: 238.00 | J162: Target Achieved | K162: 41.50 | L162: 21.12% | M162: Successful | N162: 2015-10-14
A163: 40 | B163: 2015-09-24 | D163: L&T Finance Holding | E163: Accu | F163: 65.00 | H163: 82 | I163: 82.00 | J163: Target Achieved | K163: 17.00 | L163: 26.15% | M163: Successful | N163: 2016-07-27
A164: 41 | B164: 2015-10-14 | D164: KEC International ltd | E164: Accu | F164: 144.00 | H164: 182.5 | I164: 181.00 | J164: Target Achieved | K164: 38.50 | L164: 26.74% | M164: Successful | N164: 2017-03-23
A165: 42 | B165: 2015-10-14 | D165: Gruh Finance | E165: Accu | F165: 264.00 | H165: 311 | I165: 311.00 | J165: Target Achieved | K165: 47.00 | L165: 17.80% | M165: Successful | N165: 2016-08-22
A166: 43 | B166: 2015-11-10 | D166: Pidilitind | E166: Buy | F166: 549.50 | H166: 630 | I166: 630.00 | J166: Target Achieved | K166: 80.50 | L166: 14.65% | M166: Successful | N166: 2016-02-19
A167: 44 | B167: 2015-12-04 | D167: Zensar Technology | E167: Accu | F167: 1027.50 | H167: 1315 | I167: 1250.00 | J167: Target Achieved | K167: 287.50 | L167: 27.98% | M167: Successful | N167: 2018-05-24
A168: 45 | B168: 2015-12-29 | D168: Vinati Organics Ltd | E168: Accu | F168: 465.00 | H168: 540 | I168: 540.00 | J168: Target Achieved | K168: 75.00 | L168: 16.13% | M168: Successful | N168: 2016-06-09
A169: 46 | B169: 2016-01-11 | D169: GSFC | E169: Buy | F169: 81.00 | H169: 110 | I169: 110.00 | J169: Target Achieved | K169: 29.00 | L169: 35.80% | M169: Successful | N169: 2017-01-10
A170: 47 | B170: 2016-01-13 | D170: SSWL | E170: Buy | F170: 417.50 | H170: 547 | I170: 535.00 | J170: Target Achieved | K170: 129.50 | L170: 31.02% | M170: Successful | N170: 2016-07-27
A171: 48 | B171: 2016-02-08 | D171: Persistent System Ltd | E171: Accu | F171: 650.00 | H171: 800 | I171: 800.00 | J171: Target Achieved | K171: 150.00 | L171: 23.08% | M171: Successful | N171: 2018-02-23
A172: 49 | B172: 2016-03-04 | D172: UPL | E172: Accu | F172: 437.50 | H172: 504.5 | I172: 522.00 | J172: Profit of Rs.67/- | K172: 67.00 | L172: 15.31% | M172: Successful | N172: 2016-04-20
A173: 50 | B173: 2016-03-09 | D173: Ashoka Buildcon Ltd | E173: Accu | F173: 189.50 | H173: 218 | I173: 218.00 | J173: Target Achieved | K173: 28.50 | L173: 15.04% | M173: Successful | N173: 2017-10-26
A174: 51 | B174: 2016-04-11 | D174: PTC INDIA FIN SERV LTD | E174: Accu | F174: 36.5 | H174: 15.85 | I174: 60.00 | J174: Loss of Rs.20.65/- | K174: -20.65 | L174: -56.58% | M174: Unsuccessful | N174: 2019-06-11
A175: 52 | B175: 2016-04-12 | D175: CAMLINFINE $ | E175: Accu | F175: 93.00 | H175: 149 | I175: 140.00 | J175: Profit of Rs 56/- | K175: 56.00 | L175: 60.22% | M175: Successful | N175: 2017-01-05
A176: 53 | B176: 2016-04-12 | D176: Greaves Cotton Ltd. | E176: Accu | F176: 130.00 | H176: 150 | I176: 150-155 | J176: Target Achieved | K176: 20.00 | L176: 15.38% | M176: Successful | N176: 2016-07-13
A177: 54 | B177: 2016-04-13 | D177: DHFL | E177: Accu | F177: 196.00 | H177: 299 | I177: 299.00 | J177: Target Achieved | K177: 103.00 | L177: 52.55% | M177: Successful | N177: 2016-09-07
A178: 55 | B178: 2016-04-13 | D178: Magma | E178: Accu | F178: 88.00 | H178: 103 | I178: 103.00 | J178: Target Achieved | K178: 15.00 | L178: 17.05% | M178: Successful | N178: 2016-06-09
A179: 56 | B179: 2016-05-02 | D179: KEC International ltd $ | E179: Accu | F179: 127.50 | H179: 148 | I179: 148-150 | J179: Target Achieved | K179: =H179-F179 -> 20.50 | L179: =K179/F179 -> 16.08% | M179: Successful | N179: 2016-07-13
A180: 57 | B180: 2016-05-03 | D180: Mindtree | E180: Accu | F180: 675.00 | H180: 815 | I180: 790-800 | J180: Target Achieved | K180: =H180-F180 -> 140.00 | L180: =K180/F180 -> 20.74% | M180: Successful | N180: 2018-02-23
A181: 58 | B181: 2016-06-01 | D181: Atulauto | E181: Accu | F181: 500 | H181: 232.50 | I181: 565-570 | J181: Loss of Rs.267.50 /- | K181: =H181-F181 -> -267.50 | L181: =K181/F181 -> -53.50% | M181: Unsuccessful | N181: 2019-09-27
A182: 59 | B182: 2016-06-06 | D182: TRITURBINE | E182: Accu | F182: 110.00 | H182: 126.5 | I182: 125.00 | J182: Profit of Rs.16.50/- | K182: =H182-F182 -> 16.50 | L182: =K182/F182 -> 15.00% | M182: Successful | N182: 2016-07-01
A183: 60 | B183: 2016-06-17 | D183: Pennar Industries Ltd | E183: Accu | F183: 44.00 | H183: 69.5 | I183: 69.50 | J183: Profit of Rs.25.50/- | K183: =H183-F183 -> 25.50 | L183: =K183/F183 -> 57.95% | M183: Successful | N183: 2017-08-30
A184: 61 | B184: 2016-06-28 | D184: EVEREADY | E184: Accu | F184: 262.50 | H184: 340 | I184: 333.00 | J184: Profit of Rs.77.50/- | K184: 77.50 | L184: 29.52% | M184: Successful | N184: 2017-10-09
A185: 62 | B185: 2016-06-28 | D185: FIEMIND | E185: Accu | F185: 840.00 | H185: 1230 | I185: 1230.00 | J185: Target Achieved | K185: 390.00 | L185: 46.43% | M185: Successful | N185: 2016-10-06
A186: 63 | B186: 2016-07-05 | D186: Bajaj Corp Ltd | E186: Accu | F186: 395 | H186: =(468.5+342.5)/2 -> 405.50 | I186: 510.00 | J186: Profit of Rs.10.50/- | K186: =H186-F186 -> 10.50 | L186: =K186/F186 -> 3% | M186: Neutral | N186: 2019-05-21
A187: 64 | B187: 2016-08-02 | D187: GPPL $ | E187: Buy | F187: =169.5-12.8 -> 156.7 | H187: 77.00 | I187: 198-200 | J187: Loss of Rs.79.7/- | K187: -79.70 | L187: -50.86% | M187: Unsuccessful | N187: 2019-02-26
A188: 65 | B188: 2016-08-04 | D188: WONDERLA HOLIDAYS LTD | E188: Accu | F188: 400 | H188: 305.00 | I188: 475.00 | J188: Loss of Rs.95/- | K188: -95.00 | L188: -23.75% | M188: Unsuccessful | N188: 2019-05-21
A189: 66 | B189: 2016-08-11 | D189: CAMLINFINE | E189: Accu | F189: 86.50 | H189: 130 | I189: 130.00 | J189: Profit of Rs.43.50/- | K189: 43.50 | L189: 50.29% | M189: Successful | N189: 2017-12-22
A190: 67 | B190: 2016-08-18 | D190: GRANULES | E190: Accu | F190: 133.5 | H190: 126.50 | I190: 178.00 | J190: Exit | K190: -7.00 | L190: -5.24% | M190: Unsuccessful | N190: 2016-09-02
A191: 68 | B191: 2016-08-31 | D191: VA TECH WABAG | E191: Accu | F191: 560.00 | H191: 725 | I191: 725.00 | J191: Target Achieved | K191: 165.00 | L191: 29.46% | M191: Successful | N191: 2016-03-27
A192: 69 | B192: 2016-09-01 | D192: SKIPPER LIMITED | E192: Accu | F192: 160.50 | H192: 210 | I192: 210.00 | J192: Target Achieved | K192: 49.50 | L192: 30.84% | M192: Successful | N192: 2017-05-16
A193: 70 | B193: 2016-10-03 | D193: IFBIND | E193: Accu | F193: 430.00 | H193: 596 | I193: 575.00 | J193: Profit of Rs.166/- | K193: 166.00 | L193: 38.60% | M193: Successful | N193: 2017-02-03
A194: 71 | B194: 2016-10-14 | D194: ASIANTILES | E194: Accu | F194: 280.00 | H194: 345 | I194: 345.00 | J194: Target Achieved | K194: =H194-F194 -> 65.00 | L194: =K194/F194 -> 23.21% | M194: Successful | N194: 2017-03-20
A195: 72 | B195: 2016-10-14 | D195: DEEPIND | E195: Accu | F195: 245.00 | H195: 325.5 | I195: 330.00 | J195: Profit of Rs.80.5/- | K195: 80.50 | L195: =K195/F195 -> 32.86% | M195: Successful | N195: 2017-02-03
A196: 73 | B196: 2016-10-17 | D196: DCBBANK | E196: Accu | F196: 125.00 | H196: 160 | I196: 160.00 | J196: Target Achieved | K196: 35.00 | L196: 28.00% | M196: Successful | N196: 2017-03-09
A197: 74 | B197: 2016-10-17 | D197: ORIENTREF | E197: Accu | F197: 114.00 | H197: 145 | I197: 145.00 | J197: Target Achieved | K197: 31.00 | L197: =K197/F197 -> 27.19% | M197: Successful | N197: 2017-05-04
A198: 75 | B198: 2016-10-17 | D198: GANECOS | E198: Accu | F198: 212.00 | H198: 280 | I198: 276.00 | J198: Profit of Rs.68/- | K198: 68.00 | L198: =K198/F198 -> 32.08% | M198: Successful | N198: 2017-05-03
A199: 76 | B199: 2016-11-04 | D199: NBCC | E199: Accu | F199: 155.00 | H199: 210 | I199: 210.00 | J199: Profit of Rs.55/- | K199: 55.00 | L199: =K199/F199 -> 35.48% | M199: Successful | N199: 2017-07-28
A200: 77 | B200: 2016-12-06 | D200: PRECAM | E200: Accu | F200: 150.5 | H200: 72.50 | I200: 174.00 | J200: Loss of Rs.78/- | K200: -78.00 | L200: -51.83% | M200: Unsuccessful | N200: 2018-08-21
A201: 78 | B201: 2016-12-08 | D201: INFRATEL | E201: Accu | F201: 380.00 | H201: 478 | I201: 468.00 | J201: Target Achieved | K201: =H201-F201 -> 98.00 | L201: =K201/F201 -> 25.79% | M201: Successful | N201: 2017-10-17
A202: 79 | B202: 2016-12-30 | D202: GODREJPROP | E202: Accu | F202: 305.00 | H202: 375 | I202: 375.00 | J202: Target Achieved | K202: =H202-F202 -> 70.00 | L202: =K202/F202 -> 22.95% | M202: Successful | N202: 2017-02-02
A203: 80 | B203: 2017-01-04 | D203: DEEPAKNTR | E203: Accu | F203: 99.50 | H203: 158 | I203: 158.00 | J203: Target Achieved | K203: =H203-F203 -> 58.50 | L203: =K203/F203 -> 58.79% | M203: Successful | N203: 2017-06-12
A204: 81 | B204: 2017-01-04 | D204: DEEPAKNTR | E204: Accu | F204: 99.50 | H204: 158 | I204: 158.00 | J204: Target Achieved | K204: 58.50 | L204: 58.79% | M204: Successful | N204: 2017-06-12
A205: 82 | B205: 2017-02-20 | D205: RECLTD | E205: Accu | F205: 140.50 | H205: 220 | I205: 220.00 | J205: Target Achieved | K205: =H205-F205 -> 79.50 | L205: =K205/F205 -> 56.58% | M205: Successful | N205: 2017-05-09
A206: 83 | B206: 2017-02-20 | D206: SUBROS | E206: Accu | F206: 202.50 | H206: 234 | I206: 234.00 | J206: Target Achieved | K206: 31.50 | L206: 15.56% | M206: Successful | N206: 2017-04-11
A207: 84 | B207: 2017-03-24 | D207: VRLLOG | E207: Accu | F207: 300.50 | H207: 417.5 | I207: 420.00 | J207: Profit of Rs.117/- | K207: =H207-F207 -> 117.00 | L207: =K207/F207 -> 38.94% | M207: Successful | N207: 2017-12-01
A208: 85 | B208: 2017-03-24 | D208: FIEMIND | E208: Accu | F208: 850.00 | H208: 1042.5 | I208: 1023.00 | J208: Profit of Rs 192.50/- | K208: 192.50 | L208: 22.65% | M208: Successful | N208: 2017-04-05
A209: 86 | B209: 2017-04-05 | D209: RATNAMANI | E209: Accu | F209: 785.00 | H209: 930 | I209: 920.00 | J209: Profit of Rs.145/- | K209: =H209-F209 -> 145.00 | L209: =K209/F209 -> 18.47% | M209: Successful | N209: 2017-08-29
A210: 87 | B210: 2017-04-06 | D210: ZEEMEDIA | E210: Accu | F210: 40 | H210: 13.10 | I210: 60.00 | J210: Loss of Rs.26.9/- | K210: -26.90 | L210: -67.25% | M210: Unsuccessful | N210: 2018-02-07
A211: 88 | B211: 2017-04-12 | D211: DABUR | E211: Accu | F211: 289.50 | H211: 354 | I211: 360.00 | J211: Profit of Rs.64.5/- | K211: =H211-F211 -> 64.50 | L211: =K211/F211 -> 22.28% | M211: Successful | N211: 2017-11-01
A212: 89 | B212: 2017-04-20 | D212: KPRMILL | E212: Accu | F212: 700.00 | H212: 840 | I212: 840.00 | J212: Profit of Rs.140/- | K212: 140.00 | L212: 20.00% | M212: Successful | N212: 2017-06-07
A213: 90 | B213: 2017-06-01 | D213: ESSELPACK | E213: Accu | F213: 130.00 | H213: 144.25 | I213: 170.00 | J213: Profit of Rs.14.25/- | K213: 14.25 | L213: 10.96% | M213: Successful | N213: 2019-07-29
A214: 91 | B214: 2017-06-15 | D214: KEI | E214: Accu | F214: 214.50 | H214: 262 | I214: 262.00 | J214: Profit of Rs.47.5/- | K214: 47.50 | L214: 22.14% | M214: Successful | N214: 2017-08-30
A215: 92 | B215: 2017-07-17 | D215: MAYURUNIQ | E215: Accu | F215: 370.00 | H215: 447.5 | I215: 450.00 | J215: Target Achieved | K215: 77.50 | L215: 20.95% | M215: Successful | N215: 2017-10-27
A216: 93 | B216: 2017-07-27 | D216: RAMCOCEM | E216: Accu | F216: 657.50 | H216: 825 | I216: 820.00 | J216: Target Achieved | K216: 167.50 | L216: 25.48% | M216: Successful | N216: 2017-12-21
A217: 94 | B217: 2017-08-17 | D217: FINPIPE | E217: Accu | F217: 605.00 | H217: 750 | I217: 750.00 | J217: Profit of Rs.145/- | K217: 145.00 | L217: 23.97% | M217: Successful | N217: 2017-10-19
A218: 95 | B218: 2017-09-01 | D218: SHK | E218: Accu | F218: 255 | H218: 217.25 | I218: 320.00 | J218: Loss of Rs.37.75/- | K218: -37.75 | L218: -15% | M218: Unsuccessful | N218: 2019-07-15
A219: 96 | B219: 2017-09-19 | D219: SKIPPER | E219: Accu | F219: 215.00 | H219: 258 | I219: 258.00 | J219: Target Achieved | K219: 43.00 | L219: 20.00% | M219: Successful | N219: 2017-11-01
A220: 97 | B220: 2017-09-19 | D220: SKIPPER | E220: Accu | F220: 215.00 | H220: 258 | I220: 258.00 | J220: Target Achieved | K220: 43.00 | L220: 20.00% | M220: Successful | N220: 2017-11-01
A221: 98 | B221: 2017-09-20 | D221: CAMLINFINE$ | E221: Accu | F221: 75.00 | H221: 90 | I221: 90.00 | J221: Profit of Rs.15.00/- | K221: =H221-F221 -> 15.00 | L221: =K221/F221 -> 20.00% | M221: Successful | N221: 2017-10-11
A222: 99 | B222: 2017-10-03 | D222: GNA | E222: Accu | F222: 315.00 | H222: 392 | I222: 384.00 | J222: Profit of Rs.77/- | K222: 77.00 | L222: 24.44% | M222: Successful | N222: 2017-10-09
A223: 100 | B223: 2017-10-05 | D223: NOCIL | E223: Accu | F223: 145.00 | H223: 179 | I223: 180.00 | J223: Profit of Rs.34/- | K223: 34.00 | L223: 23.45% | M223: Successful | N223: 2017-10-17
A224: 101 | B224: 2017-10-06 | D224: CENTURYPLY | E224: Accu | F224: 256.00 | H224: 323 | I224: 320.00 | J224: Target Achieved | K224: 67.00 | L224: 26.17% | M224: Successful | N224: 2017-11-28
A225: 102 | B225: 2017-10-09 | D225: EIHOTEL | E225: Accu | F225: 137.50 | H225: 184 | I225: 183.00 | J225: Profit of Rs.46.5/- | K225: 46.50 | L225: 33.82% | M225: Successful | N225: 2018-01-08
A226: 103 | B226: 2017-10-10 | D226: NRBBEARING | E226: Accu | F226: 125.50 | H226: 158 | I226: 155.00 | J226: Profit of Rs.32.5/- | K226: 32.50 | L226: 25.90% | M226: Successful | N226: 2017-11-28
A227: 104 | B227: 2017-10-10 | D227: BOROSIL | E227: Accu | F227: 895.00 | H227: 1122.5 | I227: 1078.00 | J227: Profit of Rs.227.5/- | K227: 227.50 | L227: 25.42% | M227: Successful | N227: 2018-01-17
A228: 105 | B228: 2017-10-12 | D228: CYIENT | E228: Accu | F228: 525.00 | H228: 629 | I228: 629.00 | J228: Target Achieved | K228: 104.00 | L228: 19.81% | M228: Successful | N228: 2018-01-19
A229: 106 | B229: 2017-11-07 | D229: HATSUN | E229: Accu | F229: 740.00 | H229: 892.5 | I229: 900.00 | J229: Profit of Rs.152.5/- | K229: =H229-F229 -> 152.50 | L229: =K229/F229 -> 20.61% | M229: Successful | N229: 2017-11-13
... 108 more rows
